Workbook

Sheet Instructions
A1: InterAct Ministries of Canada
A2: 2018-2019 Draft Budget
A3: =TODAY() -> 2021-01-27
A7: Instructions
A8: Step 1 | B8: To display individual budgt pages, on the Main Budget worksheet click the GoTo button below the name of the budget you want to open.
A11: Step 2 | B11: Enter each segment of a project on a separate line according to the account description. When you enter an account number the account description will fill in automatically. It is not necessary to enter the items in any particular sequence, but if you start each line of a project with the same word they can be sorted accordingly (such as Conf. Travel, Conf. Food, Conf. Speaker, etc.)
B16: Current data on the form is for illustration only. You can delete any data you don't need. For additional lines you may use open lines at the bottom or insert new lines into the form.
A19: Step 3 | B19: Enter a detailed description of each item (how many at how much each). Use as many lines as necessary to descript each item.
A22: Step 4 | B22: Enter the amount of income or cost for each line
A24: Click the GoTo Main BGT button below to continue
A30: Notes
A32: 1. Lodging calculated at $125 per night

Sheet Vision

Sheet Summary
B1: USE OF FUNDS - SUMMARY
B2: 2021-2022 | I2: 2021-2022
A3: 2020-2021 | B3: Expenses by Department
A4: 1280366 | B4: ='S1'!E3 -> 1201200.5 | D4: Native Ministries
A5: 12150 | B5: ='S2'!E3 -> 12150 | D5: EnGage!
A6: 72770 | B6: ='S3'!E3 -> 72927.5 | D6: Muslim Ministries
A7: 142980 | B7: ='S4'!E3 -> 136832.5 | D7: East Indian Ministries
A8: 24185 | B8: ='S5'!E3 -> 24185 | D8: Anchored Warriors
A9: 124120 | B9: ='S6'!E3 -> 129027.5 | D9: Native Bible Centre
A10: 113660 | B10: ='S7'!E3 -> 118709 | D10: Collaborative Ministries
A11: 153825 | B11: ='S8'!E3 -> 113000 | D11: Member Care
A12: 446365 | B12: ='S9'!E3 -> 481497 | D12: Admin & General*
A13: 90610 | B13: ='S10'!E3 -> 127860 | D13: Mobilization
A14: 574710 | B14: ='S11'!E3 -> 165338.4 | D14: Midway Ministries
A15: 44770 | B15: ='S12'!E3 -> 28500 | D15: Development
A16: 239990 | B16: ='S13'!E3 -> 44500 | D16: Urban Fire
B17: ='S14'!E3 -> 172920 | D17: Restora
A18: =SUM(A4:A17) -> 3320501 | B18: =SUM(B4:B17) -> 2828647.4 | D18: Total

Sheet Main_BGT
F1: Program Ministries | O1: Program Ministries | R1: Management & General
F2: Church Planting & Evangelism | O2: Schools | P2: Other Programs | Q2: Support | R2: Operations | T2: Fund Raising
C3: InterAct Canada | D3: Total | E3: Total | F3: ='S1'!$C$1 -> 50 | G3: ='S2'!$C$1 -> 40 | H3: ='S3'!$C$1 -> 85 | I3: ='S4'!$C$1 -> 20 | J3: ='S5'!$C$1 -> 15 | K3: 51 | L3: 52 | M3: 53 | O3: ='S6'!$C$1 -> 10 | P3: ='S7'!$C$1 -> 60 | Q3: ='S8'!$C$1 -> 30 | R3: ='S9'!$C$1 -> 70 | S3: ='S10'!$C$1 -> 80 | T3: ='S12'!$C$1 -> 81
D4: Canada | E4: Canada | F4: ='S1'!$B$1 -> Native Ministries | G4: ='S2'!$B$1 -> EnGage! | H4: ='S3'!$B$1 -> Muslim Ministries | I4: ='S4'!$B$1 -> East Indian | J4: ='S5'!$B$1 -> Anchored Warriors | K4: ='S11'!$B$1 -> Midway Ministries | L4: ='S13'!$B$1 -> Urban Fire | M4: ='S14'!B1 -> Restora | O4: ='S6'!$B$1 -> Native Bible Centre | P4: ='S7'!$A$1 -> Collaborative Ministries | Q4: ='S8'!$B$1 -> Member Care | R4: ='S9'!$B$1 -> Admin & General | S4: ='S10'!$B$1 -> Mobilization | T4: ='S12'!$B$1 -> Development
A5: US No | B5: Acct | D5: 2020-2021 | E5: 2021-2022
C6: Total Income | D6: 3332535.5 | E6: =SUM(F6:T6) -> 2831896 | F6: ='S1'!$E$2 -> 1201920.5 | G6: ='S2'!$E$2 -> 28750 | H6: ='S3'!$E$2 -> 72841.5 | I6: ='S4'!$E$2 -> 134922.5 | J6: ='S5'!$E$2 -> 32200 | K6: ='S11'!$E$2 -> 262555 | L6: ='S13'!$E$2 -> 51205 | M6: ='S14'!E2 -> 187910 | N6: =C6 -> Total Income | O6: ='S6'!$E$2 -> 134547.5 | P6: ='S7'!$E$2 -> 115449 | Q6: ='S8'!$E$2 -> 43090 | R6: ='S9'!$E$2 -> 444858 | S6: ='S10'!$E$2 -> 109146 | T6: ='S12'!$E$2 -> 12501
C7: Total Expense | D7: 3320501 | E7: =SUM(F7:T7) -> 2828647.4 | F7: ='S1'!$E$3 -> 1201200.5 | G7: ='S2'!$E$3 -> 12150 | H7: ='S3'!$E$3 -> 72927.5 | I7: ='S4'!$E$3 -> 136832.5 | J7: ='S5'!$E$3 -> 24185 | K7: ='S11'!$E$3 -> 165338.4 | L7: ='S13'!$E$3 -> 44500 | M7: ='S14'!E3 -> 172920 | N7: =C7 -> Total Expense | O7: ='S6'!$E$3 -> 129027.5 | P7: ='S7'!$E$3 -> 118709 | Q7: ='S8'!$E$3 -> 113000 | R7: ='S9'!$E$3 -> 481497 | S7: ='S10'!$E$3 -> 127860 | T7: ='S12'!$E$3 -> 28500
C9: Excess (Deficit) | D9: 12034.5 | E9: =E6-E7 -> 3248.6 | F9: 720 | G9: 16600 | H9: -86 | I9: -1910 | J9: 8015 | K9: =K6-K7 -> 97216.6 | L9: =L6-L7 -> 6705 | M9: =M6-M7 -> 14990 | N9: =C9 -> Excess (Deficit) | O9: =O6-O7 -> 5520 | P9: -3260 | Q9: -69910 | R9: -36639 | S9: -18714 | T9: -15999
A11: 502 | C11: <--Highest or last Income | N11: =C11 -> <--Highest or last Income
C12: Account No | N12: Account No
A13: 1000 | B13: 101 | C13: Cash in Bank | E13: =SUM(F13:T13) -> 0 | F13: =SUM(IF(S1AccNO=B13,IF(S1FieldRank<=S1Choice,S1Amount,0),0)) -> 0 | G13: =SUM(IF(S_2AccNO=$B13,IF(S_2FieldRank<=S_2Choice,S_2Amount,0),0)) -> 0 | H13: =SUM(IF(S_3AccNO=$B13,IF(S_3FieldRank<=S_3Choice,S_3Amount,0),0)) -> 0 | I13: =SUM(IF(S_4AccNO=$B13,IF(S_4FieldRank<=S_4Choice,S_4Amount,0),0)) -> 0 | J13: =SUM(IF(S_5AccNO=$B13,IF(S_5FieldRank<=S_5Choice,S_5Amount,0),0)) -> 0 | K13: =SUM(IF(S_5AccNO=$B13,IF(S_5FieldRank<=S_5Choice,S_5Amount,0),0)) -> 0 | L13: =SUM(IF(S_5AccNO=$B13,IF(S_5FieldRank<=S_5Choice,S_5Amount,0),0)) -> 0 | N13: Cash in Bank | O13: =SUM(IF(S_6AccNO=$B13,IF(S_6FieldRank<=S_6Choice,S_6Amount,0),0)) -> 0 | P13: =SUM(IF(S_7AccNO=$B13,IF(S_7FieldRank<=S_7Choice,S_7Amount,0),0)) -> 0 | Q13: =SUM(IF(S_8AccNO=$B13,IF(S_8FieldRank<=S_8Choice,S_8Amount,0),0)) -> 0 | R13: =SUM(IF(S_9AccNO=$B13,IF(S_9FieldRank<=S_9Choice,S_9Amount,0),0)) -> 0 | S13: =SUM(IF(S_10AccNO=$B13,IF(S_10FieldRank<=S_10Choice,S_10Amount,0),0)) -> 0 | T13: =SUM(IF(S_12AccNO=$B13,IF(S_12FieldRank<=S_12Choice,S_12Amount,0),0)) -> 0
A14: 1000 | B14: 103 | C14: Cash on Hand | E14: 0 | F14: =SUM(IF(S1AccNO=B14,IF(S1FieldRank<=S1Choice,S1Amount,0),0)) -> 0 | G14: =SUM(IF(S_2AccNO=$B14,IF(S_2FieldRank<=S_2Choice,S_2Amount,0),0)) -> 0 | H14: =SUM(IF(S_3AccNO=$B14,IF(S_3FieldRank<=S_3Choice,S_3Amount,0),0)) -> 0 | I14: =SUM(IF(S_4AccNO=$B14,IF(S_4FieldRank<=S_4Choice,S_4Amount,0),0)) -> 0 | J14: =SUM(IF(S_5AccNO=$B14,IF(S_5FieldRank<=S_5Choice,S_5Amount,0),0)) -> 0 | K14: =SUM(IF(S_5AccNO=$B14,IF(S_5FieldRank<=S_5Choice,S_5Amount,0),0)) -> 0 | L14: =SUM(IF(S_5AccNO=$B14,IF(S_5FieldRank<=S_5Choice,S_5Amount,0),0)) -> 0 | N14: Cash on Hand | O14: =SUM(IF(S_6AccNO=$B14,IF(S_6FieldRank<=S_6Choice,S_6Amount,0),0)) -> 0 | P14: =SUM(IF(S_7AccNO=$B14,IF(S_7FieldRank<=S_7Choice,S_7Amount,0),0)) -> 0 | Q14: =SUM(IF(S_8AccNO=$B14,IF(S_8FieldRank<=S_8Choice,S_8Amount,0),0)) -> 0 | R14: =SUM(IF(S_9AccNO=$B14,IF(S_9FieldRank<=S_9Choice,S_9Amount,0),0)) -> 0 | S14: =SUM(IF(S_10AccNO=$B14,IF(S_10FieldRank<=S_10Choice,S_10Amount,0),0)) -> 0 | T14: =SUM(IF(S_12AccNO=$B14,IF(S_12FieldRank<=S_12Choice,S_12Amount,0),0)) -> 0
A15: 1200 | B15: 110 | C15: Accounts Receivable | E15: 0 | F15: =SUM(IF(S1AccNO=B15,IF(S1FieldRank<=S1Choice,S1Amount,0),0)) -> 0 | G15: =SUM(IF(S_2AccNO=$B15,IF(S_2FieldRank<=S_2Choice,S_2Amount,0),0)) -> 0 | H15: =SUM(IF(S_3AccNO=$B15,IF(S_3FieldRank<=S_3Choice,S_3Amount,0),0)) -> 0 | I15: =SUM(IF(S_4AccNO=$B15,IF(S_4FieldRank<=S_4Choice,S_4Amount,0),0)) -> 0 | J15: =SUM(IF(S_5AccNO=$B15,IF(S_5FieldRank<=S_5Choice,S_5Amount,0),0)) -> 0 | K15: =SUM(IF(S_5AccNO=$B15,IF(S_5FieldRank<=S_5Choice,S_5Amount,0),0)) -> 0 | L15: =SUM(IF(S_5AccNO=$B15,IF(S_5FieldRank<=S_5Choice,S_5Amount,0),0)) -> 0 | N15: Accounts Receivable | O15: =SUM(IF(S_6AccNO=$B15,IF(S_6FieldRank<=S_6Choice,S_6Amount,0),0)) -> 0 | P15: =SUM(IF(S_7AccNO=$B15,IF(S_7FieldRank<=S_7Choice,S_7Amount,0),0)) -> 0 | Q15: =SUM(IF(S_8AccNO=$B15,IF(S_8FieldRank<=S_8Choice,S_8Amount,0),0)) -> 0 | R15: =SUM(IF(S_9AccNO=$B15,IF(S_9FieldRank<=S_9Choice,S_9Amount,0),0)) -> 0 | S15: =SUM(IF(S_10AccNO=$B15,IF(S_10FieldRank<=S_10Choice,S_10Amount,0),0)) -> 0 | T15: =SUM(IF(S_12AccNO=$B15,IF(S_12FieldRank<=S_12Choice,S_12Amount,0),0)) -> 0
E16: 0 | F16: =SUM(IF(S1AccNO=B16,IF(S1FieldRank<=S1Choice,S1Amount,0),0)) -> 0 | G16: =SUM(IF(S_2AccNO=$B16,IF(S_2FieldRank<=S_2Choice,S_2Amount,0),0)) -> 0 | H16: =SUM(IF(S_3AccNO=$B16,IF(S_3FieldRank<=S_3Choice,S_3Amount,0),0)) -> 0 | I16: =SUM(IF(S_4AccNO=$B16,IF(S_4FieldRank<=S_4Choice,S_4Amount,0),0)) -> 0 | J16: =SUM(IF(S_5AccNO=$B16,IF(S_5FieldRank<=S_5Choice,S_5Amount,0),0)) -> 0 | L16: =SUM(IF(S_5AccNO=$B16,IF(S_5FieldRank<=S_5Choice,S_5Amount,0),0)) -> 0 | N16: 0 | O16: =SUM(IF(S_6AccNO=$B16,IF(S_6FieldRank<=S_6Choice,S_6Amount,0),0)) -> 0 | P16: =SUM(IF(S_7AccNO=$B16,IF(S_7FieldRank<=S_7Choice,S_7Amount,0),0)) -> 0 | Q16: =SUM(IF(S_8AccNO=$B16,IF(S_8FieldRank<=S_8Choice,S_8Amount,0),0)) -> 0 | R16: =SUM(IF(S_9AccNO=$B16,IF(S_9FieldRank<=S_9Choice,S_9Amount,0),0)) -> 0 | S16: =SUM(IF(S_10AccNO=$B16,IF(S_10FieldRank<=S_10Choice,S_10Amount,0),0)) -> 0 | T16: =SUM(IF(S_12AccNO=$B16,IF(S_12FieldRank<=S_12Choice,S_12Amount,0),0)) -> 0
B17: 400 | C17: Gifts in hand | D17: 146541 | E17: 196111 | F17: =SUM(IF(S1AccNO=B17,IF(S1FieldRank<=S1Choice,S1Amount,0),0)) -> 2641 | G17: =SUM(IF(S_2AccNO=$B17,IF(S_2FieldRank<=S_2Choice,S_2Amount,0),0)) -> 16600 | H17: =SUM(IF(S_3AccNO=$B17,IF(S_3FieldRank<=S_3Choice,S_3Amount,0),0)) -> 0 | I17: =SUM(IF(S_4AccNO=$B17,IF(S_4FieldRank<=S_4Choice,S_4Amount,0),0)) -> 14030 | J17: =SUM(IF(S_5AccNO=$B17,IF(S_5FieldRank<=S_5Choice,S_5Amount,0),0)) -> 24890 | K17: =SUM(IF(S_11AccNO=$B17,IF(S_11FieldRank<=S_11Choice,S_11Amount,0),0)) -> 100000 | L17: =SUM(IF(S_13AccNO=$B17,IF(S_13FieldRank<=S_13Choice,S_13Amount,0),0)) -> 8500 | M17: =SUM(IF(S_14AccNO=$B17,IF(S_14FieldRank<=S_14Choice,S_14Amount,0),0)) -> 10000 | N17: Gifts in hand | O17: =SUM(IF(S_6AccNO=$B17,IF(S_6FieldRank<=S_6Choice,S_6Amount,0),0)) -> 9250 | P17: =SUM(IF(S_7AccNO=$B17,IF(S_7FieldRank<=S_7Choice,S_7Amount,0),0)) -> 0 | Q17: =SUM(IF(S_8AccNO=$B17,IF(S_8FieldRank<=S_8Choice,S_8Amount,0),0)) -> 10200 | R17: =SUM(IF(S_9AccNO=$B17,IF(S_9FieldRank<=S_9Choice,S_9Amount,0),0)) -> 0 | S17: =SUM(IF(S_10AccNO=$B17,IF(S_10FieldRank<=S_10Choice,S_10Amount,0),0)) -> 0 | T17: =SUM(IF(S_12AccNO=$B17,IF(S_12FieldRank<=S_12Choice,S_12Amount,0),0)) -> 0
B18: 410 | C18: Canadian Gifts-Staff | D18: 1140500 | E18: 1053354 | F18: =SUM(IF(S1AccNO=B18,IF(S1FieldRank<=S1Choice,S1Amount,0),0)) -> 580705 | G18: =SUM(IF(S_2AccNO=$B18,IF(S_2FieldRank<=S_2Choice,S_2Amount,0),0)) -> 0 | H18: =SUM(IF(S_3AccNO=$B18,IF(S_3FieldRank<=S_3Choice,S_3Amount,0),0)) -> 70275 | I18: =SUM(IF(S_4AccNO=$B18,IF(S_4FieldRank<=S_4Choice,S_4Amount,0),0)) -> 109675 | J18: =SUM(IF(S_5AccNO=$B18,IF(S_5FieldRank<=S_5Choice,S_5Amount,0),0)) -> 0 | K18: =SUM(IF(S_11AccNO=$B18,IF(S_11FieldRank<=S_11Choice,S_11Amount,0),0)) -> 0 | L18: =SUM(IF(S_13AccNO=$B18,IF(S_13FieldRank<=S_13Choice,S_13Amount,0),0)) -> 0 | M18: =SUM(IF(S_14AccNO=$B18,IF(S_14FieldRank<=S_14Choice,S_14Amount,0),0)) -> 0 | N18: Canadian Gifts-Staff | O18: =SUM(IF(S_6AccNO=$B18,IF(S_6FieldRank<=S_6Choice,S_6Amount,0),0)) -> 45625 | P18: =SUM(IF(S_7AccNO=$B18,IF(S_7FieldRank<=S_7Choice,S_7Amount,0),0)) -> 102949 | Q18: =SUM(IF(S_8AccNO=$B18,IF(S_8FieldRank<=S_8Choice,S_8Amount,0),0)) -> 10600 | R18: =SUM(IF(S_9AccNO=$B18,IF(S_9FieldRank<=S_9Choice,S_9Amount,0),0)) -> 125225 | S18: =SUM(IF(S_10AccNO=$B18,IF(S_10FieldRank<=S_10Choice,S_10Amount,0),0)) -> 8300 | T18: =SUM(IF(S_12AccNO=$B18,IF(S_12FieldRank<=S_12Choice,S_12Amount,0),0)) -> 0
A19: 5001 | B19: 430 | C19: US Gifts | D19: 1040150 | E19: 1063075 | F19: =SUM(IF(S1AccNO=B19,IF(S1FieldRank<=S1Choice,S1Amount,0),0)) -> 701950 | G19: =SUM(IF(S_2AccNO=$B19,IF(S_2FieldRank<=S_2Choice,S_2Amount,0),0)) -> 0 | H19: =SUM(IF(S_3AccNO=$B19,IF(S_3FieldRank<=S_3Choice,S_3Amount,0),0)) -> 8300 | I19: =SUM(IF(S_4AccNO=$B19,IF(S_4FieldRank<=S_4Choice,S_4Amount,0),0)) -> 16150 | J19: =SUM(IF(S_5AccNO=$B19,IF(S_5FieldRank<=S_5Choice,S_5Amount,0),0)) -> 0 | K19: =SUM(IF(S_11AccNO=$B19,IF(S_11FieldRank<=S_11Choice,S_11Amount,0),0)) -> 0 | L19: =SUM(IF(S_13AccNO=$B19,IF(S_13FieldRank<=S_13Choice,S_13Amount,0),0)) -> 0 | M19: =SUM(IF(S_14AccNO=$B19,IF(S_14FieldRank<=S_14Choice,S_14Amount,0),0)) -> 0 | N19: US Gifts | O19: =SUM(IF(S_6AccNO=$B19,IF(S_6FieldRank<=S_6Choice,S_6Amount,0),0)) -> 92050 | P19: =SUM(IF(S_7AccNO=$B19,IF(S_7FieldRank<=S_7Choice,S_7Amount,0),0)) -> 0 | Q19: =SUM(IF(S_8AccNO=$B19,IF(S_8FieldRank<=S_8Choice,S_8Amount,0),0)) -> 19800 | R19: =SUM(IF(S_9AccNO=$B19,IF(S_9FieldRank<=S_9Choice,S_9Amount,0),0)) -> 115825 | S19: =SUM(IF(S_10AccNO=$B19,IF(S_10FieldRank<=S_10Choice,S_10Amount,0),0)) -> 109000 | T19: =SUM(IF(S_12AccNO=$B19,IF(S_12FieldRank<=S_12Choice,S_12Amount,0),0)) -> 0
B20: 440 | C20: Project Income - CND Ind | D20: 306544 | E20: 104600 | F20: =SUM(IF(S1AccNO=B20,IF(S1FieldRank<=S1Choice,S1Amount,0),0)) -> 1500 | G20: =SUM(IF(S_2AccNO=$B20,IF(S_2FieldRank<=S_2Choice,S_2Amount,0),0)) -> 0 | H20: =SUM(IF(S_3AccNO=$B20,IF(S_3FieldRank<=S_3Choice,S_3Amount,0),0)) -> 1400 | I20: =SUM(IF(S_4AccNO=$B20,IF(S_4FieldRank<=S_4Choice,S_4Amount,0),0)) -> 4000 | J20: =SUM(IF(S_5AccNO=$B20,IF(S_5FieldRank<=S_5Choice,S_5Amount,0),0)) -> 2000 | K20: =SUM(IF(S_11AccNO=$B20,IF(S_11FieldRank<=S_11Choice,S_11Amount,0),0)) -> 34800 | L20: =SUM(IF(S_13AccNO=$B20,IF(S_13FieldRank<=S_13Choice,S_13Amount,0),0)) -> 13900 | M20: =SUM(IF(S_14AccNO=$B20,IF(S_14FieldRank<=S_14Choice,S_14Amount,0),0)) -> 2500 | N20: Project Income - CND Ind | O20: =SUM(IF(S_6AccNO=$B20,IF(S_6FieldRank<=S_6Choice,S_6Amount,0),0)) -> 600 | P20: =SUM(IF(S_7AccNO=$B20,IF(S_7FieldRank<=S_7Choice,S_7Amount,0),0)) -> 12500 | Q20: =SUM(IF(S_8AccNO=$B20,IF(S_8FieldRank<=S_8Choice,S_8Amount,0),0)) -> 5300 | R20: =SUM(IF(S_9AccNO=$B20,IF(S_9FieldRank<=S_9Choice,S_9Amount,0),0)) -> 13500 | S20: =SUM(IF(S_10AccNO=$B20,IF(S_10FieldRank<=S_10Choice,S_10Amount,0),0)) -> 1000 | T20: =SUM(IF(S_12AccNO=$B20,IF(S_12FieldRank<=S_12Choice,S_12Amount,0),0)) -> 11600
B21: 441 | C21: Project Income - CDN Churches | D21: 192565 | E21: 69676 | F21: =SUM(IF(S1AccNO=B21,IF(S1FieldRank<=S1Choice,S1Amount,0),0)) -> 2500 | G21: =SUM(IF(S_2AccNO=$B21,IF(S_2FieldRank<=S_2Choice,S_2Amount,0),0)) -> 13500 | H21: =SUM(IF(S_3AccNO=$B21,IF(S_3FieldRank<=S_3Choice,S_3Amount,0),0)) -> 960 | I21: =SUM(IF(S_4AccNO=$B21,IF(S_4FieldRank<=S_4Choice,S_4Amount,0),0)) -> 5000 | J21: =SUM(IF(S_5AccNO=$B21,IF(S_5FieldRank<=S_5Choice,S_5Amount,0),0)) -> 6000 | K21: =SUM(IF(S_11AccNO=$B21,IF(S_11FieldRank<=S_11Choice,S_11Amount,0),0)) -> 27000 | L21: =SUM(IF(S_13AccNO=$B21,IF(S_13FieldRank<=S_13Choice,S_13Amount,0),0)) -> 6950 | M21: =SUM(IF(S_14AccNO=$B21,IF(S_14FieldRank<=S_14Choice,S_14Amount,0),0)) -> 2500 | N21: Project Income - CDN Churches | O21: =SUM(IF(S_6AccNO=$B21,IF(S_6FieldRank<=S_6Choice,S_6Amount,0),0)) -> 0 | P21: =SUM(IF(S_7AccNO=$B21,IF(S_7FieldRank<=S_7Choice,S_7Amount,0),0)) -> 0 | Q21: =SUM(IF(S_8AccNO=$B21,IF(S_8FieldRank<=S_8Choice,S_8Amount,0),0)) -> 0 | R21: =SUM(IF(S_9AccNO=$B21,IF(S_9FieldRank<=S_9Choice,S_9Amount,0),0)) -> 200 | S21: =SUM(IF(S_10AccNO=$B21,IF(S_10FieldRank<=S_10Choice,S_10Amount,0),0)) -> 2776 | T21: =SUM(IF(S_12AccNO=$B21,IF(S_12FieldRank<=S_12Choice,S_12Amount,0),0)) -> 2290
B22: 442 | C22: Project Income - US | D22: 10000 | E22: 10620 | F22: =SUM(IF(S1AccNO=B22,IF(S1FieldRank<=S1Choice,S1Amount,0),0)) -> 0 | G22: =SUM(IF(S_2AccNO=$B22,IF(S_2FieldRank<=S_2Choice,S_2Amount,0),0)) -> 0 | H22: =SUM(IF(S_3AccNO=$B22,IF(S_3FieldRank<=S_3Choice,S_3Amount,0),0)) -> 0 | I22: =SUM(IF(S_4AccNO=$B22,IF(S_4FieldRank<=S_4Choice,S_4Amount,0),0)) -> 0 | J22: =SUM(IF(S_5AccNO=$B22,IF(S_5FieldRank<=S_5Choice,S_5Amount,0),0)) -> 120 | K22: =SUM(IF(S_11AccNO=$B22,IF(S_11FieldRank<=S_11Choice,S_11Amount,0),0)) -> 0 | L22: =SUM(IF(S_13AccNO=$B22,IF(S_13FieldRank<=S_13Choice,S_13Amount,0),0)) -> 0 | M22: =SUM(IF(S_14AccNO=$B22,IF(S_14FieldRank<=S_14Choice,S_14Amount,0),0)) -> 10000 | N22: Project Income - US | O22: =SUM(IF(S_6AccNO=$B22,IF(S_6FieldRank<=S_6Choice,S_6Amount,0),0)) -> 0 | P22: =SUM(IF(S_7AccNO=$B22,IF(S_7FieldRank<=S_7Choice,S_7Amount,0),0)) -> 0 | Q22: =SUM(IF(S_8AccNO=$B22,IF(S_8FieldRank<=S_8Choice,S_8Amount,0),0)) -> 0 | R22: =SUM(IF(S_9AccNO=$B22,IF(S_9FieldRank<=S_9Choice,S_9Amount,0),0)) -> 500 | S22: =SUM(IF(S_10AccNO=$B22,IF(S_10FieldRank<=S_10Choice,S_10Amount,0),0)) -> 0 | T22: =SUM(IF(S_12AccNO=$B22,IF(S_12FieldRank<=S_12Choice,S_12Amount,0),0)) -> 0
A23: 6200 | B23: 445 | C23: Tuition Income | D23: 50 | E23: 50 | F23: =SUM(IF(S1AccNO=B23,IF(S1FieldRank<=S1Choice,S1Amount,0),0)) -> 0 | G23: =SUM(IF(S_2AccNO=$B23,IF(S_2FieldRank<=S_2Choice,S_2Amount,0),0)) -> 0 | H23: =SUM(IF(S_3AccNO=$B23,IF(S_3FieldRank<=S_3Choice,S_3Amount,0),0)) -> 0 | I23: =SUM(IF(S_4AccNO=$B23,IF(S_4FieldRank<=S_4Choice,S_4Amount,0),0)) -> 0 | J23: =SUM(IF(S_5AccNO=$B23,IF(S_5FieldRank<=S_5Choice,S_5Amount,0),0)) -> 0 | K23: =SUM(IF(S_11AccNO=$B23,IF(S_11FieldRank<=S_11Choice,S_11Amount,0),0)) -> 0 | L23: =SUM(IF(S_13AccNO=$B23,IF(S_13FieldRank<=S_13Choice,S_13Amount,0),0)) -> 0 | M23: =SUM(IF(S_14AccNO=$B23,IF(S_14FieldRank<=S_14Choice,S_14Amount,0),0)) -> 0 | N23: Tuition Income | O23: =SUM(IF(S_6AccNO=$B23,IF(S_6FieldRank<=S_6Choice,S_6Amount,0),0)) -> 50 | P23: =SUM(IF(S_7AccNO=$B23,IF(S_7FieldRank<=S_7Choice,S_7Amount,0),0)) -> 0 | Q23: =SUM(IF(S_8AccNO=$B23,IF(S_8FieldRank<=S_8Choice,S_8Amount,0),0)) -> 0 | R23: =SUM(IF(S_9AccNO=$B23,IF(S_9FieldRank<=S_9Choice,S_9Amount,0),0)) -> 0 | S23: =SUM(IF(S_10AccNO=$B23,IF(S_10FieldRank<=S_10Choice,S_10Amount,0),0)) -> 0 | T23: =SUM(IF(S_12AccNO=$B23,IF(S_12FieldRank<=S_12Choice,S_12Amount,0),0)) -> 0
A24: 6500 | B24: 450 | C24: Interest Income | D24: 14200 | E24: 0 | F24: =SUM(IF(S1AccNO=B24,IF(S1FieldRank<=S1Choice,S1Amount,0),0)) -> 0 | G24: =SUM(IF(S_2AccNO=$B24,IF(S_2FieldRank<=S_2Choice,S_2Amount,0),0)) -> 0 | H24: =SUM(IF(S_3AccNO=$B24,IF(S_3FieldRank<=S_3Choice,S_3Amount,0),0)) -> 0 | I24: =SUM(IF(S_4AccNO=$B24,IF(S_4FieldRank<=S_4Choice,S_4Amount,0),0)) -> 0 | J24: =SUM(IF(S_5AccNO=$B24,IF(S_5FieldRank<=S_5Choice,S_5Amount,0),0)) -> 0 | K24: =SUM(IF(S_11AccNO=$B24,IF(S_11FieldRank<=S_11Choice,S_11Amount,0),0)) -> 0 | L24: =SUM(IF(S_13AccNO=$B24,IF(S_13FieldRank<=S_13Choice,S_13Amount,0),0)) -> 0 | M24: =SUM(IF(S_14AccNO=$B24,IF(S_14FieldRank<=S_14Choice,S_14Amount,0),0)) -> 0 | N24: Interest Income | O24: =SUM(IF(S_6AccNO=$B24,IF(S_6FieldRank<=S_6Choice,S_6Amount,0),0)) -> 0 | P24: =SUM(IF(S_7AccNO=$B24,IF(S_7FieldRank<=S_7Choice,S_7Amount,0),0)) -> 0 | Q24: =SUM(IF(S_8AccNO=$B24,IF(S_8FieldRank<=S_8Choice,S_8Amount,0),0)) -> 0 | R24: =SUM(IF(S_9AccNO=$B24,IF(S_9FieldRank<=S_9Choice,S_9Amount,0),0)) -> 0 | S24: =SUM(IF(S_10AccNO=$B24,IF(S_10FieldRank<=S_10Choice,S_10Amount,0),0)) -> 0 | T24: =SUM(IF(S_12AccNO=$B24,IF(S_12FieldRank<=S_12Choice,S_12Amount,0),0)) -> 0
B25: 460 | C25: Sales | D25: 800 | E25: 161200 | F25: =SUM(IF(S1AccNO=B25,IF(S1FieldRank<=S1Choice,S1Amount,0),0)) -> 0 | G25: =SUM(IF(S_2AccNO=$B25,IF(S_2FieldRank<=S_2Choice,S_2Amount,0),0)) -> 0 | H25: =SUM(IF(S_3AccNO=$B25,IF(S_3FieldRank<=S_3Choice,S_3Amount,0),0)) -> 0 | I25: =SUM(IF(S_4AccNO=$B25,IF(S_4FieldRank<=S_4Choice,S_4Amount,0),0)) -> 0 | J25: =SUM(IF(S_5AccNO=$B25,IF(S_5FieldRank<=S_5Choice,S_5Amount,0),0)) -> 0 | K25: =SUM(IF(S_11AccNO=$B25,IF(S_11FieldRank<=S_11Choice,S_11Amount,0),0)) -> 0 | L25: =SUM(IF(S_13AccNO=$B25,IF(S_13FieldRank<=S_13Choice,S_13Amount,0),0)) -> 0 | M25: =SUM(IF(S_14AccNO=$B25,IF(S_14FieldRank<=S_14Choice,S_14Amount,0),0)) -> 160400 | N25: Sales | O25: =SUM(IF(S_6AccNO=$B25,IF(S_6FieldRank<=S_6Choice,S_6Amount,0),0)) -> 800 | P25: =SUM(IF(S_7AccNO=$B25,IF(S_7FieldRank<=S_7Choice,S_7Amount,0),0)) -> 0 | Q25: =SUM(IF(S_8AccNO=$B25,IF(S_8FieldRank<=S_8Choice,S_8Amount,0),0)) -> 0 | R25: =SUM(IF(S_9AccNO=$B25,IF(S_9FieldRank<=S_9Choice,S_9Amount,0),0)) -> 0 | S25: =SUM(IF(S_10AccNO=$B25,IF(S_10FieldRank<=S_10Choice,S_10Amount,0),0)) -> 0 | T25: =SUM(IF(S_12AccNO=$B25,IF(S_12FieldRank<=S_12Choice,S_12Amount,0),0)) -> 0
A26: 6900 | B26: 455 | C26: Other income | D26: 481185 | E26: 173210 | F26: =SUM(IF(S1AccNO=B26,IF(S1FieldRank<=S1Choice,S1Amount,0),0)) -> 31375 | G26: =SUM(IF(S_2AccNO=$B26,IF(S_2FieldRank<=S_2Choice,S_2Amount,0),0)) -> 0 | H26: =SUM(IF(S_3AccNO=$B26,IF(S_3FieldRank<=S_3Choice,S_3Amount,0),0)) -> 0 | I26: =SUM(IF(S_4AccNO=$B26,IF(S_4FieldRank<=S_4Choice,S_4Amount,0),0)) -> 0 | J26: =SUM(IF(S_5AccNO=$B26,IF(S_5FieldRank<=S_5Choice,S_5Amount,0),0)) -> 0 | K26: =SUM(IF(S_11AccNO=$B26,IF(S_11FieldRank<=S_11Choice,S_11Amount,0),0)) -> 106935 | L26: =SUM(IF(S_13AccNO=$B26,IF(S_13FieldRank<=S_13Choice,S_13Amount,0),0)) -> 23940 | M26: =SUM(IF(S_14AccNO=$B26,IF(S_14FieldRank<=S_14Choice,S_14Amount,0),0)) -> 4010 | N26: Other income | O26: =SUM(IF(S_6AccNO=$B26,IF(S_6FieldRank<=S_6Choice,S_6Amount,0),0)) -> 0 | P26: =SUM(IF(S_7AccNO=$B26,IF(S_7FieldRank<=S_7Choice,S_7Amount,0),0)) -> 0 | Q26: =SUM(IF(S_8AccNO=$B26,IF(S_8FieldRank<=S_8Choice,S_8Amount,0),0)) -> 0 | R26: =SUM(IF(S_9AccNO=$B26,IF(S_9FieldRank<=S_9Choice,S_9Amount,0),0)) -> 6950 | S26: =SUM(IF(S_10AccNO=$B26,IF(S_10FieldRank<=S_10Choice,S_10Amount,0),0)) -> 0 | T26: =SUM(IF(S_12AccNO=$B26,IF(S_12FieldRank<=S_12Choice,S_12Amount,0),0)) -> 0
B27: 484 | C27: Operations Assessment | D27: 0.5 | E27: 0 | F27: =SUM(IF(S1AccNO=B27,IF(S1FieldRank<=S1Choice,S1Amount,0),0)) -> -118750.5 | G27: =SUM(IF(S_2AccNO=$B27,IF(S_2FieldRank<=S_2Choice,S_2Amount,0),0)) -> -1350 | H27: =SUM(IF(S_3AccNO=$B27,IF(S_3FieldRank<=S_3Choice,S_3Amount,0),0)) -> -8093.5 | I27: =SUM(IF(S_4AccNO=$B27,IF(S_4FieldRank<=S_4Choice,S_4Amount,0),0)) -> -13932.5 | J27: =SUM(IF(S_5AccNO=$B27,IF(S_5FieldRank<=S_5Choice,S_5Amount,0),0)) -> -810 | K27: =SUM(IF(S_11AccNO=$B27,IF(S_11FieldRank<=S_11Choice,S_11Amount,0),0)) -> -6180 | L27: =SUM(IF(S_13AccNO=$B27,IF(S_13FieldRank<=S_13Choice,S_13Amount,0),0)) -> -2085 | M27: =SUM(IF(S_14AccNO=$B27,IF(S_14FieldRank<=S_14Choice,S_14Amount,0),0)) -> -1500 | N27: Operations Assessment | O27: =SUM(IF(S_6AccNO=$B27,IF(S_6FieldRank<=S_6Choice,S_6Amount,0),0)) -> -13827.5 | P27: =SUM(IF(S_7AccNO=$B27,IF(S_7FieldRank<=S_7Choice,S_7Amount,0),0)) -> 0 | Q27: =SUM(IF(S_8AccNO=$B27,IF(S_8FieldRank<=S_8Choice,S_8Amount,0),0)) -> -2810 | R27: =SUM(IF(S_9AccNO=$B27,IF(S_9FieldRank<=S_9Choice,S_9Amount,0),0)) -> 182658 | S27: =SUM(IF(S_10AccNO=$B27,IF(S_10FieldRank<=S_10Choice,S_10Amount,0),0)) -> -11930 | T27: =SUM(IF(S_12AccNO=$B27,IF(S_12FieldRank<=S_12Choice,S_12Amount,0),0)) -> -1389
K28: =SUM(IF(S_11AccNO=$B28,IF(S_11FieldRank<=S_11Choice,S_11Amount,0),0)) -> 0 | M28: =SUM(IF(S_14AccNO=$B28,IF(S_14FieldRank<=S_14Choice,S_14Amount,0),0)) -> 0
A29: 8608 | B29: 503 | C29: Advertising | D29: 5190 | E29: =SUM(F29:T29) -> 3940 | F29: =SUM(IF(S1AccNO=B29,IF(S1FieldRank<=S1Choice,S1Amount,0),0)) -> 0 | G29: =SUM(IF(S_2AccNO=$B29,IF(S_2FieldRank<=S_2Choice,S_2Amount,0),0)) -> 400 | H29: =SUM(IF(S_3AccNO=$B29,IF(S_3FieldRank<=S_3Choice,S_3Amount,0),0)) -> 0 | I29: =SUM(IF(S_4AccNO=$B29,IF(S_4FieldRank<=S_4Choice,S_4Amount,0),0)) -> 0 | J29: =SUM(IF(S_5AccNO=$B29,IF(S_5FieldRank<=S_5Choice,S_5Amount,0),0)) -> 100 | K29: =SUM(IF(S_11AccNO=$B29,IF(S_11FieldRank<=S_11Choice,S_11Amount,0),0)) -> 3240 | L29: =SUM(IF(S_13AccNO=$B29,IF(S_13FieldRank<=S_13Choice,S_13Amount,0),0)) -> 0 | M29: =SUM(IF(S_14AccNO=$B29,IF(S_14FieldRank<=S_14Choice,S_14Amount,0),0)) -> 0 | N29: =C29 -> Advertising | O29: =SUM(IF(S_6AccNO=$B29,IF(S_6FieldRank<=S_6Choice,S_6Amount,0),0)) -> 0 | P29: =SUM(IF(S_7AccNO=$B29,IF(S_7FieldRank<=S_7Choice,S_7Amount,0),0)) -> 0 | Q29: =SUM(IF(S_8AccNO=$B29,IF(S_8FieldRank<=S_8Choice,S_8Amount,0),0)) -> 0 | R29: =SUM(IF(S_9AccNO=$B29,IF(S_9FieldRank<=S_9Choice,S_9Amount,0),0)) -> 0 | S29: =SUM(IF(S_10AccNO=$B29,IF(S_10FieldRank<=S_10Choice,S_10Amount,0),0)) -> 0 | T29: =SUM(IF(S_12AccNO=$B29,IF(S_12FieldRank<=S_12Choice,S_12Amount,0),0)) -> 200
A30: 8975 | B30: 508 | C30: Depreciation Expense | D30: 0 | E30: 0 | F30: =SUM(IF(S1AccNO=B30,IF(S1FieldRank<=S1Choice,S1Amount,0),0)) -> 0 | G30: =SUM(IF(S_2AccNO=$B30,IF(S_2FieldRank<=S_2Choice,S_2Amount,0),0)) -> 0 | H30: =SUM(IF(S_3AccNO=$B30,IF(S_3FieldRank<=S_3Choice,S_3Amount,0),0)) -> 0 | I30: =SUM(IF(S_4AccNO=$B30,IF(S_4FieldRank<=S_4Choice,S_4Amount,0),0)) -> 0 | J30: =SUM(IF(S_5AccNO=$B30,IF(S_5FieldRank<=S_5Choice,S_5Amount,0),0)) -> 0 | K30: =SUM(IF(S_11AccNO=$B30,IF(S_11FieldRank<=S_11Choice,S_11Amount,0),0)) -> 0 | L30: =SUM(IF(S_13AccNO=$B30,IF(S_13FieldRank<=S_13Choice,S_13Amount,0),0)) -> 0 | M30: =SUM(IF(S_14AccNO=$B30,IF(S_14FieldRank<=S_14Choice,S_14Amount,0),0)) -> 0 | N30: Depreciation Expense | O30: =SUM(IF(S_6AccNO=$B30,IF(S_6FieldRank<=S_6Choice,S_6Amount,0),0)) -> 0 | P30: =SUM(IF(S_7AccNO=$B30,IF(S_7FieldRank<=S_7Choice,S_7Amount,0),0)) -> 0 | Q30: =SUM(IF(S_8AccNO=$B30,IF(S_8FieldRank<=S_8Choice,S_8Amount,0),0)) -> 0 | R30: =SUM(IF(S_9AccNO=$B30,IF(S_9FieldRank<=S_9Choice,S_9Amount,0),0)) -> 0 | S30: =SUM(IF(S_10AccNO=$B30,IF(S_10FieldRank<=S_10Choice,S_10Amount,0),0)) -> 0 | T30: =SUM(IF(S_12AccNO=$B30,IF(S_12FieldRank<=S_12Choice,S_12Amount,0),0)) -> 0
A31: 8510 | B31: 511 | C31: Small Equip. Purchase | D31: 22950 | E31: 10715 | F31: =SUM(IF(S1AccNO=B31,IF(S1FieldRank<=S1Choice,S1Amount,0),0)) -> 0 | G31: =SUM(IF(S_2AccNO=$B31,IF(S_2FieldRank<=S_2Choice,S_2Amount,0),0)) -> 0 | H31: =SUM(IF(S_3AccNO=$B31,IF(S_3FieldRank<=S_3Choice,S_3Amount,0),0)) -> 0 | I31: =SUM(IF(S_4AccNO=$B31,IF(S_4FieldRank<=S_4Choice,S_4Amount,0),0)) -> 0 | J31: =SUM(IF(S_5AccNO=$B31,IF(S_5FieldRank<=S_5Choice,S_5Amount,0),0)) -> 0 | K31: =SUM(IF(S_11AccNO=$B31,IF(S_11FieldRank<=S_11Choice,S_11Amount,0),0)) -> 7300 | L31: =SUM(IF(S_13AccNO=$B31,IF(S_13FieldRank<=S_13Choice,S_13Amount,0),0)) -> 0 | M31: =SUM(IF(S_14AccNO=$B31,IF(S_14FieldRank<=S_14Choice,S_14Amount,0),0)) -> 0 | N31: Small Equip. Purchase | O31: =SUM(IF(S_6AccNO=$B31,IF(S_6FieldRank<=S_6Choice,S_6Amount,0),0)) -> 0 | P31: =SUM(IF(S_7AccNO=$B31,IF(S_7FieldRank<=S_7Choice,S_7Amount,0),0)) -> 0 | Q31: =SUM(IF(S_8AccNO=$B31,IF(S_8FieldRank<=S_8Choice,S_8Amount,0),0)) -> 0 | R31: =SUM(IF(S_9AccNO=$B31,IF(S_9FieldRank<=S_9Choice,S_9Amount,0),0)) -> 3415 | S31: =SUM(IF(S_10AccNO=$B31,IF(S_10FieldRank<=S_10Choice,S_10Amount,0),0)) -> 0 | T31: =SUM(IF(S_12AccNO=$B31,IF(S_12FieldRank<=S_12Choice,S_12Amount,0),0)) -> 0
A32: 8803 | B32: 515 | C32: Food for Outreach/Meetings | D32: 41450 | E32: 33300 | F32: =SUM(IF(S1AccNO=B32,IF(S1FieldRank<=S1Choice,S1Amount,0),0)) -> 0 | G32: =SUM(IF(S_2AccNO=$B32,IF(S_2FieldRank<=S_2Choice,S_2Amount,0),0)) -> 0 | H32: =SUM(IF(S_3AccNO=$B32,IF(S_3FieldRank<=S_3Choice,S_3Amount,0),0)) -> 0 | I32: =SUM(IF(S_4AccNO=$B32,IF(S_4FieldRank<=S_4Choice,S_4Amount,0),0)) -> 0 | J32: =SUM(IF(S_5AccNO=$B32,IF(S_5FieldRank<=S_5Choice,S_5Amount,0),0)) -> 1950 | K32: =SUM(IF(S_11AccNO=$B32,IF(S_11FieldRank<=S_11Choice,S_11Amount,0),0)) -> 23250 | L32: =SUM(IF(S_13AccNO=$B32,IF(S_13FieldRank<=S_13Choice,S_13Amount,0),0)) -> 5400 | M32: =SUM(IF(S_14AccNO=$B32,IF(S_14FieldRank<=S_14Choice,S_14Amount,0),0)) -> 0 | N32: Food for Outreach/Meetings | O32: =SUM(IF(S_6AccNO=$B32,IF(S_6FieldRank<=S_6Choice,S_6Amount,0),0)) -> 0 | P32: =SUM(IF(S_7AccNO=$B32,IF(S_7FieldRank<=S_7Choice,S_7Amount,0),0)) -> 0 | Q32: =SUM(IF(S_8AccNO=$B32,IF(S_8FieldRank<=S_8Choice,S_8Amount,0),0)) -> 300 | R32: =SUM(IF(S_9AccNO=$B32,IF(S_9FieldRank<=S_9Choice,S_9Amount,0),0)) -> 2100 | S32: =SUM(IF(S_10AccNO=$B32,IF(S_10FieldRank<=S_10Choice,S_10Amount,0),0)) -> 200 | T32: =SUM(IF(S_12AccNO=$B32,IF(S_12FieldRank<=S_12Choice,S_12Amount,0),0)) -> 100
A33: 8951 | B33: 517 | C33: Gifts to Affiliated Org. | D33: 108800 | E33: 253379 | F33: =SUM(IF(S1AccNO=B33,IF(S1FieldRank<=S1Choice,S1Amount,0),0)) -> 0 | G33: =SUM(IF(S_2AccNO=$B33,IF(S_2FieldRank<=S_2Choice,S_2Amount,0),0)) -> 0 | H33: =SUM(IF(S_3AccNO=$B33,IF(S_3FieldRank<=S_3Choice,S_3Amount,0),0)) -> 0 | I33: =SUM(IF(S_4AccNO=$B33,IF(S_4FieldRank<=S_4Choice,S_4Amount,0),0)) -> 0 | J33: =SUM(IF(S_5AccNO=$B33,IF(S_5FieldRank<=S_5Choice,S_5Amount,0),0)) -> 0 | K33: =SUM(IF(S_11AccNO=$B33,IF(S_11FieldRank<=S_11Choice,S_11Amount,0),0)) -> 0 | L33: =SUM(IF(S_13AccNO=$B33,IF(S_13FieldRank<=S_13Choice,S_13Amount,0),0)) -> 0 | M33: =SUM(IF(S_14AccNO=$B33,IF(S_14FieldRank<=S_14Choice,S_14Amount,0),0)) -> 0 | N33: Gifts to Affiliated Org. | O33: =SUM(IF(S_6AccNO=$B33,IF(S_6FieldRank<=S_6Choice,S_6Amount,0),0)) -> 0 | P33: =SUM(IF(S_7AccNO=$B33,IF(S_7FieldRank<=S_7Choice,S_7Amount,0),0)) -> 102949 | Q33: =SUM(IF(S_8AccNO=$B33,IF(S_8FieldRank<=S_8Choice,S_8Amount,0),0)) -> 0 | R33: =SUM(IF(S_9AccNO=$B33,IF(S_9FieldRank<=S_9Choice,S_9Amount,0),0)) -> 141630 | S33: =SUM(IF(S_10AccNO=$B33,IF(S_10FieldRank<=S_10Choice,S_10Amount,0),0)) -> 8800 | T33: =SUM(IF(S_12AccNO=$B33,IF(S_12FieldRank<=S_12Choice,S_12Amount,0),0)) -> 0
A34: 8403 | B34: 519 | C34: Bldg, Equip & Liab. Ins. | D34: 23230 | E34: 22008 | F34: =SUM(IF(S1AccNO=B34,IF(S1FieldRank<=S1Choice,S1Amount,0),0)) -> 0 | G34: =SUM(IF(S_2AccNO=$B34,IF(S_2FieldRank<=S_2Choice,S_2Amount,0),0)) -> 150 | H34: =SUM(IF(S_3AccNO=$B34,IF(S_3FieldRank<=S_3Choice,S_3Amount,0),0)) -> 150 | I34: =SUM(IF(S_4AccNO=$B34,IF(S_4FieldRank<=S_4Choice,S_4Amount,0),0)) -> 0 | J34: =SUM(IF(S_5AccNO=$B34,IF(S_5FieldRank<=S_5Choice,S_5Amount,0),0)) -> 0 | K34: =SUM(IF(S_11AccNO=$B34,IF(S_11FieldRank<=S_11Choice,S_11Amount,0),0)) -> 16125 | L34: =SUM(IF(S_13AccNO=$B34,IF(S_13FieldRank<=S_13Choice,S_13Amount,0),0)) -> 0 | M34: =SUM(IF(S_14AccNO=$B34,IF(S_14FieldRank<=S_14Choice,S_14Amount,0),0)) -> 0 | N34: Bldg, Equip & Liab. Ins. | O34: =SUM(IF(S_6AccNO=$B34,IF(S_6FieldRank<=S_6Choice,S_6Amount,0),0)) -> 0 | P34: =SUM(IF(S_7AccNO=$B34,IF(S_7FieldRank<=S_7Choice,S_7Amount,0),0)) -> 0 | Q34: =SUM(IF(S_8AccNO=$B34,IF(S_8FieldRank<=S_8Choice,S_8Amount,0),0)) -> 0 | R34: =SUM(IF(S_9AccNO=$B34,IF(S_9FieldRank<=S_9Choice,S_9Amount,0),0)) -> 5583 | S34: =SUM(IF(S_10AccNO=$B34,IF(S_10FieldRank<=S_10Choice,S_10Amount,0),0)) -> 0 | T34: =SUM(IF(S_12AccNO=$B34,IF(S_12FieldRank<=S_12Choice,S_12Amount,0),0)) -> 0
A35: 8008 | B35: 521 | C35: Audit & Legal Fees | D35: 14100 | E35: 14100 | F35: =SUM(IF(S1AccNO=B35,IF(S1FieldRank<=S1Choice,S1Amount,0),0)) -> 0 | G35: =SUM(IF(S_2AccNO=$B35,IF(S_2FieldRank<=S_2Choice,S_2Amount,0),0)) -> 0 | H35: =SUM(IF(S_3AccNO=$B35,IF(S_3FieldRank<=S_3Choice,S_3Amount,0),0)) -> 0 | I35: =SUM(IF(S_4AccNO=$B35,IF(S_4FieldRank<=S_4Choice,S_4Amount,0),0)) -> 0 | J35: =SUM(IF(S_5AccNO=$B35,IF(S_5FieldRank<=S_5Choice,S_5Amount,0),0)) -> 0 | K35: =SUM(IF(S_11AccNO=$B35,IF(S_11FieldRank<=S_11Choice,S_11Amount,0),0)) -> 0 | L35: =SUM(IF(S_13AccNO=$B35,IF(S_13FieldRank<=S_13Choice,S_13Amount,0),0)) -> 0 | M35: =SUM(IF(S_14AccNO=$B35,IF(S_14FieldRank<=S_14Choice,S_14Amount,0),0)) -> 0 | N35: Audit & Legal Fees | O35: =SUM(IF(S_6AccNO=$B35,IF(S_6FieldRank<=S_6Choice,S_6Amount,0),0)) -> 0 | P35: =SUM(IF(S_7AccNO=$B35,IF(S_7FieldRank<=S_7Choice,S_7Amount,0),0)) -> 0 | Q35: =SUM(IF(S_8AccNO=$B35,IF(S_8FieldRank<=S_8Choice,S_8Amount,0),0)) -> 0 | R35: =SUM(IF(S_9AccNO=$B35,IF(S_9FieldRank<=S_9Choice,S_9Amount,0),0)) -> 13500 | S35: =SUM(IF(S_10AccNO=$B35,IF(S_10FieldRank<=S_10Choice,S_10Amount,0),0)) -> 600 | T35: =SUM(IF(S_12AccNO=$B35,IF(S_12FieldRank<=S_12Choice,S_12Amount,0),0)) -> 0
A36: 8606 | B36: 523 | C36: Subscription & Perd. | D36: 0 | E36: 0 | F36: =SUM(IF(S1AccNO=B36,IF(S1FieldRank<=S1Choice,S1Amount,0),0)) -> 0 | G36: =SUM(IF(S_2AccNO=$B36,IF(S_2FieldRank<=S_2Choice,S_2Amount,0),0)) -> 0 | H36: =SUM(IF(S_3AccNO=$B36,IF(S_3FieldRank<=S_3Choice,S_3Amount,0),0)) -> 0 | I36: =SUM(IF(S_4AccNO=$B36,IF(S_4FieldRank<=S_4Choice,S_4Amount,0),0)) -> 0 | J36: =SUM(IF(S_5AccNO=$B36,IF(S_5FieldRank<=S_5Choice,S_5Amount,0),0)) -> 0 | K36: =SUM(IF(S_11AccNO=$B36,IF(S_11FieldRank<=S_11Choice,S_11Amount,0),0)) -> 0 | L36: =SUM(IF(S_13AccNO=$B36,IF(S_13FieldRank<=S_13Choice,S_13Amount,0),0)) -> 0 | M36: =SUM(IF(S_14AccNO=$B36,IF(S_14FieldRank<=S_14Choice,S_14Amount,0),0)) -> 0 | N36: Subscription & Perd. | O36: =SUM(IF(S_6AccNO=$B36,IF(S_6FieldRank<=S_6Choice,S_6Amount,0),0)) -> 0 | P36: =SUM(IF(S_7AccNO=$B36,IF(S_7FieldRank<=S_7Choice,S_7Amount,0),0)) -> 0 | Q36: =SUM(IF(S_8AccNO=$B36,IF(S_8FieldRank<=S_8Choice,S_8Amount,0),0)) -> 0 | R36: =SUM(IF(S_9AccNO=$B36,IF(S_9FieldRank<=S_9Choice,S_9Amount,0),0)) -> 0 | S36: =SUM(IF(S_10AccNO=$B36,IF(S_10FieldRank<=S_10Choice,S_10Amount,0),0)) -> 0 | T36: =SUM(IF(S_12AccNO=$B36,IF(S_12FieldRank<=S_12Choice,S_12Amount,0),0)) -> 0
A37: 8413 | B37: 525 | C37: Bldg. Maint. | D37: 7850 | E37: 7340 | F37: =SUM(IF(S1AccNO=B37,IF(S1FieldRank<=S1Choice,S1Amount,0),0)) -> 0 | G37: =SUM(IF(S_2AccNO=$B37,IF(S_2FieldRank<=S_2Choice,S_2Amount,0),0)) -> 0 | H37: =SUM(IF(S_3AccNO=$B37,IF(S_3FieldRank<=S_3Choice,S_3Amount,0),0)) -> 0 | I37: =SUM(IF(S_4AccNO=$B37,IF(S_4FieldRank<=S_4Choice,S_4Amount,0),0)) -> 0 | J37: =SUM(IF(S_5AccNO=$B37,IF(S_5FieldRank<=S_5Choice,S_5Amount,0),0)) -> 0 | K37: =SUM(IF(S_11AccNO=$B37,IF(S_11FieldRank<=S_11Choice,S_11Amount,0),0)) -> 4000 | L37: =SUM(IF(S_13AccNO=$B37,IF(S_13FieldRank<=S_13Choice,S_13Amount,0),0)) -> 540 | M37: =SUM(IF(S_14AccNO=$B37,IF(S_14FieldRank<=S_14Choice,S_14Amount,0),0)) -> 0 | N37: Bldg. Maint. | O37: =SUM(IF(S_6AccNO=$B37,IF(S_6FieldRank<=S_6Choice,S_6Amount,0),0)) -> 0 | P37: =SUM(IF(S_7AccNO=$B37,IF(S_7FieldRank<=S_7Choice,S_7Amount,0),0)) -> 0 | Q37: =SUM(IF(S_8AccNO=$B37,IF(S_8FieldRank<=S_8Choice,S_8Amount,0),0)) -> 0 | R37: =SUM(IF(S_9AccNO=$B37,IF(S_9FieldRank<=S_9Choice,S_9Amount,0),0)) -> 2800 | S37: =SUM(IF(S_10AccNO=$B37,IF(S_10FieldRank<=S_10Choice,S_10Amount,0),0)) -> 0 | T37: =SUM(IF(S_12AccNO=$B37,IF(S_12FieldRank<=S_12Choice,S_12Amount,0),0)) -> 0
A38: 8502 | B38: 527 | C38: Equip. Maint. | D38: 8370 | E38: 8270 | F38: =SUM(IF(S1AccNO=B38,IF(S1FieldRank<=S1Choice,S1Amount,0),0)) -> 0 | G38: =SUM(IF(S_2AccNO=$B38,IF(S_2FieldRank<=S_2Choice,S_2Amount,0),0)) -> 70 | H38: =SUM(IF(S_3AccNO=$B38,IF(S_3FieldRank<=S_3Choice,S_3Amount,0),0)) -> 0 | I38: =SUM(IF(S_4AccNO=$B38,IF(S_4FieldRank<=S_4Choice,S_4Amount,0),0)) -> 0 | J38: =SUM(IF(S_5AccNO=$B38,IF(S_5FieldRank<=S_5Choice,S_5Amount,0),0)) -> 0 | K38: =SUM(IF(S_11AccNO=$B38,IF(S_11FieldRank<=S_11Choice,S_11Amount,0),0)) -> 3000 | L38: =SUM(IF(S_13AccNO=$B38,IF(S_13FieldRank<=S_13Choice,S_13Amount,0),0)) -> 0 | M38: =SUM(IF(S_14AccNO=$B38,IF(S_14FieldRank<=S_14Choice,S_14Amount,0),0)) -> 0 | N38: Equip. Maint. | O38: =SUM(IF(S_6AccNO=$B38,IF(S_6FieldRank<=S_6Choice,S_6Amount,0),0)) -> 900 | P38: =SUM(IF(S_7AccNO=$B38,IF(S_7FieldRank<=S_7Choice,S_7Amount,0),0)) -> 0 | Q38: =SUM(IF(S_8AccNO=$B38,IF(S_8FieldRank<=S_8Choice,S_8Amount,0),0)) -> 0 | R38: =SUM(IF(S_9AccNO=$B38,IF(S_9FieldRank<=S_9Choice,S_9Amount,0),0)) -> 4300 | S38: =SUM(IF(S_10AccNO=$B38,IF(S_10FieldRank<=S_10Choice,S_10Amount,0),0)) -> 0 | T38: =SUM(IF(S_12AccNO=$B38,IF(S_12FieldRank<=S_12Choice,S_12Amount,0),0)) -> 0
A39: 8941 | B39: 529 | C39: Banking Charges | D39: 700 | E39: 700 | F39: =SUM(IF(S1AccNO=B39,IF(S1FieldRank<=S1Choice,S1Amount,0),0)) -> 0 | G39: =SUM(IF(S_2AccNO=$B39,IF(S_2FieldRank<=S_2Choice,S_2Amount,0),0)) -> 0 | H39: =SUM(IF(S_3AccNO=$B39,IF(S_3FieldRank<=S_3Choice,S_3Amount,0),0)) -> 0 | I39: =SUM(IF(S_4AccNO=$B39,IF(S_4FieldRank<=S_4Choice,S_4Amount,0),0)) -> 0 | J39: =SUM(IF(S_5AccNO=$B39,IF(S_5FieldRank<=S_5Choice,S_5Amount,0),0)) -> 0 | K39: =SUM(IF(S_11AccNO=$B39,IF(S_11FieldRank<=S_11Choice,S_11Amount,0),0)) -> 0 | L39: =SUM(IF(S_13AccNO=$B39,IF(S_13FieldRank<=S_13Choice,S_13Amount,0),0)) -> 0 | M39: =SUM(IF(S_14AccNO=$B39,IF(S_14FieldRank<=S_14Choice,S_14Amount,0),0)) -> 0 | N39: Banking Charges | O39: =SUM(IF(S_6AccNO=$B39,IF(S_6FieldRank<=S_6Choice,S_6Amount,0),0)) -> 0 | P39: =SUM(IF(S_7AccNO=$B39,IF(S_7FieldRank<=S_7Choice,S_7Amount,0),0)) -> 0 | Q39: =SUM(IF(S_8AccNO=$B39,IF(S_8FieldRank<=S_8Choice,S_8Amount,0),0)) -> 0 | R39: =SUM(IF(S_9AccNO=$B39,IF(S_9FieldRank<=S_9Choice,S_9Amount,0),0)) -> 700 | S39: =SUM(IF(S_10AccNO=$B39,IF(S_10FieldRank<=S_10Choice,S_10Amount,0),0)) -> 0 | T39: =SUM(IF(S_12AccNO=$B39,IF(S_12FieldRank<=S_12Choice,S_12Amount,0),0)) -> 0
A40: 8902 | B40: 530 | C40: Royalties/Fees | D40: 11700 | E40: 9795 | F40: =SUM(IF(S1AccNO=B40,IF(S1FieldRank<=S1Choice,S1Amount,0),0)) -> 400 | G40: =SUM(IF(S_2AccNO=$B40,IF(S_2FieldRank<=S_2Choice,S_2Amount,0),0)) -> 280 | H40: =SUM(IF(S_3AccNO=$B40,IF(S_3FieldRank<=S_3Choice,S_3Amount,0),0)) -> 0 | I40: =SUM(IF(S_4AccNO=$B40,IF(S_4FieldRank<=S_4Choice,S_4Amount,0),0)) -> 0 | J40: =SUM(IF(S_5AccNO=$B40,IF(S_5FieldRank<=S_5Choice,S_5Amount,0),0)) -> 4965 | K40: =SUM(IF(S_11AccNO=$B40,IF(S_11FieldRank<=S_11Choice,S_11Amount,0),0)) -> 240 | L40: =SUM(IF(S_13AccNO=$B40,IF(S_13FieldRank<=S_13Choice,S_13Amount,0),0)) -> 600 | M40: =SUM(IF(S_14AccNO=$B40,IF(S_14FieldRank<=S_14Choice,S_14Amount,0),0)) -> 0 | N40: Royalties/Fees | O40: =SUM(IF(S_6AccNO=$B40,IF(S_6FieldRank<=S_6Choice,S_6Amount,0),0)) -> 40 | P40: =SUM(IF(S_7AccNO=$B40,IF(S_7FieldRank<=S_7Choice,S_7Amount,0),0)) -> 500 | Q40: =SUM(IF(S_8AccNO=$B40,IF(S_8FieldRank<=S_8Choice,S_8Amount,0),0)) -> 0 | R40: =SUM(IF(S_9AccNO=$B40,IF(S_9FieldRank<=S_9Choice,S_9Amount,0),0)) -> 2045 | S40: =SUM(IF(S_10AccNO=$B40,IF(S_10FieldRank<=S_10Choice,S_10Amount,0),0)) -> 725 | T40: =SUM(IF(S_12AccNO=$B40,IF(S_12FieldRank<=S_12Choice,S_12Amount,0),0)) -> 0
A41: 8940 | B41: 531 | C41: Moving Expense | D41: 0 | E41: 0 | F41: =SUM(IF(S1AccNO=B41,IF(S1FieldRank<=S1Choice,S1Amount,0),0)) -> 0 | G41: =SUM(IF(S_2AccNO=$B41,IF(S_2FieldRank<=S_2Choice,S_2Amount,0),0)) -> 0 | H41: =SUM(IF(S_3AccNO=$B41,IF(S_3FieldRank<=S_3Choice,S_3Amount,0),0)) -> 0 | I41: =SUM(IF(S_4AccNO=$B41,IF(S_4FieldRank<=S_4Choice,S_4Amount,0),0)) -> 0 | J41: =SUM(IF(S_5AccNO=$B41,IF(S_5FieldRank<=S_5Choice,S_5Amount,0),0)) -> 0 | K41: =SUM(IF(S_11AccNO=$B41,IF(S_11FieldRank<=S_11Choice,S_11Amount,0),0)) -> 0 | L41: =SUM(IF(S_13AccNO=$B41,IF(S_13FieldRank<=S_13Choice,S_13Amount,0),0)) -> 0 | M41: =SUM(IF(S_14AccNO=$B41,IF(S_14FieldRank<=S_14Choice,S_14Amount,0),0)) -> 0 | N41: Moving Expense | O41: =SUM(IF(S_6AccNO=$B41,IF(S_6FieldRank<=S_6Choice,S_6Amount,0),0)) -> 0 | P41: =SUM(IF(S_7AccNO=$B41,IF(S_7FieldRank<=S_7Choice,S_7Amount,0),0)) -> 0 | Q41: =SUM(IF(S_8AccNO=$B41,IF(S_8FieldRank<=S_8Choice,S_8Amount,0),0)) -> 0 | R41: =SUM(IF(S_9AccNO=$B41,IF(S_9FieldRank<=S_9Choice,S_9Amount,0),0)) -> 0 | S41: =SUM(IF(S_10AccNO=$B41,IF(S_10FieldRank<=S_10Choice,S_10Amount,0),0)) -> 0 | T41: =SUM(IF(S_12AccNO=$B41,IF(S_12FieldRank<=S_12Choice,S_12Amount,0),0)) -> 0
A42: 8106 | B42: 532 | C42: Office Supply | D42: 5200 | E42: 4460 | F42: =SUM(IF(S1AccNO=B42,IF(S1FieldRank<=S1Choice,S1Amount,0),0)) -> 0 | G42: =SUM(IF(S_2AccNO=$B42,IF(S_2FieldRank<=S_2Choice,S_2Amount,0),0)) -> 0 | H42: =SUM(IF(S_3AccNO=$B42,IF(S_3FieldRank<=S_3Choice,S_3Amount,0),0)) -> 0 | I42: =SUM(IF(S_4AccNO=$B42,IF(S_4FieldRank<=S_4Choice,S_4Amount,0),0)) -> 0 | J42: =SUM(IF(S_5AccNO=$B42,IF(S_5FieldRank<=S_5Choice,S_5Amount,0),0)) -> 50 | K42: =SUM(IF(S_11AccNO=$B42,IF(S_11FieldRank<=S_11Choice,S_11Amount,0),0)) -> 1250 | L42: =SUM(IF(S_13AccNO=$B42,IF(S_13FieldRank<=S_13Choice,S_13Amount,0),0)) -> 360 | M42: =SUM(IF(S_14AccNO=$B42,IF(S_14FieldRank<=S_14Choice,S_14Amount,0),0)) -> 0 | N42: Office Supply | O42: =SUM(IF(S_6AccNO=$B42,IF(S_6FieldRank<=S_6Choice,S_6Amount,0),0)) -> 1000 | P42: =SUM(IF(S_7AccNO=$B42,IF(S_7FieldRank<=S_7Choice,S_7Amount,0),0)) -> 0 | Q42: =SUM(IF(S_8AccNO=$B42,IF(S_8FieldRank<=S_8Choice,S_8Amount,0),0)) -> 0 | R42: =SUM(IF(S_9AccNO=$B42,IF(S_9FieldRank<=S_9Choice,S_9Amount,0),0)) -> 1800 | S42: =SUM(IF(S_10AccNO=$B42,IF(S_10FieldRank<=S_10Choice,S_10Amount,0),0)) -> 0 | T42: =SUM(IF(S_12AccNO=$B42,IF(S_12FieldRank<=S_12Choice,S_12Amount,0),0)) -> 0
A43: 8301 | B43: 533 | C43: Postage & Parcels | D43: 27895 | E43: =SUM(F43:T43) -> 29345 | F43: =SUM(IF(S1AccNO=B43,IF(S1FieldRank<=S1Choice,S1Amount,0),0)) -> 0 | G43: =SUM(IF(S_2AccNO=$B43,IF(S_2FieldRank<=S_2Choice,S_2Amount,0),0)) -> 0 | H43: =SUM(IF(S_3AccNO=$B43,IF(S_3FieldRank<=S_3Choice,S_3Amount,0),0)) -> 0 | I43: =SUM(IF(S_4AccNO=$B43,IF(S_4FieldRank<=S_4Choice,S_4Amount,0),0)) -> 0 | J43: =SUM(IF(S_5AccNO=$B43,IF(S_5FieldRank<=S_5Choice,S_5Amount,0),0)) -> 0 | K43: =SUM(IF(S_11AccNO=$B43,IF(S_11FieldRank<=S_11Choice,S_11Amount,0),0)) -> 1520 | L43: =SUM(IF(S_13AccNO=$B43,IF(S_13FieldRank<=S_13Choice,S_13Amount,0),0)) -> 0 | M43: =SUM(IF(S_14AccNO=$B43,IF(S_14FieldRank<=S_14Choice,S_14Amount,0),0)) -> 0 | N43: Postage & Parcels | O43: =SUM(IF(S_6AccNO=$B43,IF(S_6FieldRank<=S_6Choice,S_6Amount,0),0)) -> 250 | P43: =SUM(IF(S_7AccNO=$B43,IF(S_7FieldRank<=S_7Choice,S_7Amount,0),0)) -> 0 | Q43: =SUM(IF(S_8AccNO=$B43,IF(S_8FieldRank<=S_8Choice,S_8Amount,0),0)) -> 0 | R43: =SUM(IF(S_9AccNO=$B43,IF(S_9FieldRank<=S_9Choice,S_9Amount,0),0)) -> 3500 | S43: =SUM(IF(S_10AccNO=$B43,IF(S_10FieldRank<=S_10Choice,S_10Amount,0),0)) -> 75 | T43: =SUM(IF(S_12AccNO=$B43,IF(S_12FieldRank<=S_12Choice,S_12Amount,0),0)) -> 24000
A44: 8803 | B44: 537 | C44: Staff Training | D44: 9085 | E44: 9650 | F44: =SUM(IF(S1AccNO=B44,IF(S1FieldRank<=S1Choice,S1Amount,0),0)) -> 510 | G44: =SUM(IF(S_2AccNO=$B44,IF(S_2FieldRank<=S_2Choice,S_2Amount,0),0)) -> 900 | H44: =SUM(IF(S_3AccNO=$B44,IF(S_3FieldRank<=S_3Choice,S_3Amount,0),0)) -> 60 | I44: =SUM(IF(S_4AccNO=$B44,IF(S_4FieldRank<=S_4Choice,S_4Amount,0),0)) -> 90 | J44: =SUM(IF(S_5AccNO=$B44,IF(S_5FieldRank<=S_5Choice,S_5Amount,0),0)) -> 0 | K44: =SUM(IF(S_11AccNO=$B44,IF(S_11FieldRank<=S_11Choice,S_11Amount,0),0)) -> 1000 | L44: =SUM(IF(S_13AccNO=$B44,IF(S_13FieldRank<=S_13Choice,S_13Amount,0),0)) -> 1000 | M44: =SUM(IF(S_14AccNO=$B44,IF(S_14FieldRank<=S_14Choice,S_14Amount,0),0)) -> 0 | N44: Staff Training | O44: =SUM(IF(S_6AccNO=$B44,IF(S_6FieldRank<=S_6Choice,S_6Amount,0),0)) -> 45 | P44: =SUM(IF(S_7AccNO=$B44,IF(S_7FieldRank<=S_7Choice,S_7Amount,0),0)) -> 0 | Q44: =SUM(IF(S_8AccNO=$B44,IF(S_8FieldRank<=S_8Choice,S_8Amount,0),0)) -> 3950 | R44: =SUM(IF(S_9AccNO=$B44,IF(S_9FieldRank<=S_9Choice,S_9Amount,0),0)) -> 1965 | S44: =SUM(IF(S_10AccNO=$B44,IF(S_10FieldRank<=S_10Choice,S_10Amount,0),0)) -> 130 | T44: =SUM(IF(S_12AccNO=$B44,IF(S_12FieldRank<=S_12Choice,S_12Amount,0),0)) -> 0
A45: 8806 | B45: 538 | C45: Seminars & Registration | D45: 1400 | E45: 950 | F45: =SUM(IF(S1AccNO=B45,IF(S1FieldRank<=S1Choice,S1Amount,0),0)) -> 0 | G45: =SUM(IF(S_2AccNO=$B45,IF(S_2FieldRank<=S_2Choice,S_2Amount,0),0)) -> 0 | H45: =SUM(IF(S_3AccNO=$B45,IF(S_3FieldRank<=S_3Choice,S_3Amount,0),0)) -> 0 | I45: =SUM(IF(S_4AccNO=$B45,IF(S_4FieldRank<=S_4Choice,S_4Amount,0),0)) -> 0 | J45: =SUM(IF(S_5AccNO=$B45,IF(S_5FieldRank<=S_5Choice,S_5Amount,0),0)) -> 0 | K45: =SUM(IF(S_11AccNO=$B45,IF(S_11FieldRank<=S_11Choice,S_11Amount,0),0)) -> 0 | L45: =SUM(IF(S_13AccNO=$B45,IF(S_13FieldRank<=S_13Choice,S_13Amount,0),0)) -> 0 | M45: =SUM(IF(S_14AccNO=$B45,IF(S_14FieldRank<=S_14Choice,S_14Amount,0),0)) -> 0 | N45: Seminars & Registration | O45: =SUM(IF(S_6AccNO=$B45,IF(S_6FieldRank<=S_6Choice,S_6Amount,0),0)) -> 200 | P45: =SUM(IF(S_7AccNO=$B45,IF(S_7FieldRank<=S_7Choice,S_7Amount,0),0)) -> 0 | Q45: =SUM(IF(S_8AccNO=$B45,IF(S_8FieldRank<=S_8Choice,S_8Amount,0),0)) -> 0 | R45: =SUM(IF(S_9AccNO=$B45,IF(S_9FieldRank<=S_9Choice,S_9Amount,0),0)) -> 750 | S45: =SUM(IF(S_10AccNO=$B45,IF(S_10FieldRank<=S_10Choice,S_10Amount,0),0)) -> 0 | T45: =SUM(IF(S_12AccNO=$B45,IF(S_12FieldRank<=S_12Choice,S_12Amount,0),0)) -> 0
A46: 8004 | B46: 542 | C46: Member Care | D46: 7000 | E46: 6000 | F46: =SUM(IF(S1AccNO=B46,IF(S1FieldRank<=S1Choice,S1Amount,0),0)) -> 0 | G46: =SUM(IF(S_2AccNO=$B46,IF(S_2FieldRank<=S_2Choice,S_2Amount,0),0)) -> 0 | H46: =SUM(IF(S_3AccNO=$B46,IF(S_3FieldRank<=S_3Choice,S_3Amount,0),0)) -> 0 | I46: =SUM(IF(S_4AccNO=$B46,IF(S_4FieldRank<=S_4Choice,S_4Amount,0),0)) -> 0 | J46: =SUM(IF(S_5AccNO=$B46,IF(S_5FieldRank<=S_5Choice,S_5Amount,0),0)) -> 0 | K46: =SUM(IF(S_11AccNO=$B46,IF(S_11FieldRank<=S_11Choice,S_11Amount,0),0)) -> 0 | L46: =SUM(IF(S_13AccNO=$B46,IF(S_13FieldRank<=S_13Choice,S_13Amount,0),0)) -> 0 | M46: =SUM(IF(S_14AccNO=$B46,IF(S_14FieldRank<=S_14Choice,S_14Amount,0),0)) -> 0 | N46: Member Care | O46: =SUM(IF(S_6AccNO=$B46,IF(S_6FieldRank<=S_6Choice,S_6Amount,0),0)) -> 0 | P46: =SUM(IF(S_7AccNO=$B46,IF(S_7FieldRank<=S_7Choice,S_7Amount,0),0)) -> 0 | Q46: =SUM(IF(S_8AccNO=$B46,IF(S_8FieldRank<=S_8Choice,S_8Amount,0),0)) -> 6000 | R46: =SUM(IF(S_9AccNO=$B46,IF(S_9FieldRank<=S_9Choice,S_9Amount,0),0)) -> 0 | S46: =SUM(IF(S_10AccNO=$B46,IF(S_10FieldRank<=S_10Choice,S_10Amount,0),0)) -> 0 | T46: =SUM(IF(S_12AccNO=$B46,IF(S_12FieldRank<=S_12Choice,S_12Amount,0),0)) -> 0
A47: 8402 | B47: 543 | C47: Rent Expense | D47: 72685 | E47: 25025 | F47: =SUM(IF(S1AccNO=B47,IF(S1FieldRank<=S1Choice,S1Amount,0),0)) -> 0 | G47: =SUM(IF(S_2AccNO=$B47,IF(S_2FieldRank<=S_2Choice,S_2Amount,0),0)) -> 0 | H47: =SUM(IF(S_3AccNO=$B47,IF(S_3FieldRank<=S_3Choice,S_3Amount,0),0)) -> 0 | I47: =SUM(IF(S_4AccNO=$B47,IF(S_4FieldRank<=S_4Choice,S_4Amount,0),0)) -> 0 | J47: =SUM(IF(S_5AccNO=$B47,IF(S_5FieldRank<=S_5Choice,S_5Amount,0),0)) -> 0 | K47: =SUM(IF(S_11AccNO=$B47,IF(S_11FieldRank<=S_11Choice,S_11Amount,0),0)) -> 200 | L47: =SUM(IF(S_13AccNO=$B47,IF(S_13FieldRank<=S_13Choice,S_13Amount,0),0)) -> 16200 | M47: =SUM(IF(S_14AccNO=$B47,IF(S_14FieldRank<=S_14Choice,S_14Amount,0),0)) -> 0 | N47: Rent Expense | O47: =SUM(IF(S_6AccNO=$B47,IF(S_6FieldRank<=S_6Choice,S_6Amount,0),0)) -> 0 | P47: =SUM(IF(S_7AccNO=$B47,IF(S_7FieldRank<=S_7Choice,S_7Amount,0),0)) -> 0 | Q47: =SUM(IF(S_8AccNO=$B47,IF(S_8FieldRank<=S_8Choice,S_8Amount,0),0)) -> 0 | R47: =SUM(IF(S_9AccNO=$B47,IF(S_9FieldRank<=S_9Choice,S_9Amount,0),0)) -> 8600 | S47: =SUM(IF(S_10AccNO=$B47,IF(S_10FieldRank<=S_10Choice,S_10Amount,0),0)) -> 0 | T47: =SUM(IF(S_12AccNO=$B47,IF(S_12FieldRank<=S_12Choice,S_12Amount,0),0)) -> 25
A48: 8108 | B48: 545 | C48: General Supply & Service | D48: 56152 | E48: 94325 | F48: =SUM(IF(S1AccNO=B48,IF(S1FieldRank<=S1Choice,S1Amount,0),0)) -> 1945 | G48: =SUM(IF(S_2AccNO=$B48,IF(S_2FieldRank<=S_2Choice,S_2Amount,0),0)) -> 500 | H48: =SUM(IF(S_3AccNO=$B48,IF(S_3FieldRank<=S_3Choice,S_3Amount,0),0)) -> 200 | I48: =SUM(IF(S_4AccNO=$B48,IF(S_4FieldRank<=S_4Choice,S_4Amount,0),0)) -> 0 | J48: =SUM(IF(S_5AccNO=$B48,IF(S_5FieldRank<=S_5Choice,S_5Amount,0),0)) -> 1700 | K48: =SUM(IF(S_11AccNO=$B48,IF(S_11FieldRank<=S_11Choice,S_11Amount,0),0)) -> 27210 | L48: =SUM(IF(S_13AccNO=$B48,IF(S_13FieldRank<=S_13Choice,S_13Amount,0),0)) -> 0 | M48: =SUM(IF(S_14AccNO=$B48,IF(S_14FieldRank<=S_14Choice,S_14Amount,0),0)) -> 61970 | N48: General Supply & Service | O48: =SUM(IF(S_6AccNO=$B48,IF(S_6FieldRank<=S_6Choice,S_6Amount,0),0)) -> 600 | P48: =SUM(IF(S_7AccNO=$B48,IF(S_7FieldRank<=S_7Choice,S_7Amount,0),0)) -> 0 | Q48: =SUM(IF(S_8AccNO=$B48,IF(S_8FieldRank<=S_8Choice,S_8Amount,0),0)) -> 0 | R48: =SUM(IF(S_9AccNO=$B48,IF(S_9FieldRank<=S_9Choice,S_9Amount,0),0)) -> 100 | S48: =SUM(IF(S_10AccNO=$B48,IF(S_10FieldRank<=S_10Choice,S_10Amount,0),0)) -> 0 | T48: =SUM(IF(S_12AccNO=$B48,IF(S_12FieldRank<=S_12Choice,S_12Amount,0),0)) -> 100
A49: 8711 | B49: 546 | C49: Motel/Hotel | D49: 18510 | E49: 17795 | F49: =SUM(IF(S1AccNO=B49,IF(S1FieldRank<=S1Choice,S1Amount,0),0)) -> 690 | G49: =SUM(IF(S_2AccNO=$B49,IF(S_2FieldRank<=S_2Choice,S_2Amount,0),0)) -> 250 | H49: =SUM(IF(S_3AccNO=$B49,IF(S_3FieldRank<=S_3Choice,S_3Amount,0),0)) -> 0 | I49: =SUM(IF(S_4AccNO=$B49,IF(S_4FieldRank<=S_4Choice,S_4Amount,0),0)) -> 250 | J49: =SUM(IF(S_5AccNO=$B49,IF(S_5FieldRank<=S_5Choice,S_5Amount,0),0)) -> 2400 | K49: =SUM(IF(S_11AccNO=$B49,IF(S_11FieldRank<=S_11Choice,S_11Amount,0),0)) -> 450 | L49: =SUM(IF(S_13AccNO=$B49,IF(S_13FieldRank<=S_13Choice,S_13Amount,0),0)) -> 0 | M49: =SUM(IF(S_14AccNO=$B49,IF(S_14FieldRank<=S_14Choice,S_14Amount,0),0)) -> 0 | N49: Motel/Hotel | O49: =SUM(IF(S_6AccNO=$B49,IF(S_6FieldRank<=S_6Choice,S_6Amount,0),0)) -> 1220 | P49: =SUM(IF(S_7AccNO=$B49,IF(S_7FieldRank<=S_7Choice,S_7Amount,0),0)) -> 695 | Q49: =SUM(IF(S_8AccNO=$B49,IF(S_8FieldRank<=S_8Choice,S_8Amount,0),0)) -> 240 | R49: =SUM(IF(S_9AccNO=$B49,IF(S_9FieldRank<=S_9Choice,S_9Amount,0),0)) -> 7350 | S49: =SUM(IF(S_10AccNO=$B49,IF(S_10FieldRank<=S_10Choice,S_10Amount,0),0)) -> 4250 | T49: =SUM(IF(S_12AccNO=$B49,IF(S_12FieldRank<=S_12Choice,S_12Amount,0),0)) -> 0
A50: 8201 | B50: 547 | C50: Telephone | D50: 8375 | E50: 6975 | F50: =SUM(IF(S1AccNO=B50,IF(S1FieldRank<=S1Choice,S1Amount,0),0)) -> 0 | G50: =SUM(IF(S_2AccNO=$B50,IF(S_2FieldRank<=S_2Choice,S_2Amount,0),0)) -> 0 | H50: =SUM(IF(S_3AccNO=$B50,IF(S_3FieldRank<=S_3Choice,S_3Amount,0),0)) -> 0 | I50: =SUM(IF(S_4AccNO=$B50,IF(S_4FieldRank<=S_4Choice,S_4Amount,0),0)) -> 0 | J50: =SUM(IF(S_5AccNO=$B50,IF(S_5FieldRank<=S_5Choice,S_5Amount,0),0)) -> 0 | K50: =SUM(IF(S_11AccNO=$B50,IF(S_11FieldRank<=S_11Choice,S_11Amount,0),0)) -> 2900 | L50: =SUM(IF(S_13AccNO=$B50,IF(S_13FieldRank<=S_13Choice,S_13Amount,0),0)) -> 900 | M50: =SUM(IF(S_14AccNO=$B50,IF(S_14FieldRank<=S_14Choice,S_14Amount,0),0)) -> 0 | N50: Telephone | O50: =SUM(IF(S_6AccNO=$B50,IF(S_6FieldRank<=S_6Choice,S_6Amount,0),0)) -> 25 | P50: =SUM(IF(S_7AccNO=$B50,IF(S_7FieldRank<=S_7Choice,S_7Amount,0),0)) -> 0 | Q50: =SUM(IF(S_8AccNO=$B50,IF(S_8FieldRank<=S_8Choice,S_8Amount,0),0)) -> 0 | R50: =SUM(IF(S_9AccNO=$B50,IF(S_9FieldRank<=S_9Choice,S_9Amount,0),0)) -> 3150 | S50: =SUM(IF(S_10AccNO=$B50,IF(S_10FieldRank<=S_10Choice,S_10Amount,0),0)) -> 0 | T50: =SUM(IF(S_12AccNO=$B50,IF(S_12FieldRank<=S_12Choice,S_12Amount,0),0)) -> 0
B51: 548 | C51: Field Director Expense Reimb | D51: 8400 | E51: =SUM(F51:T51) -> 0 | F51: =SUM(IF(S1AccNO=B51,IF(S1FieldRank<=S1Choice,S1Amount,0),0)) -> 0 | G51: =SUM(IF(S_2AccNO=$B51,IF(S_2FieldRank<=S_2Choice,S_2Amount,0),0)) -> 0 | H51: =SUM(IF(S_3AccNO=$B51,IF(S_3FieldRank<=S_3Choice,S_3Amount,0),0)) -> 0 | I51: =SUM(IF(S_4AccNO=$B51,IF(S_4FieldRank<=S_4Choice,S_4Amount,0),0)) -> 0 | K51: =SUM(IF(S_11AccNO=$B51,IF(S_11FieldRank<=S_11Choice,S_11Amount,0),0)) -> 0 | L51: =SUM(IF(S_13AccNO=$B51,IF(S_13FieldRank<=S_13Choice,S_13Amount,0),0)) -> 0 | M51: =SUM(IF(S_14AccNO=$B51,IF(S_14FieldRank<=S_14Choice,S_14Amount,0),0)) -> 0 | N51: Field Director Expense Reimb | O51: =SUM(IF(S_6AccNO=$B51,IF(S_6FieldRank<=S_6Choice,S_6Amount,0),0)) -> 0 | P51: =SUM(IF(S_7AccNO=$B51,IF(S_7FieldRank<=S_7Choice,S_7Amount,0),0)) -> 0 | Q51: =SUM(IF(S_8AccNO=$B51,IF(S_8FieldRank<=S_8Choice,S_8Amount,0),0)) -> 0 | R51: =SUM(IF(S_9AccNO=$B51,IF(S_9FieldRank<=S_9Choice,S_9Amount,0),0)) -> 0 | S51: =SUM(IF(S_10AccNO=$B51,IF(S_10FieldRank<=S_10Choice,S_10Amount,0),0)) -> 0 | T51: =SUM(IF(S_12AccNO=$B51,IF(S_12FieldRank<=S_12Choice,S_12Amount,0),0)) -> 0
A52: 8702 | B52: 549 | C52: Gas & Oil Auto | D52: 27820 | E52: 31475 | F52: =SUM(IF(S1AccNO=B52,IF(S1FieldRank<=S1Choice,S1Amount,0),0)) -> 2080 | G52: =SUM(IF(S_2AccNO=$B52,IF(S_2FieldRank<=S_2Choice,S_2Amount,0),0)) -> 1600 | H52: =SUM(IF(S_3AccNO=$B52,IF(S_3FieldRank<=S_3Choice,S_3Amount,0),0)) -> 0 | I52: =SUM(IF(S_4AccNO=$B52,IF(S_4FieldRank<=S_4Choice,S_4Amount,0),0)) -> 950 | J52: =SUM(IF(S_5AccNO=$B52,IF(S_5FieldRank<=S_5Choice,S_5Amount,0),0)) -> 3720 | K52: =SUM(IF(S_11AccNO=$B52,IF(S_11FieldRank<=S_11Choice,S_11Amount,0),0)) -> 17240 | L52: =SUM(IF(S_13AccNO=$B52,IF(S_13FieldRank<=S_13Choice,S_13Amount,0),0)) -> 0 | M52: =SUM(IF(S_14AccNO=$B52,IF(S_14FieldRank<=S_14Choice,S_14Amount,0),0)) -> 0 | N52: Gas & Oil Auto | O52: =SUM(IF(S_6AccNO=$B52,IF(S_6FieldRank<=S_6Choice,S_6Amount,0),0)) -> 1020 | P52: =SUM(IF(S_7AccNO=$B52,IF(S_7FieldRank<=S_7Choice,S_7Amount,0),0)) -> 665 | Q52: =SUM(IF(S_8AccNO=$B52,IF(S_8FieldRank<=S_8Choice,S_8Amount,0),0)) -> 300 | R52: =SUM(IF(S_9AccNO=$B52,IF(S_9FieldRank<=S_9Choice,S_9Amount,0),0)) -> 1310 | S52: =SUM(IF(S_10AccNO=$B52,IF(S_10FieldRank<=S_10Choice,S_10Amount,0),0)) -> 2590 | T52: =SUM(IF(S_12AccNO=$B52,IF(S_12FieldRank<=S_12Choice,S_12Amount,0),0)) -> 0
B53: 550 | C53: Auto Maintenance | D53: 7250 | E53: =SUM(F53:T53) -> 5500 | F53: =SUM(IF(S1AccNO=B53,IF(S1FieldRank<=S1Choice,S1Amount,0),0)) -> 0 | G53: =SUM(IF(S_2AccNO=$B53,IF(S_2FieldRank<=S_2Choice,S_2Amount,0),0)) -> 0 | H53: =SUM(IF(S_3AccNO=$B53,IF(S_3FieldRank<=S_3Choice,S_3Amount,0),0)) -> 0 | I53: =SUM(IF(S_4AccNO=$B53,IF(S_4FieldRank<=S_4Choice,S_4Amount,0),0)) -> 0 | K53: =SUM(IF(S_11AccNO=$B53,IF(S_11FieldRank<=S_11Choice,S_11Amount,0),0)) -> 5500 | L53: =SUM(IF(S_13AccNO=$B53,IF(S_13FieldRank<=S_13Choice,S_13Amount,0),0)) -> 0 | M53: =SUM(IF(S_14AccNO=$B53,IF(S_14FieldRank<=S_14Choice,S_14Amount,0),0)) -> 0 | N53: Auto Maintenance | O53: =SUM(IF(S_6AccNO=$B53,IF(S_6FieldRank<=S_6Choice,S_6Amount,0),0)) -> 0 | P53: =SUM(IF(S_7AccNO=$B53,IF(S_7FieldRank<=S_7Choice,S_7Amount,0),0)) -> 0 | Q53: =SUM(IF(S_8AccNO=$B53,IF(S_8FieldRank<=S_8Choice,S_8Amount,0),0)) -> 0 | R53: =SUM(IF(S_9AccNO=$B53,IF(S_9FieldRank<=S_9Choice,S_9Amount,0),0)) -> 0 | S53: =SUM(IF(S_10AccNO=$B53,IF(S_10FieldRank<=S_10Choice,S_10Amount,0),0)) -> 0 | T53: =SUM(IF(S_12AccNO=$B53,IF(S_12FieldRank<=S_12Choice,S_12Amount,0),0)) -> 0
A54: 8710 | B54: 551 | C54: Commercial Travel | D54: 11550 | E54: 22310 | F54: =SUM(IF(S1AccNO=B54,IF(S1FieldRank<=S1Choice,S1Amount,0),0)) -> 750 | G54: =SUM(IF(S_2AccNO=$B54,IF(S_2FieldRank<=S_2Choice,S_2Amount,0),0)) -> 600 | H54: =SUM(IF(S_3AccNO=$B54,IF(S_3FieldRank<=S_3Choice,S_3Amount,0),0)) -> 0 | I54: =SUM(IF(S_4AccNO=$B54,IF(S_4FieldRank<=S_4Choice,S_4Amount,0),0)) -> 400 | J54: =SUM(IF(S_5AccNO=$B54,IF(S_5FieldRank<=S_5Choice,S_5Amount,0),0)) -> 0 | K54: =SUM(IF(S_11AccNO=$B54,IF(S_11FieldRank<=S_11Choice,S_11Amount,0),0)) -> 800 | L54: =SUM(IF(S_13AccNO=$B54,IF(S_13FieldRank<=S_13Choice,S_13Amount,0),0)) -> 0 | M54: =SUM(IF(S_14AccNO=$B54,IF(S_14FieldRank<=S_14Choice,S_14Amount,0),0)) -> 0 | N54: Commercial Travel | O54: =SUM(IF(S_6AccNO=$B54,IF(S_6FieldRank<=S_6Choice,S_6Amount,0),0)) -> 0 | P54: =SUM(IF(S_7AccNO=$B54,IF(S_7FieldRank<=S_7Choice,S_7Amount,0),0)) -> 600 | Q54: =SUM(IF(S_8AccNO=$B54,IF(S_8FieldRank<=S_8Choice,S_8Amount,0),0)) -> 1000 | R54: =SUM(IF(S_9AccNO=$B54,IF(S_9FieldRank<=S_9Choice,S_9Amount,0),0)) -> 15350 | S54: =SUM(IF(S_10AccNO=$B54,IF(S_10FieldRank<=S_10Choice,S_10Amount,0),0)) -> 2810 | T54: =SUM(IF(S_12AccNO=$B54,IF(S_12FieldRank<=S_12Choice,S_12Amount,0),0)) -> 0
A55: 8709 | B55: 553 | C55: Meal & Entertainment | D55: 7020 | E55: 7020 | F55: =SUM(IF(S1AccNO=B55,IF(S1FieldRank<=S1Choice,S1Amount,0),0)) -> 410 | G55: =SUM(IF(S_2AccNO=$B55,IF(S_2FieldRank<=S_2Choice,S_2Amount,0),0)) -> 5600 | H55: =SUM(IF(S_3AccNO=$B55,IF(S_3FieldRank<=S_3Choice,S_3Amount,0),0)) -> 0 | I55: =SUM(IF(S_4AccNO=$B55,IF(S_4FieldRank<=S_4Choice,S_4Amount,0),0)) -> 0 | J55: =SUM(IF(S_5AccNO=$B55,IF(S_5FieldRank<=S_5Choice,S_5Amount,0),0)) -> 0 | K55: =SUM(IF(S_11AccNO=$B55,IF(S_11FieldRank<=S_11Choice,S_11Amount,0),0)) -> 0 | L55: =SUM(IF(S_13AccNO=$B55,IF(S_13FieldRank<=S_13Choice,S_13Amount,0),0)) -> 0 | M55: =SUM(IF(S_14AccNO=$B55,IF(S_14FieldRank<=S_14Choice,S_14Amount,0),0)) -> 0 | N55: Meal & Entertainment | O55: =SUM(IF(S_6AccNO=$B55,IF(S_6FieldRank<=S_6Choice,S_6Amount,0),0)) -> 0 | P55: =SUM(IF(S_7AccNO=$B55,IF(S_7FieldRank<=S_7Choice,S_7Amount,0),0)) -> 0 | Q55: =SUM(IF(S_8AccNO=$B55,IF(S_8FieldRank<=S_8Choice,S_8Amount,0),0)) -> 0 | R55: =SUM(IF(S_9AccNO=$B55,IF(S_9FieldRank<=S_9Choice,S_9Amount,0),0)) -> 500 | S55: =SUM(IF(S_10AccNO=$B55,IF(S_10FieldRank<=S_10Choice,S_10Amount,0),0)) -> 510 | T55: =SUM(IF(S_12AccNO=$B55,IF(S_12FieldRank<=S_12Choice,S_12Amount,0),0)) -> 0
A56: 8805 | B56: 557 | C56: Missionary Conference | D56: 60415 | E56: 62150 | F56: =SUM(IF(S1AccNO=B56,IF(S1FieldRank<=S1Choice,S1Amount,0),0)) -> 0 | G56: =SUM(IF(S_2AccNO=$B56,IF(S_2FieldRank<=S_2Choice,S_2Amount,0),0)) -> 0 | H56: =SUM(IF(S_3AccNO=$B56,IF(S_3FieldRank<=S_3Choice,S_3Amount,0),0)) -> 0 | I56: =SUM(IF(S_4AccNO=$B56,IF(S_4FieldRank<=S_4Choice,S_4Amount,0),0)) -> 0 | J56: =SUM(IF(S_5AccNO=$B56,IF(S_5FieldRank<=S_5Choice,S_5Amount,0),0)) -> 0 | K56: =SUM(IF(S_11AccNO=$B56,IF(S_11FieldRank<=S_11Choice,S_11Amount,0),0)) -> 0 | L56: =SUM(IF(S_13AccNO=$B56,IF(S_13FieldRank<=S_13Choice,S_13Amount,0),0)) -> 0 | M56: =SUM(IF(S_14AccNO=$B56,IF(S_14FieldRank<=S_14Choice,S_14Amount,0),0)) -> 0 | N56: Missionary Conference | O56: =SUM(IF(S_6AccNO=$B56,IF(S_6FieldRank<=S_6Choice,S_6Amount,0),0)) -> 0 | P56: =SUM(IF(S_7AccNO=$B56,IF(S_7FieldRank<=S_7Choice,S_7Amount,0),0)) -> 0 | Q56: =SUM(IF(S_8AccNO=$B56,IF(S_8FieldRank<=S_8Choice,S_8Amount,0),0)) -> 62150 | R56: =SUM(IF(S_9AccNO=$B56,IF(S_9FieldRank<=S_9Choice,S_9Amount,0),0)) -> 0 | S56: =SUM(IF(S_10AccNO=$B56,IF(S_10FieldRank<=S_10Choice,S_10Amount,0),0)) -> 0 | T56: =SUM(IF(S_12AccNO=$B56,IF(S_12FieldRank<=S_12Choice,S_12Amount,0),0)) -> 0
A57: 8804 | B57: 559 | C57: Speaker Honorarium | D57: 14550 | E57: 15050 | F57: =SUM(IF(S1AccNO=B57,IF(S1FieldRank<=S1Choice,S1Amount,0),0)) -> 1600 | G57: =SUM(IF(S_2AccNO=$B57,IF(S_2FieldRank<=S_2Choice,S_2Amount,0),0)) -> 0 | H57: =SUM(IF(S_3AccNO=$B57,IF(S_3FieldRank<=S_3Choice,S_3Amount,0),0)) -> 0 | I57: =SUM(IF(S_4AccNO=$B57,IF(S_4FieldRank<=S_4Choice,S_4Amount,0),0)) -> 0 | J57: =SUM(IF(S_5AccNO=$B57,IF(S_5FieldRank<=S_5Choice,S_5Amount,0),0)) -> 0 | K57: =SUM(IF(S_11AccNO=$B57,IF(S_11FieldRank<=S_11Choice,S_11Amount,0),0)) -> 950 | L57: =SUM(IF(S_13AccNO=$B57,IF(S_13FieldRank<=S_13Choice,S_13Amount,0),0)) -> 0 | M57: =SUM(IF(S_14AccNO=$B57,IF(S_14FieldRank<=S_14Choice,S_14Amount,0),0)) -> 0 | N57: Speaker Honorarium | O57: =SUM(IF(S_6AccNO=$B57,IF(S_6FieldRank<=S_6Choice,S_6Amount,0),0)) -> 0 | P57: =SUM(IF(S_7AccNO=$B57,IF(S_7FieldRank<=S_7Choice,S_7Amount,0),0)) -> 12500 | Q57: =SUM(IF(S_8AccNO=$B57,IF(S_8FieldRank<=S_8Choice,S_8Amount,0),0)) -> 0 | R57: =SUM(IF(S_9AccNO=$B57,IF(S_9FieldRank<=S_9Choice,S_9Amount,0),0)) -> 0 | S57: =SUM(IF(S_10AccNO=$B57,IF(S_10FieldRank<=S_10Choice,S_10Amount,0),0)) -> 0 | T57: =SUM(IF(S_12AccNO=$B57,IF(S_12FieldRank<=S_12Choice,S_12Amount,0),0)) -> 0
A58: 8707 | B58: 563 | C58: Auto Reimbursement | D58: 9550 | E58: 10200 | F58: =SUM(IF(S1AccNO=B58,IF(S1FieldRank<=S1Choice,S1Amount,0),0)) -> 150 | G58: =SUM(IF(S_2AccNO=$B58,IF(S_2FieldRank<=S_2Choice,S_2Amount,0),0)) -> 300 | H58: =SUM(IF(S_3AccNO=$B58,IF(S_3FieldRank<=S_3Choice,S_3Amount,0),0)) -> 0 | I58: =SUM(IF(S_4AccNO=$B58,IF(S_4FieldRank<=S_4Choice,S_4Amount,0),0)) -> 250 | J58: =SUM(IF(S_5AccNO=$B58,IF(S_5FieldRank<=S_5Choice,S_5Amount,0),0)) -> 7800 | K58: =SUM(IF(S_11AccNO=$B58,IF(S_11FieldRank<=S_11Choice,S_11Amount,0),0)) -> 300 | L58: =SUM(IF(S_13AccNO=$B58,IF(S_13FieldRank<=S_13Choice,S_13Amount,0),0)) -> 0 | M58: =SUM(IF(S_14AccNO=$B58,IF(S_14FieldRank<=S_14Choice,S_14Amount,0),0)) -> 0 | N58: Auto Reimbursement | O58: =SUM(IF(S_6AccNO=$B58,IF(S_6FieldRank<=S_6Choice,S_6Amount,0),0)) -> 0 | P58: =SUM(IF(S_7AccNO=$B58,IF(S_7FieldRank<=S_7Choice,S_7Amount,0),0)) -> 300 | Q58: =SUM(IF(S_8AccNO=$B58,IF(S_8FieldRank<=S_8Choice,S_8Amount,0),0)) -> 0 | R58: =SUM(IF(S_9AccNO=$B58,IF(S_9FieldRank<=S_9Choice,S_9Amount,0),0)) -> 600 | S58: =SUM(IF(S_10AccNO=$B58,IF(S_10FieldRank<=S_10Choice,S_10Amount,0),0)) -> 500 | T58: =SUM(IF(S_12AccNO=$B58,IF(S_12FieldRank<=S_12Choice,S_12Amount,0),0)) -> 0
A59: 8999 | B59: 580 | C59: Special Projects | D59: 575454 | E59: 140410.4 | F59: =SUM(IF(S1AccNO=B59,IF(S1FieldRank<=S1Choice,S1Amount,0),0)) -> 34691 | G59: =SUM(IF(S_2AccNO=$B59,IF(S_2FieldRank<=S_2Choice,S_2Amount,0),0)) -> 1500 | H59: =SUM(IF(S_3AccNO=$B59,IF(S_3FieldRank<=S_3Choice,S_3Amount,0),0)) -> 1800 | I59: =SUM(IF(S_4AccNO=$B59,IF(S_4FieldRank<=S_4Choice,S_4Amount,0),0)) -> 22100 | J59: =SUM(IF(S_5AccNO=$B59,IF(S_5FieldRank<=S_5Choice,S_5Amount,0),0)) -> 1500 | K59: =SUM(IF(S_11AccNO=$B59,IF(S_11FieldRank<=S_11Choice,S_11Amount,0),0)) -> 11594.4 | L59: =SUM(IF(S_13AccNO=$B59,IF(S_13FieldRank<=S_13Choice,S_13Amount,0),0)) -> 19500 | M59: =SUM(IF(S_14AccNO=$B59,IF(S_14FieldRank<=S_14Choice,S_14Amount,0),0)) -> 30000 | N59: Special Projects | O59: =SUM(IF(S_6AccNO=$B59,IF(S_6FieldRank<=S_6Choice,S_6Amount,0),0)) -> 0 | P59: =SUM(IF(S_7AccNO=$B59,IF(S_7FieldRank<=S_7Choice,S_7Amount,0),0)) -> 500 | Q59: =SUM(IF(S_8AccNO=$B59,IF(S_8FieldRank<=S_8Choice,S_8Amount,0),0)) -> 11700 | R59: =SUM(IF(S_9AccNO=$B59,IF(S_9FieldRank<=S_9Choice,S_9Amount,0),0)) -> 350 | S59: =SUM(IF(S_10AccNO=$B59,IF(S_10FieldRank<=S_10Choice,S_10Amount,0),0)) -> 1100 | T59: =SUM(IF(S_12AccNO=$B59,IF(S_12FieldRank<=S_12Choice,S_12Amount,0),0)) -> 4075
B60: 585 | C60: Canada Pension Plan | D60: 3117 | E60: 2633 | F60: =SUM(IF(S1AccNO=B60,IF(S1FieldRank<=S1Choice,S1Amount,0),0)) -> 0 | G60: =SUM(IF(S_2AccNO=$B60,IF(S_2FieldRank<=S_2Choice,S_2Amount,0),0)) -> 0 | H60: =SUM(IF(S_3AccNO=$B60,IF(S_3FieldRank<=S_3Choice,S_3Amount,0),0)) -> 0 | I60: =SUM(IF(S_4AccNO=$B60,IF(S_4FieldRank<=S_4Choice,S_4Amount,0),0)) -> 0 | J60: =SUM(IF(S_5AccNO=$B60,IF(S_5FieldRank<=S_5Choice,S_5Amount,0),0)) -> 0 | K60: =SUM(IF(S_11AccNO=$B60,IF(S_11FieldRank<=S_11Choice,S_11Amount,0),0)) -> 868 | L60: =SUM(IF(S_13AccNO=$B60,IF(S_13FieldRank<=S_13Choice,S_13Amount,0),0)) -> 0 | M60: =SUM(IF(S_14AccNO=$B60,IF(S_14FieldRank<=S_14Choice,S_14Amount,0),0)) -> 0 | N60: Canada Pension Plan | O60: =SUM(IF(S_6AccNO=$B60,IF(S_6FieldRank<=S_6Choice,S_6Amount,0),0)) -> 0 | P60: =SUM(IF(S_7AccNO=$B60,IF(S_7FieldRank<=S_7Choice,S_7Amount,0),0)) -> 0 | Q60: =SUM(IF(S_8AccNO=$B60,IF(S_8FieldRank<=S_8Choice,S_8Amount,0),0)) -> 0 | R60: =SUM(IF(S_9AccNO=$B60,IF(S_9FieldRank<=S_9Choice,S_9Amount,0),0)) -> 1765 | S60: =SUM(IF(S_10AccNO=$B60,IF(S_10FieldRank<=S_10Choice,S_10Amount,0),0)) -> 0 | T60: =SUM(IF(S_12AccNO=$B60,IF(S_12FieldRank<=S_12Choice,S_12Amount,0),0)) -> 0
B61: 586 | C61: Employment Insurance | D61: 34623 | E61: 35436 | F61: =SUM(IF(S1AccNO=B61,IF(S1FieldRank<=S1Choice,S1Amount,0),0)) -> 0 | G61: =SUM(IF(S_2AccNO=$B61,IF(S_2FieldRank<=S_2Choice,S_2Amount,0),0)) -> 0 | H61: =SUM(IF(S_3AccNO=$B61,IF(S_3FieldRank<=S_3Choice,S_3Amount,0),0)) -> 0 | I61: =SUM(IF(S_4AccNO=$B61,IF(S_4FieldRank<=S_4Choice,S_4Amount,0),0)) -> 0 | J61: =SUM(IF(S_5AccNO=$B61,IF(S_5FieldRank<=S_5Choice,S_5Amount,0),0)) -> 0 | K61: =SUM(IF(S_11AccNO=$B61,IF(S_11FieldRank<=S_11Choice,S_11Amount,0),0)) -> 642 | L61: =SUM(IF(S_13AccNO=$B61,IF(S_13FieldRank<=S_13Choice,S_13Amount,0),0)) -> 0 | M61: =SUM(IF(S_14AccNO=$B61,IF(S_14FieldRank<=S_14Choice,S_14Amount,0),0)) -> 0 | N61: Employment Insurance | O61: =SUM(IF(S_6AccNO=$B61,IF(S_6FieldRank<=S_6Choice,S_6Amount,0),0)) -> 0 | P61: =SUM(IF(S_7AccNO=$B61,IF(S_7FieldRank<=S_7Choice,S_7Amount,0),0)) -> 0 | Q61: =SUM(IF(S_8AccNO=$B61,IF(S_8FieldRank<=S_8Choice,S_8Amount,0),0)) -> 0 | R61: =SUM(IF(S_9AccNO=$B61,IF(S_9FieldRank<=S_9Choice,S_9Amount,0),0)) -> 34794 | S61: =SUM(IF(S_10AccNO=$B61,IF(S_10FieldRank<=S_10Choice,S_10Amount,0),0)) -> 0 | T61: =SUM(IF(S_12AccNO=$B61,IF(S_12FieldRank<=S_12Choice,S_12Amount,0),0)) -> 0
B62: 587 | C62: Ministry Expense | D62: 337800 | E62: 303550 | F62: =SUM(IF(S1AccNO=B62,IF(S1FieldRank<=S1Choice,S1Amount,0),0)) -> 224650 | G62: =SUM(IF(S_2AccNO=$B62,IF(S_2FieldRank<=S_2Choice,S_2Amount,0),0)) -> 0 | H62: =SUM(IF(S_3AccNO=$B62,IF(S_3FieldRank<=S_3Choice,S_3Amount,0),0)) -> 3900 | I62: =SUM(IF(S_4AccNO=$B62,IF(S_4FieldRank<=S_4Choice,S_4Amount,0),0)) -> 5550 | J62: =SUM(IF(S_5AccNO=$B62,IF(S_5FieldRank<=S_5Choice,S_5Amount,0),0)) -> 0 | K62: =SUM(IF(S_11AccNO=$B62,IF(S_11FieldRank<=S_11Choice,S_11Amount,0),0)) -> 0 | L62: =SUM(IF(S_13AccNO=$B62,IF(S_13FieldRank<=S_13Choice,S_13Amount,0),0)) -> 0 | M62: =SUM(IF(S_14AccNO=$B62,IF(S_14FieldRank<=S_14Choice,S_14Amount,0),0)) -> 0 | N62: Ministry Expense | O62: =SUM(IF(S_6AccNO=$B62,IF(S_6FieldRank<=S_6Choice,S_6Amount,0),0)) -> 6000 | P62: =SUM(IF(S_7AccNO=$B62,IF(S_7FieldRank<=S_7Choice,S_7Amount,0),0)) -> 0 | Q62: =SUM(IF(S_8AccNO=$B62,IF(S_8FieldRank<=S_8Choice,S_8Amount,0),0)) -> 0 | R62: =SUM(IF(S_9AccNO=$B62,IF(S_9FieldRank<=S_9Choice,S_9Amount,0),0)) -> 51450 | S62: =SUM(IF(S_10AccNO=$B62,IF(S_10FieldRank<=S_10Choice,S_10Amount,0),0)) -> 12000 | T62: =SUM(IF(S_12AccNO=$B62,IF(S_12FieldRank<=S_12Choice,S_12Amount,0),0)) -> 0
B63: 591 | C63: Salary Expense | D63: 1613615 | E63: 1536916 | F63: =SUM(IF(S1AccNO=B63,IF(S1FieldRank<=S1Choice,S1Amount,0),0)) -> 913754.5 | G63: =SUM(IF(S_2AccNO=$B63,IF(S_2FieldRank<=S_2Choice,S_2Amount,0),0)) -> 0 | H63: =SUM(IF(S_3AccNO=$B63,IF(S_3FieldRank<=S_3Choice,S_3Amount,0),0)) -> 66817.5 | I63: =SUM(IF(S_4AccNO=$B63,IF(S_4FieldRank<=S_4Choice,S_4Amount,0),0)) -> 106767.5 | J63: =SUM(IF(S_5AccNO=$B63,IF(S_5FieldRank<=S_5Choice,S_5Amount,0),0)) -> 0 | K63: =SUM(IF(S_11AccNO=$B63,IF(S_11FieldRank<=S_11Choice,S_11Amount,0),0)) -> 23759 | L63: =SUM(IF(S_13AccNO=$B63,IF(S_13FieldRank<=S_13Choice,S_13Amount,0),0)) -> 0 | M63: =SUM(IF(S_14AccNO=$B63,IF(S_14FieldRank<=S_14Choice,S_14Amount,0),0)) -> 80950 | N63: Salary Expense | O63: =SUM(IF(S_6AccNO=$B63,IF(S_6FieldRank<=S_6Choice,S_6Amount,0),0)) -> 117727.5 | P63: =SUM(IF(S_7AccNO=$B63,IF(S_7FieldRank<=S_7Choice,S_7Amount,0),0)) -> 0 | Q63: =SUM(IF(S_8AccNO=$B63,IF(S_8FieldRank<=S_8Choice,S_8Amount,0),0)) -> 27360 | R63: =SUM(IF(S_9AccNO=$B63,IF(S_9FieldRank<=S_9Choice,S_9Amount,0),0)) -> 106210 | S63: =SUM(IF(S_10AccNO=$B63,IF(S_10FieldRank<=S_10Choice,S_10Amount,0),0)) -> 93570 | T63: =SUM(IF(S_12AccNO=$B63,IF(S_12FieldRank<=S_12Choice,S_12Amount,0),0)) -> 0
B64: 592 | C64: Executive Salaries | D64: 122220 | E64: 77880 | F64: =SUM(IF(S1AccNO=B64,IF(S1FieldRank<=S1Choice,S1Amount,0),0)) -> 0 | G64: =SUM(IF(S_2AccNO=$B64,IF(S_2FieldRank<=S_2Choice,S_2Amount,0),0)) -> 0 | H64: =SUM(IF(S_3AccNO=$B64,IF(S_3FieldRank<=S_3Choice,S_3Amount,0),0)) -> 0 | I64: =SUM(IF(S_4AccNO=$B64,IF(S_4FieldRank<=S_4Choice,S_4Amount,0),0)) -> 0 | J64: =SUM(IF(S_5AccNO=$B64,IF(S_5FieldRank<=S_5Choice,S_5Amount,0),0)) -> 0 | K64: =SUM(IF(S_11AccNO=$B64,IF(S_11FieldRank<=S_11Choice,S_11Amount,0),0)) -> 12000 | L64: =SUM(IF(S_13AccNO=$B64,IF(S_13FieldRank<=S_13Choice,S_13Amount,0),0)) -> 0 | M64: =SUM(IF(S_14AccNO=$B64,IF(S_14FieldRank<=S_14Choice,S_14Amount,0),0)) -> 0 | N64: Executive Salaries | O64: =SUM(IF(S_6AccNO=$B64,IF(S_6FieldRank<=S_6Choice,S_6Amount,0),0)) -> 0 | P64: =SUM(IF(S_7AccNO=$B64,IF(S_7FieldRank<=S_7Choice,S_7Amount,0),0)) -> 0 | Q64: =SUM(IF(S_8AccNO=$B64,IF(S_8FieldRank<=S_8Choice,S_8Amount,0),0)) -> 0 | R64: =SUM(IF(S_9AccNO=$B64,IF(S_9FieldRank<=S_9Choice,S_9Amount,0),0)) -> 65880 | S64: =SUM(IF(S_10AccNO=$B64,IF(S_10FieldRank<=S_10Choice,S_10Amount,0),0)) -> 0 | T64: =SUM(IF(S_12AccNO=$B64,IF(S_12FieldRank<=S_12Choice,S_12Amount,0),0)) -> 0
B65: 593 | C65: Retirement Allowance | D65: 36475 | E65: 20045 | F65: =SUM(IF(S1AccNO=B65,IF(S1FieldRank<=S1Choice,S1Amount,0),0)) -> 19570 | G65: =SUM(IF(S_2AccNO=$B65,IF(S_2FieldRank<=S_2Choice,S_2Amount,0),0)) -> 0 | H65: =SUM(IF(S_3AccNO=$B65,IF(S_3FieldRank<=S_3Choice,S_3Amount,0),0)) -> 0 | I65: =SUM(IF(S_4AccNO=$B65,IF(S_4FieldRank<=S_4Choice,S_4Amount,0),0)) -> 475 | J65: =SUM(IF(S_5AccNO=$B65,IF(S_5FieldRank<=S_5Choice,S_5Amount,0),0)) -> 0 | K65: =SUM(IF(S_11AccNO=$B65,IF(S_11FieldRank<=S_11Choice,S_11Amount,0),0)) -> 0 | L65: =SUM(IF(S_13AccNO=$B65,IF(S_13FieldRank<=S_13Choice,S_13Amount,0),0)) -> 0 | M65: =SUM(IF(S_14AccNO=$B65,IF(S_14FieldRank<=S_14Choice,S_14Amount,0),0)) -> 0 | N65: Retirement Allowance | O65: =SUM(IF(S_6AccNO=$B65,IF(S_6FieldRank<=S_6Choice,S_6Amount,0),0)) -> 0 | P65: =SUM(IF(S_7AccNO=$B65,IF(S_7FieldRank<=S_7Choice,S_7Amount,0),0)) -> 0 | Q65: =SUM(IF(S_8AccNO=$B65,IF(S_8FieldRank<=S_8Choice,S_8Amount,0),0)) -> 0 | R65: =SUM(IF(S_9AccNO=$B65,IF(S_9FieldRank<=S_9Choice,S_9Amount,0),0)) -> 0 | S65: =SUM(IF(S_10AccNO=$B65,IF(S_10FieldRank<=S_10Choice,S_10Amount,0),0)) -> 0 | T65: =SUM(IF(S_12AccNO=$B65,IF(S_12FieldRank<=S_12Choice,S_12Amount,0),0)) -> 0

Sheet S1
B1: Native Ministries | C1: 50 | D1: Choose Rank Number --------> | G1: 10
D2: Total Income | E2: =SUM(IF(S1FieldRank<=S1Choice,IF(S1AccNO<=LastIncome,S1Amount,0),0)) -> 1201920.5
D3: Total Expense | E3: =SUM(IF(S1FieldRank<=S1Choice,IF(S1AccNO>LastIncome,S1Amount,0),0)) -> 1201200.5
D4: Difference | E4: =E2-E3 -> 720
A5: Line | B5: Account Description | C5: Acc_NO | D5: Field Detail | E5: Amount
B6: =IF(C6<1," ",VLOOKUP(C6,MainAccountNO:MainAccounts,2,FALSE)) -> 
A7: 1 | B7: =IF(C7<1," ",VLOOKUP(C7,MainAccountNO:MainAccounts,2,FALSE)) ->  | D7: Supervision and Misc.
A8: 2 | B8: =IF(C8<1," ",VLOOKUP(C8,MainAccountNO:MainAccounts,2,FALSE)) -> Staff Training | C8: 537 | D8: staff training - resources (34 @ $15) | E8: 510 | H8: =IF(G8<=$G$1,"","OUT") -> 
A9: 3 | B9: =IF(C9<1," ",VLOOKUP(C9,MainAccountNO:MainAccounts,2,FALSE)) -> Commercial Travel | C9: 551 | D9: supervision visits - 2 flights @ $375 ea | E9: 750
A10: 4 | B10: =IF(C10<1," ",VLOOKUP(C10,MainAccountNO:MainAccounts,2,FALSE)) -> Meal & Entertainment | C10: 553 | D10: staff visits | E10: 250
A11: 5 | B11: =IF(C11<1," ",VLOOKUP(C11,MainAccountNO:MainAccounts,2,FALSE)) -> Motel/Hotel | C11: 546 | D11: staff visits - 4 nights | E11: 440
A12: 6 | B12: =IF(C12<1," ",VLOOKUP(C12,MainAccountNO:MainAccounts,2,FALSE)) -> Gas & Oil Auto | C12: 549 | D12: BC 5K km x $10/100km, AB 4K km, Sk 3K km, MB 7K | E12: 1900
A13: 7 | B13: =IF(C13<1," ",VLOOKUP(C13,MainAccountNO:MainAccounts,2,FALSE)) -> Auto Reimbursement | C13: 563 | D13: car rental - supervision | E13: 150
A14: 8 | B14: =IF(C14<1," ",VLOOKUP(C14,MainAccountNO:MainAccounts,2,FALSE)) -> Royalties/Fees | C14: 530 | D14: background checks - teams to Canada/U.S staff for UF | E14: 400
A15: 9
A16: 10 | B16: =IF(C16<1," ",VLOOKUP(C16,MainAccountNO:MainAccounts,2,FALSE)) -> Project Income - CND Ind | C16: 440 | D16: CAN individuals | E16: 400 | H16: =IF(G16<=$G$1,"","OUT") -> 
A17: 11 | B17: =IF(C17<1," ",VLOOKUP(C17,MainAccountNO:MainAccounts,2,FALSE)) -> Project Income - CDN Churches | C17: 441 | D17: CAN churches | E17: 100
A18: 12 | B18: =IF(C18<1," ",VLOOKUP(C18,MainAccountNO:MainAccounts,2,FALSE)) -> Operations Assessment | C18: 484 | D18: assessment on donations | E18: -50
A19: 13 | B19: =IF(C19<1," ",VLOOKUP(C19,MainAccountNO:MainAccounts,2,FALSE)) -> Special Projects | C19: 580 | D19: native church development - MB | E19: 125
A20: 14 | B20: =IF(C20<1," ",VLOOKUP(C20,MainAccountNO:MainAccounts,2,FALSE)) -> Special Projects | C20: 580 | D20: native church development - SK | E20: 125
A21: 15 | B21: =IF(C21<1," ",VLOOKUP(C21,MainAccountNO:MainAccounts,2,FALSE)) -> Special Projects | C21: 580 | D21: native church development - AB | E21: 125
A22: 16 | B22: =IF(C22<1," ",VLOOKUP(C22,MainAccountNO:MainAccounts,2,FALSE)) -> Special Projects | C22: 580 | D22: native church development - BC | E22: 125
A23: 17
A24: 18 | D24: Sewell Cabin Project (934)
A25: 19 | B25: =IF(C25<1," ",VLOOKUP(C25,MainAccountNO:MainAccounts,2,FALSE)) -> Gifts in hand | C25: 400 | D25: Apx balance on hand @ 03/31/2021 | E25: 2600 | H25: =IF(G25<=$G$1,"","OUT") -> 
A26: 20 | B26: =IF(C26<1," ",VLOOKUP(C26,MainAccountNO:MainAccounts,2,FALSE)) -> Special Projects | C26: 580 | D26: costs to build cabin on reserve | E26: 2600 | H26: =IF(G26<=$G$1,"","OUT") -> 
A27: 21
A28: 22 | D28: Native Youth Conference (950)
A29: 23 | B29: =IF(C29<1," ",VLOOKUP(C29,MainAccountNO:MainAccounts,2,FALSE)) -> Project Income - CND Ind | C29: 440 | D29: CAN individuals | E29: 400 | H29: =IF(G29<=$G$1,"","OUT") -> 
A30: 24 | B30: =IF(C30<1," ",VLOOKUP(C30,MainAccountNO:MainAccounts,2,FALSE)) -> Project Income - CDN Churches | C30: 441 | D30: CAN Churches | E30: 2400
A31: 25 | B31: =IF(C31<1," ",VLOOKUP(C31,MainAccountNO:MainAccounts,2,FALSE)) -> Operations Assessment | C31: 484 | D31: assessment on donations | E31: -280
A32: 26 | B32: =IF(C32<1," ",VLOOKUP(C32,MainAccountNO:MainAccounts,2,FALSE)) -> Special Projects | C32: 580 | D32: Native Youth Conference | E32: 2520
A33: 27
A34: 28 | D34: WayMaker Conference (954)
A35: 29 | B35: =IF(C35<1,"",VLOOKUP(C35,MainAccountNO:MainAccounts,2,FALSE)) -> Project Income - CND Ind | C35: 440 | D35: CAN individuals | E35: 0
A36: 30 | B36: =IF(C36<1,,VLOOKUP(C36,MainAccountNO:MainAccounts,2,FALSE)) -> Project Income - CDN Churches | C36: 441 | D36: CAN Churches | E36: 0
A37: 31 | B37: =IF(C37<1,,VLOOKUP(C37,MainAccountNO:MainAccounts,2,FALSE)) -> Other income | C37: 455 | D37: Registrations $155 x 110 participants | E37: 17050
A38: 32 | B38: =IF(C38<1,,VLOOKUP(C38,MainAccountNO:MainAccounts,2,FALSE)) -> Other income | C38: 455 | D38: Registrations $145 x 25 leaders | E38: 3625
A39: 33 | B39: =IF(C39<1,,VLOOKUP(C39,MainAccountNO:MainAccounts,2,FALSE)) -> Operations Assessment | C39: 484 | D39: assessment on donations | E39: 0
A40: 34 | B40: =IF(C40<1,,VLOOKUP(C40,MainAccountNO:MainAccounts,2,FALSE)) -> Special Projects | C40: 580 | D40: Facility rental - 137 people | E40: 18495
A41: 35 | B41: =IF(C41<1,,VLOOKUP(C41,MainAccountNO:MainAccounts,2,FALSE)) -> Special Projects | C41: 580 | D41: Facility rental - speaker accomodations | E41: 145
A42: 36 | B42: =IF(C42<1,,VLOOKUP(C42,MainAccountNO:MainAccounts,2,FALSE)) -> Speaker Honorarium | C42: 559 | D42: Speaker/Entertainment | E42: 1000
A43: 37 | B43: =IF(C43<1,,VLOOKUP(C43,MainAccountNO:MainAccounts,2,FALSE)) -> Speaker Honorarium | C43: 559 | D43: Honorarium/elder gift | E43: 100
A44: 38 | B44: =IF(C44<1,,VLOOKUP(C44,MainAccountNO:MainAccounts,2,FALSE)) -> General Supply & Service | C44: 545 | D44: Activities | E44: 560
A45: 39 | B45: =IF(C45<1,,VLOOKUP(C45,MainAccountNO:MainAccounts,2,FALSE)) -> General Supply & Service | C45: 545 | D45: Game supplies | E45: 250
A46: 40 | B46: =IF(C46<1,,VLOOKUP(C46,MainAccountNO:MainAccounts,2,FALSE)) -> General Supply & Service | C46: 545 | D46: Prizes (each community also contributing $50 for prizes) | E46: 125
A47: 41
A48: 42 | D48: Winter WayMaker
A49: 43 | B49: =IF(C49<1,"",VLOOKUP(C49,MainAccountNO:MainAccounts,2,FALSE)) -> Project Income - CND Ind | C49: 440 | D49: CAN individuals | E49: 700 | H49: =IF(G49<=$G$1,"","OUT") -> 
A50: 44 | B50: =IF(C50<1,,VLOOKUP(C50,MainAccountNO:MainAccounts,2,FALSE)) -> Project Income - CDN Churches | C50: 441 | D50: CAN Churches | E50: 0
A51: 45 | B51: =IF(C51<1,,VLOOKUP(C51,MainAccountNO:MainAccounts,2,FALSE)) -> Other income | C51: 455 | D51: Registrations $155 x 55 participants | E51: 8525
A52: 46 | B52: =IF(C52<1,,VLOOKUP(C52,MainAccountNO:MainAccounts,2,FALSE)) -> Other income | C52: 455 | D52: Registrations $145 x 15 leaders | E52: 2175
A53: 47 | B53: =IF(C53<1,,VLOOKUP(C53,MainAccountNO:MainAccounts,2,FALSE)) -> Operations Assessment | C53: 484 | D53: assessment on donations | E53: -70
A54: 48 | B54: =IF(C54<1,,VLOOKUP(C54,MainAccountNO:MainAccounts,2,FALSE)) -> Special Projects | C54: 580 | D54: Facility rental - 70 people | E54: 9590
A55: 49 | B55: =IF(C55<1,,VLOOKUP(C55,MainAccountNO:MainAccounts,2,FALSE)) -> Special Projects | C55: 580 | D55: Facility rental - speaker accomodations | E55: 300
A56: 50 | B56: =IF(C56<1,,VLOOKUP(C56,MainAccountNO:MainAccounts,2,FALSE)) -> Speaker Honorarium | C56: 559 | D56: Speaker/Entertainment | E56: 400
A57: 51 | B57: =IF(C57<1,,VLOOKUP(C57,MainAccountNO:MainAccounts,2,FALSE)) -> Speaker Honorarium | C57: 559 | D57: Honorarium/elder gift | E57: 100
A58: 52 | B58: =IF(C58<1,,VLOOKUP(C58,MainAccountNO:MainAccounts,2,FALSE)) -> General Supply & Service | C58: 545 | D58: Activities | E58: 560
A59: 53 | B59: =IF(C59<1,,VLOOKUP(C59,MainAccountNO:MainAccounts,2,FALSE)) -> General Supply & Service | C59: 545 | D59: Game supplies | E59: 250
A60: 54 | B60: =IF(C60<1,,VLOOKUP(C60,MainAccountNO:MainAccounts,2,FALSE)) -> General Supply & Service | C60: 545 | D60: Prizes | E60: 200
A61: 55
A62: 56 | D62: Chilcotin Projects (966)
A63: 57 | B63: =IF(C63<1," ",VLOOKUP(C63,MainAccountNO:MainAccounts,2,FALSE)) -> Gifts in hand | C63: 400 | D63: apx balance on hand @ 03/31/2021 | E63: 41
A64: 58 | B64: =IF(C64<1," ",VLOOKUP(C64,MainAccountNO:MainAccounts,2,FALSE)) -> Special Projects | C64: 580 | D64: Chilcotin Projects | E64: 41 | H64: =IF(G64<=$G$1,"","OUT") -> 
A65: 59
A66: 60 | D66: Community Research/Relational Development (942)
A67: 61 | B67: =IF(C67<1," ",VLOOKUP(C67,MainAccountNO:MainAccounts,2,FALSE)) -> Gas & Oil Auto | C67: 549 | D67: apx. 1500 km | E67: 180
A68: 62 | B68: =IF(C68<1," ",VLOOKUP(C68,MainAccountNO:MainAccounts,2,FALSE)) -> Motel/Hotel | C68: 546 | D68: 1 night x 2 | E68: 250
A69: 63 | B69: =IF(C69<1," ",VLOOKUP(C69,MainAccountNO:MainAccounts,2,FALSE)) -> Meal & Entertainment | C69: 553 | D69: 4 meals ($20/meal) relationship development x 2 | E69: 160
A70: 64 | B70: =IF(C70<1," ",VLOOKUP(C70,MainAccountNO:MainAccounts,2,FALSE)) -> Special Projects | C70: 580 | D70: value added for believers/community (training, events, scholarships, etc.) | E70: 300
A71: 65 | B71: =IF(C71<1," ",VLOOKUP(C71,MainAccountNO:MainAccounts,2,FALSE)) -> Special Projects | C71: 580 | D71: community resourcing | E71: 200
A72: 66
A73: 67 | D73: NM Staffing
A74: 68 | B74: =IF(C74<1," ",VLOOKUP(C74,MainAccountNO:MainAccounts,2,FALSE)) -> US Gifts | C74: 430 | D74: Beutler US support | E74: 800 | H74: =IF(G74<=$G$1,"","OUT") -> 
A75: 69 | B75: =IF(C75<1," ",VLOOKUP(C75,MainAccountNO:MainAccounts,2,FALSE)) -> Canadian Gifts-Staff | C75: 410 | D75: Beutler CDN support | E75: 93800 | F75: =0.1*(E74+E75) -> 9460
A76: 70 | B76: =IF(C76<1," ",VLOOKUP(C76,MainAccountNO:MainAccounts,2,FALSE)) -> Ministry Expense | C76: 587 | D76: Beutler MER | E76: 15400
A77: 71 | B77: =IF(C77<1," ",VLOOKUP(C77,MainAccountNO:MainAccounts,2,FALSE)) -> Salary Expense | C77: 591 | D77: Beutler salary | E77: =0.9*(E74+E75)-E76 -> 69740
A78: 72 | B78: =IF(C78<1," ",VLOOKUP(C78,MainAccountNO:MainAccounts,2,FALSE)) -> US Gifts | C78: 430 | D78: Browning, Dick US Support | E78: 36500
A79: 73 | B79: =IF(C79<1," ",VLOOKUP(C79,MainAccountNO:MainAccounts,2,FALSE)) -> Canadian Gifts-Staff | C79: 410 | D79: Browning, Dick CDN Support | E79: 15300 | F79: =0.1*(E78+E79) -> 5180
A80: 74 | B80: =IF(C80<1," ",VLOOKUP(C80,MainAccountNO:MainAccounts,2,FALSE)) -> Ministry Expense | C80: 587 | D80: Browning, Dick MER | E80: 0
A81: 75 | B81: =IF(C81<1," ",VLOOKUP(C81,MainAccountNO:MainAccounts,2,FALSE)) -> Salary Expense | C81: 591 | D81: Browning, Dick Salary | E81: =0.9*(E78+E79)-E80 -> 46620
A82: 76 | B82: =IF(C82<1,,VLOOKUP(C82,MainAccountNO:MainAccounts,2,FALSE)) -> US Gifts | C82: 430 | D82: Cross US Support | E82: 10300
A83: 77 | B83: =IF(C83<1,,VLOOKUP(C83,MainAccountNO:MainAccounts,2,FALSE)) -> Canadian Gifts-Staff | C83: 410 | D83: Cross CDN Support | E83: 24600 | F83: =0.1*(E82+E83) -> 3490
A84: 78 | B84: =IF(C84<1,,VLOOKUP(C84,MainAccountNO:MainAccounts,2,FALSE)) -> Ministry Expense | C84: 587 | D84: Cross MER | E84: 6800
A85: 79 | B85: =IF(C85<1,,VLOOKUP(C85,MainAccountNO:MainAccounts,2,FALSE)) -> Salary Expense | C85: 591 | D85: Cross Salary | E85: =0.9*(E82+E83)-E84 -> 24610
A86: 80 | B86: =IF(C86<1," ",VLOOKUP(C86,MainAccountNO:MainAccounts,2,FALSE)) -> US Gifts | C86: 430 | D86: Dick US Support | E86: 10500
A87: 81 | B87: =IF(C87<1," ",VLOOKUP(C87,MainAccountNO:MainAccounts,2,FALSE)) -> Canadian Gifts-Staff | C87: 410 | D87: Dick CDN Support | E87: 53600 | F87: =0.1*(E86+E87) -> 6410
A88: 82 | B88: =IF(C88<1," ",VLOOKUP(C88,MainAccountNO:MainAccounts,2,FALSE)) -> Ministry Expense | C88: 587 | D88: Dick MER | E88: 8450
A89: 83 | B89: =IF(C89<1," ",VLOOKUP(C89,MainAccountNO:MainAccounts,2,FALSE)) -> Salary Expense | C89: 591 | D89: Dick Salary | E89: =0.9*(E86+E87)-E88 -> 49240
A90: 84 | B90: =IF(C90<1," ",VLOOKUP(C90,MainAccountNO:MainAccounts,2,FALSE)) -> US Gifts | C90: 430 | D90: Gillaspie US Support | E90: 82250
A91: 85 | B91: =IF(C91<1," ",VLOOKUP(C91,MainAccountNO:MainAccounts,2,FALSE)) -> Canadian Gifts-Staff | C91: 410 | D91: Gillaspie CDN Support | E91: 0 | F91: =0.1*(E90+E91) -> 8225
A92: 86 | B92: =IF(C92<1," ",VLOOKUP(C92,MainAccountNO:MainAccounts,2,FALSE)) -> Ministry Expense | C92: 587 | D92: Gillaspie MER | E92: 27550
A93: 87 | B93: =IF(C93<1," ",VLOOKUP(C93,MainAccountNO:MainAccounts,2,FALSE)) -> Salary Expense | C93: 591 | D93: Gillaspie Salary | E93: =0.9*(E90+E91)-E92 -> 46475
A94: 88 | B94: =IF(C94<1," ",VLOOKUP(C94,MainAccountNO:MainAccounts,2,FALSE)) -> Canadian Gifts-Staff | C94: 410 | D94: Hamilton, J CDN Support | E94: 18400
A95: 89 | B95: =IF(C95<1," ",VLOOKUP(C95,MainAccountNO:MainAccounts,2,FALSE)) -> US Gifts | C95: 430 | D95: Hamilton, J US Support | E95: 47300 | F95: =0.1*(E94+E95) -> 6570
A96: 90 | B96: =IF(C96<1," ",VLOOKUP(C96,MainAccountNO:MainAccounts,2,FALSE)) -> Ministry Expense | C96: 587 | D96: Hamilton, J MER | E96: 18000
A97: 91 | B97: =IF(C97<1," ",VLOOKUP(C97,MainAccountNO:MainAccounts,2,FALSE)) -> Salary Expense | C97: 591 | D97: Hamilton, J Salary | E97: =0.9*(E94+E95)-E96 -> 41130
A98: 92 | B98: =IF(C98<1," ",VLOOKUP(C98,MainAccountNO:MainAccounts,2,FALSE)) -> US Gifts | C98: 430 | D98: Harms US Support | E98: 0
A99: 93 | B99: =IF(C99<1," ",VLOOKUP(C99,MainAccountNO:MainAccounts,2,FALSE)) -> Canadian Gifts-Staff | C99: 410 | D99: Harms CDN Support | E99: 47800 | F99: =0.1*(E98+E99) -> 4780
A100: 94 | B100: =IF(C100<1," ",VLOOKUP(C100,MainAccountNO:MainAccounts,2,FALSE)) -> Ministry Expense | C100: 587 | D100: Harms MER | E100: 6800
A101: 95 | B101: =IF(C101<1," ",VLOOKUP(C101,MainAccountNO:MainAccounts,2,FALSE)) -> Salary Expense | C101: 591 | D101: Harms Salary | E101: =0.9*(E98+E99)-E100 -> 36220
A102: 96 | B102: =IF(C102<1," ",VLOOKUP(C102,MainAccountNO:MainAccounts,2,FALSE)) -> US Gifts | C102: 430 | D102: Kasten US Support | E102: 43000
A103: 97 | B103: =IF(C103<1," ",VLOOKUP(C103,MainAccountNO:MainAccounts,2,FALSE)) -> Canadian Gifts-Staff | C103: 410 | D103: Kasten CDN Support | E103: 500 | F103: =0.05*(E102+E103) -> 2175
A104: 98 | B104: =IF(C104<1," ",VLOOKUP(C104,MainAccountNO:MainAccounts,2,FALSE)) -> Ministry Expense | C104: 587 | D104: Kasten MER | E104: 1500
A105: 99 | B105: =IF(C105<1," ",VLOOKUP(C105,MainAccountNO:MainAccounts,2,FALSE)) -> Salary Expense | C105: 591 | D105: Kasten Salary | E105: =0.95*(E102+E103)-E104 -> 39825
A106: 100 | B106: =IF(C106<1," ",VLOOKUP(C106,MainAccountNO:MainAccounts,2,FALSE)) -> Canadian Gifts-Staff | C106: 410 | D106: Kenyon US Support | E106: 49775 | H106: =IF(G106<=$G$1,"","OUT") -> 
A107: 101 | B107: =IF(C107<1," ",VLOOKUP(C107,MainAccountNO:MainAccounts,2,FALSE)) -> US Gifts | C107: 430 | D107: Kenyon CDN Support | E107: 42400 | F107: =0.1*(E106+E107) -> 9217.5
A108: 102 | B108: =IF(C108<1," ",VLOOKUP(C108,MainAccountNO:MainAccounts,2,FALSE)) -> Ministry Expense | C108: 587 | D108: Kenyon MER | E108: 11000
A109: 103 | B109: =IF(C109<1," ",VLOOKUP(C109,MainAccountNO:MainAccounts,2,FALSE)) -> Salary Expense | C109: 591 | D109: Kenyon Salary | E109: =0.9*(E106+E107)-E108 -> 71957.5
A110: 104 | B110: =IF(C110<1," ",VLOOKUP(C110,MainAccountNO:MainAccounts,2,FALSE)) -> US Gifts | C110: 430 | D110: Olney US Support | E110: 200 | H110: =IF(G110<=$G$1,"","OUT") -> 
A111: 105 | B111: =IF(C111<1," ",VLOOKUP(C111,MainAccountNO:MainAccounts,2,FALSE)) -> Canadian Gifts-Staff | C111: 410 | D111: Olney CDN Support | E111: 58500 | F111: =0.1*(E110+E111) -> 5870
A112: 106 | B112: =IF(C112<1," ",VLOOKUP(C112,MainAccountNO:MainAccounts,2,FALSE)) -> Ministry Expense | C112: 587 | D112: Olney MER | E112: 6000
A113: 107 | B113: =IF(C113<1," ",VLOOKUP(C113,MainAccountNO:MainAccounts,2,FALSE)) -> Salary Expense | C113: 591 | D113: Olney Salary | E113: =0.9*(E110+E111)-E112 -> 46830
A114: 108 | B114: =IF(C114<1," ",VLOOKUP(C114,MainAccountNO:MainAccounts,2,FALSE)) -> US Gifts | C114: 430 | D114: Plett US Support | E114: 500
A115: 109 | B115: =IF(C115<1," ",VLOOKUP(C115,MainAccountNO:MainAccounts,2,FALSE)) -> Canadian Gifts-Staff | C115: 410 | D115: Plett CDN Support | E115: 43530 | F115: =0.1*(E114+E115) -> 4403
A116: 110 | B116: =IF(C116<1," ",VLOOKUP(C116,MainAccountNO:MainAccounts,2,FALSE)) -> Ministry Expense | C116: 587 | D116: Plett MER | E116: 6000
A117: 111 | B117: =IF(C117<1," ",VLOOKUP(C117,MainAccountNO:MainAccounts,2,FALSE)) -> Salary Expense | C117: 591 | D117: Plett Salary | E117: =0.9*(E114+E115)-E116 -> 33627
A118: 112 | B118: =IF(C118<1," ",VLOOKUP(C118,MainAccountNO:MainAccounts,2,FALSE)) -> US Gifts | C118: 430 | D118: Sayer US support | E118: 2700
A119: 113 | B119: =IF(C119<1," ",VLOOKUP(C119,MainAccountNO:MainAccounts,2,FALSE)) -> Canadian Gifts-Staff | C119: 410 | D119: Sayer CDN support | E119: 78300 | F119: =0.1*(E118+E119) -> 8100
A120: 114 | B120: =IF(C120<1," ",VLOOKUP(C120,MainAccountNO:MainAccounts,2,FALSE)) -> Ministry Expense | C120: 587 | D120: Sayer MER | E120: 24000
A121: 115 | B121: =IF(C121<1," ",VLOOKUP(C121,MainAccountNO:MainAccounts,2,FALSE)) -> Salary Expense | C121: 591 | D121: Sayer salary | E121: =0.9*(E118+E119)-E120 -> 48900
A122: 116 | B122: =IF(C122<1," ",VLOOKUP(C122,MainAccountNO:MainAccounts,2,FALSE)) -> US Gifts | C122: 430 | D122: Sebald US support | E122: 83000
A123: 117 | B123: =IF(C123<1," ",VLOOKUP(C123,MainAccountNO:MainAccounts,2,FALSE)) -> Canadian Gifts-Staff | C123: 410 | D123: Sebald CDN support | E123: 4000 | F123: =0.1*(E122+E123) -> 8700
A124: 118 | B124: =IF(C124<1," ",VLOOKUP(C124,MainAccountNO:MainAccounts,2,FALSE)) -> Ministry Expense | C124: 587 | D124: Sebald MER | E124: 8000
A125: 119 | B125: =IF(C125<1," ",VLOOKUP(C125,MainAccountNO:MainAccounts,2,FALSE)) -> Salary Expense | C125: 591 | D125: Sebald salary | E125: =0.9*(E122+E123)-E124 -> 70300
A126: 120 | B126: =IF(C126<1," ",VLOOKUP(C126,MainAccountNO:MainAccounts,2,FALSE)) -> US Gifts | C126: 430 | D126: Serger US Support | E126: 0
A127: 121 | B127: =IF(C127<1," ",VLOOKUP(C127,MainAccountNO:MainAccounts,2,FALSE)) -> Canadian Gifts-Staff | C127: 410 | D127: Serger CDN Support | E127: 41150 | F127: =0.1*(E126+E127) -> 4115
A128: 122 | B128: =IF(C128<1," ",VLOOKUP(C128,MainAccountNO:MainAccounts,2,FALSE)) -> Ministry Expense | C128: 587 | D128: Serger MER | E128: 6000
A129: 123 | B129: =IF(C129<1," ",VLOOKUP(C129,MainAccountNO:MainAccounts,2,FALSE)) -> Salary Expense | C129: 591 | D129: Serger Salary | E129: =0.9*(E126+E127)-E128 -> 31035
A130: 124 | B130: =IF(C130<1," ",VLOOKUP(C130,MainAccountNO:MainAccounts,2,FALSE)) -> US Gifts | C130: 430 | D130: Sewell US Support | E130: 126800
A131: 125 | B131: =IF(C131<1," ",VLOOKUP(C131,MainAccountNO:MainAccounts,2,FALSE)) -> Canadian Gifts-Staff | C131: 410 | D131: Sewell CDN Support | E131: 15100 | F131: =0.1*(E130+E131) -> 14190
A132: 126 | B132: =IF(C132<1," ",VLOOKUP(C132,MainAccountNO:MainAccounts,2,FALSE)) -> Ministry Expense | C132: 587 | D132: Sewell MER | E132: 29000 | H132: =IF(G132<=$G$1,"","OUT") -> 
A133: 127 | B133: =IF(C133<1," ",VLOOKUP(C133,MainAccountNO:MainAccounts,2,FALSE)) -> Salary Expense | C133: 591 | D133: Sewell Salary | E133: =0.9*(E130+E131)-E132 -> 98710
A134: 128 | B134: =IF(C134<1," ",VLOOKUP(C134,MainAccountNO:MainAccounts,2,FALSE)) -> US Gifts | C134: 430 | D134: Straley US Support | E134: 38350
A135: 129 | B135: =IF(C135<1," ",VLOOKUP(C135,MainAccountNO:MainAccounts,2,FALSE)) -> Canadian Gifts-Staff | C135: 410 | D135: Straley CDN Support | E135: 27650 | F135: =0.1*(E134+E135) -> 6600
A136: 130 | B136: =IF(C136<1," ",VLOOKUP(C136,MainAccountNO:MainAccounts,2,FALSE)) -> Ministry Expense | C136: 587 | D136: Straley MER | E136: 6000
A137: 131 | B137: =IF(C137<1," ",VLOOKUP(C137,MainAccountNO:MainAccounts,2,FALSE)) -> Salary Expense | C137: 591 | D137: Straley Salary | E137: =0.9*(E134+E135)-E136 -> 53400
A138: 132 | B138: =IF(C138<1," ",VLOOKUP(C138,MainAccountNO:MainAccounts,2,FALSE)) -> US Gifts | C138: 430 | D138: Stigile US support | E138: 51500
A139: 133 | B139: =IF(C139<1," ",VLOOKUP(C139,MainAccountNO:MainAccounts,2,FALSE)) -> Canadian Gifts-Staff | C139: 410 | D139: Stigile CDN support | E139: 1725 | F139: =0.1*(E138+E139) -> 5322.5
A140: 134 | B140: =IF(C140<1," ",VLOOKUP(C140,MainAccountNO:MainAccounts,2,FALSE)) -> Ministry Expense | C140: 587 | D140: Stigile MER | E140: 3600
A141: 135 | B141: =IF(C141<1," ",VLOOKUP(C141,MainAccountNO:MainAccounts,2,FALSE)) -> Salary Expense | C141: 591 | D141: Stigle salary | E141: =0.9*(E138+E139)-E140 -> 44302.5
A142: 136 | B142: =IF(C142<1," ",VLOOKUP(C142,MainAccountNO:MainAccounts,2,FALSE)) -> US Gifts | C142: 430 | D142: Thiessen US Support | E142: 73850
A143: 137 | B143: =IF(C143<1," ",VLOOKUP(C143,MainAccountNO:MainAccounts,2,FALSE)) -> Canadian Gifts-Staff | C143: 410 | D143: Thiessen CDN Support | E143: 2575 | F143: =0.1*(E142+E143) -> 7642.5
A144: 138 | B144: =IF(C144<1," ",VLOOKUP(C144,MainAccountNO:MainAccounts,2,FALSE)) -> Ministry Expense | C144: 587 | D144: Thiessen MER | E144: 30750
A145: 139 | B145: =IF(C145<1," ",VLOOKUP(C145,MainAccountNO:MainAccounts,2,FALSE)) -> Salary Expense | C145: 591 | D145: Thiessen Salary | E145: =0.9*(E142+E143)-E144 -> 38032.5
A146: 140 | B146: =IF(C146<1," ",VLOOKUP(C146,MainAccountNO:MainAccounts,2,FALSE)) -> US Gifts | C146: 430 | D146: Vyskocil US Support | E146: 0
A147: 141 | B147: =IF(C147<1," ",VLOOKUP(C147,MainAccountNO:MainAccounts,2,FALSE)) -> Canadian Gifts-Staff | C147: 410 | D147: Vyskocil CDN Support | E147: 3800 | F147: =12*125 -> 1500
A148: 142 | B148: =IF(C148<1," ",VLOOKUP(C148,MainAccountNO:MainAccounts,2,FALSE)) -> Ministry Expense | C148: 587 | D148: Vyskocil MER | E148: 3800
A149: 143 | B149: =IF(C149<1,,VLOOKUP(C149,MainAccountNO:MainAccounts,2,FALSE)) -> US Gifts | C149: 430 | D149: Wortham US Support | E149: 32000
A150: 144 | B150: =IF(C150<1,,VLOOKUP(C150,MainAccountNO:MainAccounts,2,FALSE)) -> Canadian Gifts-Staff | C150: 410 | D150: Wortham CDN Support | E150: 0 | F150: =0.1*(E149+E150) -> 3200
A151: 145 | B151: =IF(C151<1,,VLOOKUP(C151,MainAccountNO:MainAccounts,2,FALSE)) -> Ministry Expense | C151: 587 | D151: Wortham MER | E151: 6000
A152: 146 | B152: =IF(C152<1,,VLOOKUP(C152,MainAccountNO:MainAccounts,2,FALSE)) -> Salary Expense | C152: 591 | D152: Wortham Salary | E152: =0.9*(E149+E150)-E151 -> 22800
A153: 147 | B153: =IF(C153<1," ",VLOOKUP(C153,MainAccountNO:MainAccounts,2,FALSE)) -> Operations Assessment | C153: 484 | D153: operations assessment | E153: =-0.1*(E74+E75+E78+E79+E82+E83+E86+E87+E90+E91+E94+E95+E98+E99+E106+E107+E110+E111+E114+E115+E118+E122+E123+E126+E127+E130+E131+E134+E135+E138+E139+E142+E143+E149+E150)-2175-1500 -> -117320.5
A154: 148
A155: 149 | D155: Retired Staff (5% assessment)
A156: 150 | B156: =IF(C156<1,,VLOOKUP(C156,MainAccountNO:MainAccounts,2,FALSE)) -> Canadian Gifts-Staff | C156: 410 | D156: Kees CDN Support | E156: 600
A157: 151 | B157: =IF(C157<1,,VLOOKUP(C157,MainAccountNO:MainAccounts,2,FALSE)) -> US Gifts | C157: 430 | D157: Kees US Support | E157: 20000 | F157: =0.05*(E157+E156) -> 1030
A158: 152 | B158: =IF(C158<1,,VLOOKUP(C158,MainAccountNO:MainAccounts,2,FALSE)) -> Retirement Allowance | C158: 593 | D158: Kees Salary | E158: =0.95*(E156+E157) -> 19570
A159: 153 | B159: =IF(C159<1,,VLOOKUP(C159,MainAccountNO:MainAccounts,2,FALSE)) -> Operations Assessment | C159: 484 | D159: operations assessment | E159: =-0.05*(E156+E157) -> -1030

Sheet S2
B1: EnGage! | C1: 40 | D1: Choose Rank Number --------> | G1: 10
D2: Total Income | E2: =SUM(IF(S_2FieldRank<=S_2Choice,IF(S_2AccNO<=LastIncome,S_2Amount,0),0)) -> 28750
D3: Total Expense | E3: =SUM(IF(S_2FieldRank<=S_2Choice,IF(S_2AccNO>LastIncome,S_2Amount,0),0)) -> 12150
D4: Difference | E4: =E2-E3 -> 16600
A5: Line | B5: Account Description | C5: Acc_NO | D5: Field Detail | E5: Amount
A7: 1 | B7: =IF(C7<1," ",VLOOKUP(C7,MainAccountNO:MainAccounts,2,FALSE)) -> Gifts in hand | C7: 400 | D7: apx balance on hand @ 03/31/2021 | E7: 16600 | H7: =IF(G7<=$G$1,"","OUT") -> 
A8: 2 | B8: =IF(C8<1," ",VLOOKUP(C8,MainAccountNO:MainAccounts,2,FALSE)) -> Project Income - CDN Churches | C8: 441 | D8: 6 participants @ $1350 less scholarships | E8: 8100
A9: 3 | B9: =IF(C9<1," ",VLOOKUP(C9,MainAccountNO:MainAccounts,2,FALSE)) -> Special Projects | C9: 580 | D9: mobilization scholarships | E9: 1500
A10: 4 | B10: =IF(C10<1," ",VLOOKUP(C10,MainAccountNO:MainAccounts,2,FALSE)) -> Operations Assessment | C10: 484 | D10: assessment on fees | E10: -810
A11: 5 | B11: =IF(C11<1," ",VLOOKUP(C11,MainAccountNO:MainAccounts,2,FALSE)) -> Project Income - CDN Churches | C11: 441 | D11: 4 participants ESL EnGage! @ $1350 | E11: 5400
A12: 6 | B12: =IF(C12<1," ",VLOOKUP(C12,MainAccountNO:MainAccounts,2,FALSE)) -> Operations Assessment | C12: 484 | D12: assessment on fees | E12: -540
A13: 7 | B13: =IF(C13<1," ",VLOOKUP(C13,MainAccountNO:MainAccounts,2,FALSE)) -> Bldg, Equip & Liab. Ins. | C13: 519 | D13: liability insurance | E13: 150
A14: 8
A15: 9 | D15: First Nations EnGage!
A16: 10 | B16: =IF(C16<1," ",VLOOKUP(C16,MainAccountNO:MainAccounts,2,FALSE)) -> Advertising | C16: 503 | D16: recruitment | E16: 250
A17: 11 | B17: =IF(C17<1," ",VLOOKUP(C17,MainAccountNO:MainAccounts,2,FALSE)) -> Royalties/Fees | C17: 530 | D17: background checks | E17: 170
A18: 12 | B18: =IF(C18<1," ",VLOOKUP(C18,MainAccountNO:MainAccounts,2,FALSE)) -> Equip. Maint. | C18: 527 | D18: printing | E18: 50
A19: 13 | B19: =IF(C19<1," ",VLOOKUP(C19,MainAccountNO:MainAccounts,2,FALSE)) -> Staff Training | C19: 537 | D19: training materials and supplies | E19: 500
A20: 14 | B20: =IF(C20<1," ",VLOOKUP(C20,MainAccountNO:MainAccounts,2,FALSE)) -> General Supply & Service | C20: 545 | D20: ministry supplies | E20: 300
A21: 15 | B21: =IF(C21<1," ",VLOOKUP(C21,MainAccountNO:MainAccounts,2,FALSE)) -> Meal & Entertainment | C21: 553 | D21: food & living expenses | E21: 3400
A22: 16 | B22: =IF(C22<1," ",VLOOKUP(C22,MainAccountNO:MainAccounts,2,FALSE)) -> Gas & Oil Auto | C22: 549 | D22: travel re. supervision | E22: 750
A23: 17
A24: 18 | B24: =IF(C24<1," ",VLOOKUP(C24,MainAccountNO:MainAccounts,2,FALSE)) ->  | D24: ESL EnGage!
A25: 19 | B25: =IF(C25<1," ",VLOOKUP(C25,MainAccountNO:MainAccounts,2,FALSE)) -> Advertising | C25: 503 | D25: recruitment | E25: 150
A26: 20 | B26: =IF(C26<1," ",VLOOKUP(C26,MainAccountNO:MainAccounts,2,FALSE)) -> Royalties/Fees | C26: 530 | D26: background checks | E26: 110
A27: 21 | B27: =IF(C27<1," ",VLOOKUP(C27,MainAccountNO:MainAccounts,2,FALSE)) -> Equip. Maint. | C27: 527 | D27: printing | E27: 20
A28: 22 | B28: =IF(C28<1," ",VLOOKUP(C28,MainAccountNO:MainAccounts,2,FALSE)) -> Staff Training | C28: 537 | D28: training materials and supplies | E28: 400
A29: 23 | B29: =IF(C29<1," ",VLOOKUP(C29,MainAccountNO:MainAccounts,2,FALSE)) -> General Supply & Service | C29: 545 | D29: ministry supplies | E29: 200
A30: 24 | B30: =IF(C30<1," ",VLOOKUP(C30,MainAccountNO:MainAccounts,2,FALSE)) -> Motel/Hotel | C30: 546 | D30: hotel re. supervision | E30: 250
A31: 25 | B31: =IF(C31<1," ",VLOOKUP(C31,MainAccountNO:MainAccounts,2,FALSE)) -> Meal & Entertainment | C31: 553 | D31: food & living expenses | E31: 2200
A32: 26 | B32: =IF(C32<1," ",VLOOKUP(C32,MainAccountNO:MainAccounts,2,FALSE)) -> Gas & Oil Auto | C32: 549 | D32: travel re. supervision | E32: 850
A33: 27 | B33: =IF(C33<1," ",VLOOKUP(C33,MainAccountNO:MainAccounts,2,FALSE)) -> Commercial Travel | C33: 551 | D33: travel re. orientation | E33: 600
A34: 28 | B34: =IF(C34<1," ",VLOOKUP(C34,MainAccountNO:MainAccounts,2,FALSE)) -> Auto Reimbursement | C34: 563 | D34: car rental re. supervision | E34: 300
A35: 29 | B35: =IF(C35<1," ",VLOOKUP(C35,MainAccountNO:MainAccounts,2,FALSE)) -> 
A36: 30 | B36: =IF(C36<1," ",VLOOKUP(C36,MainAccountNO:MainAccounts,2,FALSE)) -> 
A37: 31 | B37: =IF(C37<1," ",VLOOKUP(C37,MainAccountNO:MainAccounts,2,FALSE)) -> 
A38: 32 | B38: =IF(C38<1," ",VLOOKUP(C38,MainAccountNO:MainAccounts,2,FALSE)) -> 
A39: 33 | B39: =IF(C39<1," ",VLOOKUP(C39,MainAccountNO:MainAccounts,2,FALSE)) -> 
A40: 34 | B40: =IF(C40<1," ",VLOOKUP(C40,MainAccountNO:MainAccounts,2,FALSE)) -> 
A41: 35 | B41: =IF(C41<1," ",VLOOKUP(C41,MainAccountNO:MainAccounts,2,FALSE)) -> 
A42: 36 | B42: =IF(C42<1," ",VLOOKUP(C42,MainAccountNO:MainAccounts,2,FALSE)) -> 
A43: 37 | B43: =IF(C43<1," ",VLOOKUP(C43,MainAccountNO:MainAccounts,2,FALSE)) -> 
A44: 38 | B44: =IF(C44<1," ",VLOOKUP(C44,MainAccountNO:MainAccounts,2,FALSE)) -> 
A45: 39 | B45: =IF(C45<1," ",VLOOKUP(C45,MainAccountNO:MainAccounts,2,FALSE)) -> 
A46: 40 | B46: =IF(C46<1," ",VLOOKUP(C46,MainAccountNO:MainAccounts,2,FALSE)) -> 
A47: 41 | B47: =IF(C47<1," ",VLOOKUP(C47,MainAccountNO:MainAccounts,2,FALSE)) -> 
A48: 42 | B48: =IF(C48<1," ",VLOOKUP(C48,MainAccountNO:MainAccounts,2,FALSE)) -> 
A49: 43 | B49: =IF(C49<1," ",VLOOKUP(C49,MainAccountNO:MainAccounts,2,FALSE)) -> 
A50: 44 | B50: =IF(C50<1," ",VLOOKUP(C50,MainAccountNO:MainAccounts,2,FALSE)) -> 
A51: 45 | B51: =IF(C51<1," ",VLOOKUP(C51,MainAccountNO:MainAccounts,2,FALSE)) -> 
A52: 46 | B52: =IF(C52<1," ",VLOOKUP(C52,MainAccountNO:MainAccounts,2,FALSE)) -> 
A53: 47 | B53: =IF(C53<1," ",VLOOKUP(C53,MainAccountNO:MainAccounts,2,FALSE)) -> 
A54: 48 | B54: =IF(C54<1," ",VLOOKUP(C54,MainAccountNO:MainAccounts,2,FALSE)) -> 
A55: 49 | B55: =IF(C55<1," ",VLOOKUP(C55,MainAccountNO:MainAccounts,2,FALSE)) -> 
A56: 50 | B56: =IF(C56<1," ",VLOOKUP(C56,MainAccountNO:MainAccounts,2,FALSE)) -> 
A57: 51 | B57: =IF(C57<1," ",VLOOKUP(C57,MainAccountNO:MainAccounts,2,FALSE)) -> 
A58: 52 | B58: =IF(C58<1," ",VLOOKUP(C58,MainAccountNO:MainAccounts,2,FALSE)) -> 
A59: 53 | B59: =IF(C59<1," ",VLOOKUP(C59,MainAccountNO:MainAccounts,2,FALSE)) -> 
A60: 54 | B60: =IF(C60<1," ",VLOOKUP(C60,MainAccountNO:MainAccounts,2,FALSE)) -> 
A61: 55 | B61: =IF(C61<1," ",VLOOKUP(C61,MainAccountNO:MainAccounts,2,FALSE)) -> 
A62: 56 | B62: =IF(C62<1," ",VLOOKUP(C62,MainAccountNO:MainAccounts,2,FALSE)) -> 
A63: 57 | B63: =IF(C63<1," ",VLOOKUP(C63,MainAccountNO:MainAccounts,2,FALSE)) -> 
A64: 58 | B64: =IF(C64<1," ",VLOOKUP(C64,MainAccountNO:MainAccounts,2,FALSE)) -> 
A65: 59 | B65: =IF(C65<1," ",VLOOKUP(C65,MainAccountNO:MainAccounts,2,FALSE)) -> 
A66: 60 | B66: =IF(C66<1," ",VLOOKUP(C66,MainAccountNO:MainAccounts,2,FALSE)) -> 
A67: 61 | B67: =IF(C67<1," ",VLOOKUP(C67,MainAccountNO:MainAccounts,2,FALSE)) -> 
A68: 62 | B68: =IF(C68<1," ",VLOOKUP(C68,MainAccountNO:MainAccounts,2,FALSE)) -> 
A69: 63 | B69: =IF(C69<1," ",VLOOKUP(C69,MainAccountNO:MainAccounts,2,FALSE)) -> 
A70: 64 | B70: =IF(C70<1," ",VLOOKUP(C70,MainAccountNO:MainAccounts,2,FALSE)) -> 
A71: 65 | B71: =IF(C71<1," ",VLOOKUP(C71,MainAccountNO:MainAccounts,2,FALSE)) -> 
A72: 66 | B72: =IF(C72<1," ",VLOOKUP(C72,MainAccountNO:MainAccounts,2,FALSE)) -> 
A73: 67 | B73: =IF(C73<1," ",VLOOKUP(C73,MainAccountNO:MainAccounts,2,FALSE)) -> 
A74: 68 | B74: =IF(C74<1," ",VLOOKUP(C74,MainAccountNO:MainAccounts,2,FALSE)) ->  | H74: =IF(G74<=$G$1,"","OUT") -> 
A75: 69 | B75: =IF(C75<1," ",VLOOKUP(C75,MainAccountNO:MainAccounts,2,FALSE)) -> 
A76: 70 | B76: =IF(C76<1," ",VLOOKUP(C76,MainAccountNO:MainAccounts,2,FALSE)) -> 
A77: 71 | B77: =IF(C77<1," ",VLOOKUP(C77,MainAccountNO:MainAccounts,2,FALSE)) -> 
A78: 72 | B78: =IF(C78<1," ",VLOOKUP(C78,MainAccountNO:MainAccounts,2,FALSE)) -> 
A79: 73 | B79: =IF(C79<1," ",VLOOKUP(C79,MainAccountNO:MainAccounts,2,FALSE)) -> 
A80: 74 | B80: =IF(C80<1," ",VLOOKUP(C80,MainAccountNO:MainAccounts,2,FALSE)) -> 
A81: 75 | B81: =IF(C81<1," ",VLOOKUP(C81,MainAccountNO:MainAccounts,2,FALSE)) -> 
A82: 76 | B82: =IF(C82<1," ",VLOOKUP(C82,MainAccountNO:MainAccounts,2,FALSE)) -> 
A83: 77 | B83: =IF(C83<1," ",VLOOKUP(C83,MainAccountNO:MainAccounts,2,FALSE)) -> 
A84: 78 | B84: =IF(C84<1," ",VLOOKUP(C84,MainAccountNO:MainAccounts,2,FALSE)) -> 
A85: 79 | B85: =IF(C85<1," ",VLOOKUP(C85,MainAccountNO:MainAccounts,2,FALSE)) -> 
A86: 80 | B86: =IF(C86<1," ",VLOOKUP(C86,MainAccountNO:MainAccounts,2,FALSE)) -> 
A87: 81 | B87: =IF(C87<1," ",VLOOKUP(C87,MainAccountNO:MainAccounts,2,FALSE)) -> 
A88: 82 | B88: =IF(C88<1," ",VLOOKUP(C88,MainAccountNO:MainAccounts,2,FALSE)) -> 
A89: 83 | B89: =IF(C89<1," ",VLOOKUP(C89,MainAccountNO:MainAccounts,2,FALSE)) -> 
A90: 84 | B90: =IF(C90<1," ",VLOOKUP(C90,MainAccountNO:MainAccounts,2,FALSE)) -> 
A91: 85 | B91: =IF(C91<1," ",VLOOKUP(C91,MainAccountNO:MainAccounts,2,FALSE)) -> 
A92: 86 | B92: =IF(C92<1," ",VLOOKUP(C92,MainAccountNO:MainAccounts,2,FALSE)) -> 
A93: 87 | B93: =IF(C93<1," ",VLOOKUP(C93,MainAccountNO:MainAccounts,2,FALSE)) -> 
A94: 88 | B94: =IF(C94<1," ",VLOOKUP(C94,MainAccountNO:MainAccounts,2,FALSE)) -> 
A95: 89 | B95: =IF(C95<1," ",VLOOKUP(C95,MainAccountNO:MainAccounts,2,FALSE)) -> 
A96: 90 | B96: =IF(C96<1," ",VLOOKUP(C96,MainAccountNO:MainAccounts,2,FALSE)) -> 
A97: 91 | B97: =IF(C97<1," ",VLOOKUP(C97,MainAccountNO:MainAccounts,2,FALSE)) -> 
A98: 92 | B98: =IF(C98<1," ",VLOOKUP(C98,MainAccountNO:MainAccounts,2,FALSE)) -> 
A99: 93 | B99: =IF(C99<1," ",VLOOKUP(C99,MainAccountNO:MainAccounts,2,FALSE)) -> 
A100: 94 | B100: =IF(C100<1," ",VLOOKUP(C100,MainAccountNO:MainAccounts,2,FALSE)) -> 
A101: 95 | B101: =IF(C101<1," ",VLOOKUP(C101,MainAccountNO:MainAccounts,2,FALSE)) -> 
A102: 96 | B102: =IF(C102<1," ",VLOOKUP(C102,MainAccountNO:MainAccounts,2,FALSE)) -> 
A103: 97 | B103: =IF(C103<1," ",VLOOKUP(C103,MainAccountNO:MainAccounts,2,FALSE)) -> 
A104: 98 | B104: =IF(C104<1," ",VLOOKUP(C104,MainAccountNO:MainAccounts,2,FALSE)) -> 
A105: 99 | B105: =IF(C105<1," ",VLOOKUP(C105,MainAccountNO:MainAccounts,2,FALSE)) -> 
A106: 100 | B106: =IF(C106<1," ",VLOOKUP(C106,MainAccountNO:MainAccounts,2,FALSE)) -> 
A107: 101 | B107: =IF(C107<1," ",VLOOKUP(C107,MainAccountNO:MainAccounts,2,FALSE)) -> 
A108: 102 | B108: =IF(C108<1," ",VLOOKUP(C108,MainAccountNO:MainAccounts,2,FALSE)) -> 
A109: 103 | B109: =IF(C109<1," ",VLOOKUP(C109,MainAccountNO:MainAccounts,2,FALSE)) -> 
A110: 104 | B110: =IF(C110<1," ",VLOOKUP(C110,MainAccountNO:MainAccounts,2,FALSE)) -> 
A111: 105 | B111: =IF(C111<1," ",VLOOKUP(C111,MainAccountNO:MainAccounts,2,FALSE)) -> 
A112: 106 | B112: =IF(C112<1," ",VLOOKUP(C112,MainAccountNO:MainAccounts,2,FALSE)) -> 
A113: 107 | B113: =IF(C113<1," ",VLOOKUP(C113,MainAccountNO:MainAccounts,2,FALSE)) -> 
A114: 108 | B114: =IF(C114<1," ",VLOOKUP(C114,MainAccountNO:MainAccounts,2,FALSE)) -> 
A115: 109 | B115: =IF(C115<1," ",VLOOKUP(C115,MainAccountNO:MainAccounts,2,FALSE)) -> 
A116: 110 | B116: =IF(C116<1," ",VLOOKUP(C116,MainAccountNO:MainAccounts,2,FALSE)) -> 
A117: 111 | B117: =IF(C117<1," ",VLOOKUP(C117,MainAccountNO:MainAccounts,2,FALSE)) -> 
A118: 112 | B118: =IF(C118<1," ",VLOOKUP(C118,MainAccountNO:MainAccounts,2,FALSE)) -> 
A119: 113 | B119: =IF(C119<1," ",VLOOKUP(C119,MainAccountNO:MainAccounts,2,FALSE)) -> 
A120: 114 | B120: =IF(C120<1," ",VLOOKUP(C120,MainAccountNO:MainAccounts,2,FALSE)) -> 
A121: 115 | B121: =IF(C121<1," ",VLOOKUP(C121,MainAccountNO:MainAccounts,2,FALSE)) -> 
A122: 116 | B122: =IF(C122<1," ",VLOOKUP(C122,MainAccountNO:MainAccounts,2,FALSE)) -> 
A123: 117 | B123: =IF(C123<1," ",VLOOKUP(C123,MainAccountNO:MainAccounts,2,FALSE)) -> 
A124: 118 | B124: =IF(C124<1," ",VLOOKUP(C124,MainAccountNO:MainAccounts,2,FALSE)) -> 
A125: 119 | B125: =IF(C125<1," ",VLOOKUP(C125,MainAccountNO:MainAccounts,2,FALSE)) -> 
A126: 120 | B126: =IF(C126<1," ",VLOOKUP(C126,MainAccountNO:MainAccounts,2,FALSE)) -> 
A127: 121 | B127: =IF(C127<1," ",VLOOKUP(C127,MainAccountNO:MainAccounts,2,FALSE)) -> 
A128: 122 | B128: =IF(C128<1," ",VLOOKUP(C128,MainAccountNO:MainAccounts,2,FALSE)) -> 
A129: 123 | B129: =IF(C129<1," ",VLOOKUP(C129,MainAccountNO:MainAccounts,2,FALSE)) -> 
A130: 124 | B130: =IF(C130<1," ",VLOOKUP(C130,MainAccountNO:MainAccounts,2,FALSE)) -> 
A131: 125 | B131: =IF(C131<1," ",VLOOKUP(C131,MainAccountNO:MainAccounts,2,FALSE)) -> 
A132: 126 | B132: =IF(C132<1," ",VLOOKUP(C132,MainAccountNO:MainAccounts,2,FALSE)) -> 
A133: 127 | B133: =IF(C133<1," ",VLOOKUP(C133,MainAccountNO:MainAccounts,2,FALSE)) -> 
A134: 128 | B134: =IF(C134<1," ",VLOOKUP(C134,MainAccountNO:MainAccounts,2,FALSE)) -> 
A135: 129 | B135: =IF(C135<1," ",VLOOKUP(C135,MainAccountNO:MainAccounts,2,FALSE)) -> 
A136: 130 | B136: =IF(C136<1," ",VLOOKUP(C136,MainAccountNO:MainAccounts,2,FALSE)) -> 
A137: 131 | B137: =IF(C137<1," ",VLOOKUP(C137,MainAccountNO:MainAccounts,2,FALSE)) -> 
A138: 132 | B138: =IF(C138<1," ",VLOOKUP(C138,MainAccountNO:MainAccounts,2,FALSE)) ->  | H138: =IF(G138<=$G$1,"","OUT") -> 
A139: 133 | B139: =IF(C139<1," ",VLOOKUP(C139,MainAccountNO:MainAccounts,2,FALSE)) -> 
A140: 134 | B140: =IF(C140<1," ",VLOOKUP(C140,MainAccountNO:MainAccounts,2,FALSE)) -> 
A141: 135 | B141: =IF(C141<1," ",VLOOKUP(C141,MainAccountNO:MainAccounts,2,FALSE)) -> 
A142: 136 | B142: =IF(C142<1," ",VLOOKUP(C142,MainAccountNO:MainAccounts,2,FALSE)) -> 
A143: 137 | B143: =IF(C143<1," ",VLOOKUP(C143,MainAccountNO:MainAccounts,2,FALSE)) -> 
A144: 138 | B144: =IF(C144<1," ",VLOOKUP(C144,MainAccountNO:MainAccounts,2,FALSE)) -> 
A145: 139 | B145: =IF(C145<1," ",VLOOKUP(C145,MainAccountNO:MainAccounts,2,FALSE)) -> 
A146: 140 | B146: =IF(C146<1," ",VLOOKUP(C146,MainAccountNO:MainAccounts,2,FALSE)) -> 
A147: 141 | B147: =IF(C147<1," ",VLOOKUP(C147,MainAccountNO:MainAccounts,2,FALSE)) -> 
A148: 142 | B148: =IF(C148<1," ",VLOOKUP(C148,MainAccountNO:MainAccounts,2,FALSE)) -> 
A149: 143 | B149: =IF(C149<1," ",VLOOKUP(C149,MainAccountNO:MainAccounts,2,FALSE)) -> 

Sheet S3
B1: Muslim Ministries | C1: 85 | D1: Choose Rank Number --------> | G1: 10
D2: Total Income | E2: =SUM(IF(S_3FieldRank<=S_3Choice,IF(S_3AccNO<=LastIncome,S_3Amount,0),0)) -> 72841.5
D3: Total Expense | E3: =SUM(IF(S_3FieldRank<=S_3Choice,IF(S_3AccNO>LastIncome,S_3Amount,0),0)) -> 72927.5
D4: Difference | E4: =E2-E3 -> -86
A5: Line | B5: Account Description | C5: Acc_NO | D5: Field Detail | E5: Amount
B6: =IF(C6<1," ",VLOOKUP(C6,MainAccountNO:MainAccounts,2,FALSE)) ->  | H6: =IF(G6<=$G$1,"","OUT") -> 
A7: 1 | B7: =IF(C7<1," ",VLOOKUP(C7,MainAccountNO:MainAccounts,2,FALSE)) -> Project Income - CDN Churches | C7: 441 | D7: donations | E7: 360
A8: 2 | B8: =IF(C8<1," ",VLOOKUP(C8,MainAccountNO:MainAccounts,2,FALSE)) -> Operations Assessment | C8: 484 | D8: assessment on donations | E8: -36
A9: 3 | B9: =IF(C9<1," ",VLOOKUP(C9,MainAccountNO:MainAccounts,2,FALSE)) -> Staff Training | C9: 537 | D9: staff training - resources (4 @ $15) | E9: 60
A10: 4 | B10: =IF(C10<1," ",VLOOKUP(C10,MainAccountNO:MainAccounts,2,FALSE)) -> Bldg, Equip & Liab. Ins. | C10: 519 | D10: insurance for Arabic church | E10: 150
A11: 5 | B11: =IF(C11<1," ",VLOOKUP(C11,MainAccountNO:MainAccounts,2,FALSE)) -> General Supply & Service | C11: 545 | D11: Scripture, DVDs, literature, etc. to give away | E11: 200
A12: 6 | B12: =IF(C12<1," ",VLOOKUP(C12,MainAccountNO:MainAccounts,2,FALSE)) -> 
A13: 7 | B13: =IF(C13<1," ",VLOOKUP(C13,MainAccountNO:MainAccounts,2,FALSE)) ->  | D13: Fundraising Project for Arabic Bibles
A14: 8 | B14: =IF(C14<1," ",VLOOKUP(C14,MainAccountNO:MainAccounts,2,FALSE)) -> Project Income - CND Ind | C14: 440 | D14: donations | E14: 1400
A15: 9 | B15: =IF(C15<1," ",VLOOKUP(C15,MainAccountNO:MainAccounts,2,FALSE)) -> Project Income - CDN Churches | C15: 441 | D15: donations | E15: 600
A16: 10 | B16: =IF(C16<1," ",VLOOKUP(C16,MainAccountNO:MainAccounts,2,FALSE)) -> Operations Assessment | C16: 484 | D16: assessment on donations | E16: -200
A17: 11 | B17: =IF(C17<1," ",VLOOKUP(C17,MainAccountNO:MainAccounts,2,FALSE)) -> Special Projects | C17: 580 | D17: Bibles | E17: 1800
A18: 12 | B18: =IF(C18<1," ",VLOOKUP(C18,MainAccountNO:MainAccounts,2,FALSE)) -> 
A19: 13 | B19: =IF(C19<1," ",VLOOKUP(C19,MainAccountNO:MainAccounts,2,FALSE)) ->  | D19: MM Staffing
A20: 14 | B20: =IF(C20<1," ",VLOOKUP(C20,MainAccountNO:MainAccounts,2,FALSE)) -> US Gifts | C20: 430 | D20: Narooz US Support | E20: 200
A21: 15 | B21: =IF(C21<1," ",VLOOKUP(C21,MainAccountNO:MainAccounts,2,FALSE)) -> Canadian Gifts-Staff | C21: 410 | D21: Narooz CDN Support | E21: 17400 | F21: =0.1*(E20+E21) -> 1760
A22: 16 | B22: =IF(C22<1," ",VLOOKUP(C22,MainAccountNO:MainAccounts,2,FALSE)) -> Ministry Expense | C22: 587 | D22: Narooz MER | E22: 0
A23: 17 | B23: =IF(C23<1," ",VLOOKUP(C23,MainAccountNO:MainAccounts,2,FALSE)) -> Salary Expense | C23: 591 | D23: Narooz Salary | E23: =0.9*(E20+E21)-E22 -> 15840
A24: 18 | B24: =IF(C24<1," ",VLOOKUP(C24,MainAccountNO:MainAccounts,2,FALSE)) -> US Gifts | C24: 430 | D24: Nelson US Support | E24: 8100
A25: 19 | B25: =IF(C25<1," ",VLOOKUP(C25,MainAccountNO:MainAccounts,2,FALSE)) -> Canadian Gifts-Staff | C25: 410 | D25: Nelson CDN Support | E25: 52875 | F25: =0.1*(E24+E25) -> 6097.5
A26: 20 | B26: =IF(C26<1," ",VLOOKUP(C26,MainAccountNO:MainAccounts,2,FALSE)) -> Ministry Expense | C26: 587 | D26: Nelson MER | E26: 3900
A27: 21 | B27: =IF(C27<1," ",VLOOKUP(C27,MainAccountNO:MainAccounts,2,FALSE)) -> Salary Expense | C27: 591 | D27: Nelson Salary | E27: =0.9*(E24+E25)-E26 -> 50977.5
A28: 22 | B28: =IF(C28<1," ",VLOOKUP(C28,MainAccountNO:MainAccounts,2,FALSE)) -> Operations Assessment | C28: 484 | D28: operations assessment | E28: =-0.1*(E20+E21+E24+E25) -> -7857.5
A29: 23 | B29: =IF(C29<1," ",VLOOKUP(C29,MainAccountNO:MainAccounts,2,FALSE)) -> 
A30: 24 | B30: =IF(C30<1," ",VLOOKUP(C30,MainAccountNO:MainAccounts,2,FALSE)) -> 
A31: 25 | B31: =IF(C31<1," ",VLOOKUP(C31,MainAccountNO:MainAccounts,2,FALSE)) -> 
A32: 26 | B32: =IF(C32<1," ",VLOOKUP(C32,MainAccountNO:MainAccounts,2,FALSE)) -> 
A33: 27 | B33: =IF(C33<1," ",VLOOKUP(C33,MainAccountNO:MainAccounts,2,FALSE)) -> 
A34: 28 | B34: =IF(C34<1," ",VLOOKUP(C34,MainAccountNO:MainAccounts,2,FALSE)) -> 
A35: 29 | B35: =IF(C35<1," ",VLOOKUP(C35,MainAccountNO:MainAccounts,2,FALSE)) -> 
A36: 30
A37: 31
A38: 32
A39: 33
A40: 34
A41: 35
A42: 36
A43: 37
A44: 38
A45: 39
A46: 40
A47: 41
A48: 42
A49: 43
A50: 44
A51: 45
A52: 46
A53: 47
A54: 48
A55: 49
A56: 50
A57: 51
A58: 52
A59: 53
A60: 54
A61: 55
A62: 56

Sheet S4
B1: East Indian | C1: 20 | D1: Choose Rank Number --------> | G1: 10
D2: Total Income | E2: =SUM(IF(S_4FieldRank<=S_4Choice,IF(S_4AccNO<=LastIncome,S_4Amount,0),0)) -> 134922.5
D3: Total Expense | E3: =SUM(IF(S_4FieldRank<=S_4Choice,IF(S_4AccNO>LastIncome,S_4Amount,0),0)) -> 136832.5
D4: Total Expense | E4: =E2-E3 -> -1910
A5: Line | B5: Account Description | C5: Acc_NO | D5: Field Detail | E5: Amount
B6: =IF(C6<1," ",VLOOKUP(C6,MainAccountNO:MainAccounts,2,FALSE)) ->  | H6: =IF(G6<=$G$1,"","OUT") -> 
A7: 1 | D7: Supervision & Misc.
A8: 2 | B8: =IF(C8<1," ",VLOOKUP(C8,MainAccountNO:MainAccounts,2,FALSE)) -> Motel/Hotel | C8: 546 | D8: supervisor travel | E8: 250
A9: 3 | B9: =IF(C9<1," ",VLOOKUP(C9,MainAccountNO:MainAccounts,2,FALSE)) -> Gas & Oil Auto | C9: 549 | D9: supervisor travel - 2 visits BC & MB - Dan 9500 km | E9: 950
A10: 4 | B10: =IF(C10<1," ",VLOOKUP(C10,MainAccountNO:MainAccounts,2,FALSE)) -> Commercial Travel | C10: 551 | D10: supervisor/coach travel - 1 flight as needed | E10: 400
A11: 5 | B11: =IF(C11<1," ",VLOOKUP(C11,MainAccountNO:MainAccounts,2,FALSE)) -> Auto Reimbursement | C11: 563 | D11: car rental | E11: 250
A12: 6 | B12: =IF(C12<1," ",VLOOKUP(C12,MainAccountNO:MainAccounts,2,FALSE)) -> Staff Training | C12: 537 | D12: staff training - resources (6 @ $15) | E12: 90
A13: 7 | B13: =IF(C13<1," ",VLOOKUP(C13,MainAccountNO:MainAccounts,2,FALSE)) -> 
A14: 8 | B14: =IF(C14<1," ",VLOOKUP(C14,MainAccountNO:MainAccounts,2,FALSE)) ->  | D14: Punjabi Outreach (929)
A15: 9 | B15: =IF(C15<1," ",VLOOKUP(C15,MainAccountNO:MainAccounts,2,FALSE)) -> Gifts in hand | C15: 400 | D15: apx balance on hand @ 03/31/2021 | E15: 30
A16: 10 | B16: =IF(C16<1," ",VLOOKUP(C16,MainAccountNO:MainAccounts,2,FALSE)) -> Project Income - CND Ind | C16: 440 | D16: For Punjabi outreach (fundraising by missionary) | E16: 4000
A17: 11 | B17: =IF(C17<1," ",VLOOKUP(C17,MainAccountNO:MainAccounts,2,FALSE)) -> Project Income - CDN Churches | C17: 441 | D17: For Punjabi church development (refugee placement) | E17: 5000
A18: 12 | B18: =IF(C18<1," ",VLOOKUP(C18,MainAccountNO:MainAccounts,2,FALSE)) -> Project Income - US | C18: 442 | D18: For Punjabi outreach (fundraising by missionary) | E18: 0
A19: 13 | B19: =IF(C19<1," ",VLOOKUP(C19,MainAccountNO:MainAccounts,2,FALSE)) -> Special Projects | C19: 580 | D19: Christmas celebrations/outreach | E19: 1800
A20: 14 | B20: =IF(C20<1," ",VLOOKUP(C20,MainAccountNO:MainAccounts,2,FALSE)) -> Special Projects | C20: 580 | D20: Other Punjabi outreach (i.e. ESL) | E20: 1800
A21: 15 | B21: =IF(C21<1," ",VLOOKUP(C21,MainAccountNO:MainAccounts,2,FALSE)) -> Special Projects | C21: 580 | D21: Punjabi church development | E21: 4500
A22: 16 | B22: =IF(C22<1," ",VLOOKUP(C22,MainAccountNO:MainAccounts,2,FALSE)) -> Operations Assessment | C22: 484 | D22: operations assessment | E22: -900
A23: 17 | B23: =IF(C23<1," ",VLOOKUP(C23,MainAccountNO:MainAccounts,2,FALSE)) -> 
A24: 18 | B24: =IF(C24<1," ",VLOOKUP(C24,MainAccountNO:MainAccounts,2,FALSE)) ->  | D24: Punjabi Literature (928)
A25: 19 | B25: =IF(C25<1," ",VLOOKUP(C25,MainAccountNO:MainAccounts,2,FALSE)) -> Gifts in hand | C25: 400 | D25: apx balance on hand @ 03/31/2021 | E25: 14000
A26: 20 | B26: =IF(C26<1," ",VLOOKUP(C26,MainAccountNO:MainAccounts,2,FALSE)) -> Special Projects | C26: 580 | D26: Punjabi Literature | E26: 14000
A27: 21 | B27: =IF(C27<1," ",VLOOKUP(C27,MainAccountNO:MainAccounts,2,FALSE)) -> 
A28: 22 | B28: =IF(C28<1," ",VLOOKUP(C28,MainAccountNO:MainAccounts,2,FALSE)) ->  | D28: EIM Staffing
A29: 23 | B29: =IF(C29<1," ",VLOOKUP(C29,MainAccountNO:MainAccounts,2,FALSE)) -> US Gifts | C29: 430 | D29: Erastus US support | E29: 0
A30: 24 | B30: =IF(C30<1," ",VLOOKUP(C30,MainAccountNO:MainAccounts,2,FALSE)) -> Canadian Gifts-Staff | C30: 410 | D30: Erastus CDN support | E30: 60525 | F30: =0.1*(E29+E30) -> 6052.5
A31: 25 | B31: =IF(C31<1," ",VLOOKUP(C31,MainAccountNO:MainAccounts,2,FALSE)) -> Ministry Expense | C31: 587 | D31: Erastus MER | E31: 0
A32: 26 | B32: =IF(C32<1," ",VLOOKUP(C32,MainAccountNO:MainAccounts,2,FALSE)) -> Salary Expense | C32: 591 | D32: Erastus salary | E32: =0.9*(E29+E30)-E31 -> 54472.5
A33: 27 | B33: =IF(C33<1," ",VLOOKUP(C33,MainAccountNO:MainAccounts,2,FALSE)) -> US Gifts | C33: 430 | D33: Paras US Support | E33: 0
A34: 28 | B34: =IF(C34<1," ",VLOOKUP(C34,MainAccountNO:MainAccounts,2,FALSE)) -> Canadian Gifts-Staff | C34: 410 | D34: Paras CDN Support | E34: 10250 | F34: =12*125 -> 1500
A35: 29 | B35: =IF(C35<1," ",VLOOKUP(C35,MainAccountNO:MainAccounts,2,FALSE)) -> Ministry Expense | C35: 587 | D35: Paras MER | E35: 5550
A36: 30 | B36: =IF(C36<1," ",VLOOKUP(C36,MainAccountNO:MainAccounts,2,FALSE)) -> Salary Expense | C36: 591 | D36: Paras Salary | E36: =(E33+E34)-E35-1500 -> 3200
A37: 31 | B37: =IF(C37<1," ",VLOOKUP(C37,MainAccountNO:MainAccounts,2,FALSE)) -> US Gifts | C37: 430 | D37: Tobin US Support | E37: 16150
A38: 32 | B38: =IF(C38<1," ",VLOOKUP(C38,MainAccountNO:MainAccounts,2,FALSE)) -> Canadian Gifts-Staff | C38: 410 | D38: Tobin CDN Support | E38: 38400 | F38: =0.1*(E37+E38) -> 5455
A39: 33 | B39: =IF(C39<1," ",VLOOKUP(C39,MainAccountNO:MainAccounts,2,FALSE)) -> Ministry Expense | C39: 587 | D39: Tobin MER | E39: 0
A40: 34 | B40: =IF(C40<1," ",VLOOKUP(C40,MainAccountNO:MainAccounts,2,FALSE)) -> Salary Expense | C40: 591 | D40: Tobin Salary | E40: =0.9*(E37+E38)-E39 -> 49095
A41: 35 | B41: =IF(C41<1," ",VLOOKUP(C41,MainAccountNO:MainAccounts,2,FALSE)) -> Operations Assessment | C41: 484 | D41: operations assessment | E41: =-0.1*(E29+E30+E37+E38)-1500-25 -> -13032.5
A42: 36 | B42: =IF(C42<1," ",VLOOKUP(C42,MainAccountNO:MainAccounts,2,FALSE)) -> 
A43: 37 | B43: =IF(C43<1," ",VLOOKUP(C43,MainAccountNO:MainAccounts,2,FALSE)) ->  | D43: Retired Staff
A44: 38 | B44: =IF(C44<1," ",VLOOKUP(C44,MainAccountNO:MainAccounts,2,FALSE)) -> Canadian Gifts-Staff | C44: 410 | D44: Kirsch CDN Support | E44: 500
A45: 39 | B45: =IF(C45<1," ",VLOOKUP(C45,MainAccountNO:MainAccounts,2,FALSE)) -> US Gifts | C45: 430 | D45: Kirsch US Support | E45: 0 | F45: =0.05*E44+E45 -> 25
A46: 40 | B46: =IF(C46<1," ",VLOOKUP(C46,MainAccountNO:MainAccounts,2,FALSE)) -> Retirement Allowance | C46: 593 | D46: Kirsch Salary | E46: 475
A47: 41 | B47: =IF(C47<1," ",VLOOKUP(C47,MainAccountNO:MainAccounts,2,FALSE)) -> 
A48: 42 | B48: =IF(C48<1," ",VLOOKUP(C48,MainAccountNO:MainAccounts,2,FALSE)) -> 
A49: 43 | B49: =IF(C49<1," ",VLOOKUP(C49,MainAccountNO:MainAccounts,2,FALSE)) -> 
A50: 44 | B50: =IF(C50<1," ",VLOOKUP(C50,MainAccountNO:MainAccounts,2,FALSE)) -> 
A51: 45 | B51: =IF(C51<1," ",VLOOKUP(C51,MainAccountNO:MainAccounts,2,FALSE)) -> 
A52: 46 | B52: =IF(C52<1," ",VLOOKUP(C52,MainAccountNO:MainAccounts,2,FALSE)) -> 
A53: 47 | B53: =IF(C53<1," ",VLOOKUP(C53,MainAccountNO:MainAccounts,2,FALSE)) -> 
A54: 48 | B54: =IF(C54<1," ",VLOOKUP(C54,MainAccountNO:MainAccounts,2,FALSE)) -> 
A55: 49 | B55: =IF(C55<1," ",VLOOKUP(C55,MainAccountNO:MainAccounts,2,FALSE)) -> 
A56: 50 | B56: =IF(C56<1," ",VLOOKUP(C56,MainAccountNO:MainAccounts,2,FALSE)) -> 
A57: 51 | B57: =IF(C57<1," ",VLOOKUP(C57,MainAccountNO:MainAccounts,2,FALSE)) -> 
A58: 52 | B58: =IF(C58<1," ",VLOOKUP(C58,MainAccountNO:MainAccounts,2,FALSE)) -> 
A59: 53 | B59: =IF(C59<1," ",VLOOKUP(C59,MainAccountNO:MainAccounts,2,FALSE)) -> 
A60: 54 | B60: =IF(C60<1," ",VLOOKUP(C60,MainAccountNO:MainAccounts,2,FALSE)) -> 
A61: 55 | B61: =IF(C61<1," ",VLOOKUP(C61,MainAccountNO:MainAccounts,2,FALSE)) -> 
A62: 56 | B62: =IF(C62<1," ",VLOOKUP(C62,MainAccountNO:MainAccounts,2,FALSE)) -> 
A63: 57 | B63: =IF(C63<1," ",VLOOKUP(C63,MainAccountNO:MainAccounts,2,FALSE)) -> 
A64: 58 | B64: =IF(C64<1," ",VLOOKUP(C64,MainAccountNO:MainAccounts,2,FALSE)) -> 
A65: 59 | B65: =IF(C65<1," ",VLOOKUP(C65,MainAccountNO:MainAccounts,2,FALSE)) -> 
A66: 60 | B66: =IF(C66<1," ",VLOOKUP(C66,MainAccountNO:MainAccounts,2,FALSE)) -> 
A67: 61 | B67: =IF(C67<1," ",VLOOKUP(C67,MainAccountNO:MainAccounts,2,FALSE)) -> 
A68: 62 | B68: =IF(C68<1," ",VLOOKUP(C68,MainAccountNO:MainAccounts,2,FALSE)) -> 
A69: 63 | B69: =IF(C69<1," ",VLOOKUP(C69,MainAccountNO:MainAccounts,2,FALSE)) -> 

Sheet S5
B1: Anchored Warriors | C1: 15 | D1: Choose Rank Number --------> | G1: 10
D2: Total Income | E2: =SUM(IF(S_5FieldRank<=S_5Choice,IF(S_5AccNO<=LastIncome,S_5Amount,0),0)) -> 32200
D3: Total Expense | E3: =SUM(IF(S_5FieldRank<=S_5Choice,IF(S_5AccNO>LastIncome,S_5Amount,0),0)) -> 24185
D4: Difference | E4: =E2-E3 -> 8015
A5: Line | B5: Account Description | C5: Acc_NO | D5: Field Detail | E5: Amount | F5: Month | G5: Rank | H5: Out
A7: =A6+1 -> 1 | B7: =IF(C7<1," ",VLOOKUP(C7,MainAccountNO:MainAccounts,2,FALSE)) -> Gifts in hand | C7: 400 | D7: apx balance on hand @ 03/31/2021 | E7: 20000 | H7: =IF(G7<=$G$1,"","OUT") -> 
A8: 2 | B8: =IF(C8<1," ",VLOOKUP(C8,MainAccountNO:MainAccounts,2,FALSE)) -> Project Income - CND Ind | C8: 440 | D8: CAN individuals | E8: 2000
A9: 3 | B9: =IF(C9<1," ",VLOOKUP(C9,MainAccountNO:MainAccounts,2,FALSE)) -> Project Income - CDN Churches | C9: 441 | D9: CAN churches | E9: 6000
A10: 4 | B10: =IF(C10<1," ",VLOOKUP(C10,MainAccountNO:MainAccounts,2,FALSE)) -> Project Income - US | C10: 442 | D10: US gifts and grants | E10: 120
A11: 5 | B11: =IF(C11<1," ",VLOOKUP(C11,MainAccountNO:MainAccounts,2,FALSE)) -> Operations Assessment | C11: 484 | D11: assessment on donations | E11: -810
A12: 6 | B12: =IF(C12<1," ",VLOOKUP(C12,MainAccountNO:MainAccounts,2,FALSE)) ->  | D12: Admin
A13: 7 | B13: =IF(C13<1," ",VLOOKUP(C13,MainAccountNO:MainAccounts,2,FALSE)) -> Royalties/Fees | C13: 530 | D13: domain & web page | E13: 150
A14: 8 | B14: =IF(C14<1," ",VLOOKUP(C14,MainAccountNO:MainAccounts,2,FALSE)) -> Advertising | C14: 503 | D14: general advertising | E14: 100
A15: 9 | B15: =IF(C15<1," ",VLOOKUP(C15,MainAccountNO:MainAccounts,2,FALSE)) -> Office Supply | C15: 532 | D15: office supplies | E15: 50
A16: 10 | B16: =IF(C16<1," ",VLOOKUP(C16,MainAccountNO:MainAccounts,2,FALSE)) -> General Supply & Service | C16: 545 | D16: general supplies | E16: 100
A17: 11
A18: 12 | B18: =IF(C18<1," ",VLOOKUP(C18,MainAccountNO:MainAccounts,2,FALSE)) ->  | D18: Regular Community Outreach (957)
A19: 13 | B19: =IF(C19<1," ",VLOOKUP(C19,MainAccountNO:MainAccounts,2,FALSE)) ->  | D19: Eden Valley
A20: 14 | B20: =IF(C20<1," ",VLOOKUP(C20,MainAccountNO:MainAccounts,2,FALSE)) -> Auto Reimbursement | C20: 563 | D20: car rental (12 x $250) | E20: 3000 | H20: =IF(G20<=$G$1,"","OUT") -> 
A21: 15 | B21: =IF(C21<1," ",VLOOKUP(C21,MainAccountNO:MainAccounts,2,FALSE)) -> Gas & Oil Auto | C21: 549 | D21: gas (12 x $60) | E21: 720 | H21: =IF(G21<=$G$1,"","OUT") -> 
A22: 16 | B22: =IF(C22<1," ",VLOOKUP(C22,MainAccountNO:MainAccounts,2,FALSE)) -> Food for Outreach/Meetings | C22: 515 | D22: snacks (12 x $75) | E22: 600 | H22: =IF(G22<=$G$1,"","OUT") -> 
A23: 17 | B23: =IF(C23<1," ",VLOOKUP(C23,MainAccountNO:MainAccounts,2,FALSE)) -> General Supply & Service | C23: 545 | D23: misc resources | E23: 350
A24: 18 | B24: =IF(C24<1," ",VLOOKUP(C24,MainAccountNO:MainAccounts,2,FALSE)) -> Royalties/Fees | C24: 530 | D24: $120 x 30 participant fees (balance from fundraising/band) | E24: 3600
A25: 19 | B25: =IF(C25<1," ",VLOOKUP(C25,MainAccountNO:MainAccounts,2,FALSE)) -> Food for Outreach/Meetings | C25: 515 | D25: Youth Conference trip - meals | E25: 600
A26: 20 | B26: =IF(C26<1," ",VLOOKUP(C26,MainAccountNO:MainAccounts,2,FALSE)) -> Auto Reimbursement | C26: 563 | D26: Youth Conference trip - van rental | E26: 1500
A27: 21 | B27: =IF(C27<1," ",VLOOKUP(C27,MainAccountNO:MainAccounts,2,FALSE)) -> Gas & Oil Auto | C27: 549 | D27: Youth Conference trip - gas | E27: 800
A28: 22 | B28: =IF(C28<1," ",VLOOKUP(C28,MainAccountNO:MainAccounts,2,FALSE)) ->  | D28: Kamloops
A29: 23 | B29: =IF(C29<1," ",VLOOKUP(C29,MainAccountNO:MainAccounts,2,FALSE)) -> Gas & Oil Auto | C29: 549 | D29: Youth Conference trip - gas | E29: 350
A30: 24 | B30: =IF(C30<1," ",VLOOKUP(C30,MainAccountNO:MainAccounts,2,FALSE)) -> Food for Outreach/Meetings | C30: 515 | D30: Youth Conference trip - meals | E30: 500
A31: 25 | B31: =IF(C31<1," ",VLOOKUP(C31,MainAccountNO:MainAccounts,2,FALSE)) -> Auto Reimbursement | C31: 563 | D31: Youth Conference trip - vehicle rental | E31: 300
A32: 26 | B32: =IF(C32<1," ",VLOOKUP(C32,MainAccountNO:MainAccounts,2,FALSE)) -> Special Projects | C32: 580 | D32: Youth Conference trip- facility rental | E32: 850
A33: 27 | B33: =IF(C33<1," ",VLOOKUP(C33,MainAccountNO:MainAccounts,2,FALSE)) -> Special Projects | C33: 580 | D33: Winter retreat | E33: 400
A34: 28 | B34: =IF(C34<1," ",VLOOKUP(C34,MainAccountNO:MainAccounts,2,FALSE)) ->  | D34: Lethbridge
A35: 29 | B35: =IF(C35<1," ",VLOOKUP(C35,MainAccountNO:MainAccounts,2,FALSE)) -> Gas & Oil Auto | C35: 549 | D35: Youth Conference trip- gas | E35: 350
A36: 30 | B36: =IF(C36<1," ",VLOOKUP(C36,MainAccountNO:MainAccounts,2,FALSE)) -> Auto Reimbursement | C36: 563 | D36: Youth Conference trip - vehicle rental | E36: 500
A37: 31 | B37: =IF(C37<1," ",VLOOKUP(C37,MainAccountNO:MainAccounts,2,FALSE)) -> Royalties/Fees | C37: 530 | D37: Participant fees | E37: 650
A38: 32 | B38: =IF(C38<1," ",VLOOKUP(C38,MainAccountNO:MainAccounts,2,FALSE)) -> General Supply & Service | C38: 545 | D38: General youth supplies | E38: 1000
A39: 33 | B39: =IF(C39<1," ",VLOOKUP(C39,MainAccountNO:MainAccounts,2,FALSE)) -> 
A40: 34 | B40: =IF(C40<1," ",VLOOKUP(C40,MainAccountNO:MainAccounts,2,FALSE)) ->  | D40: Mentoring Trips (963)
A41: 35 | B41: =IF(C41<1," ",VLOOKUP(C41,MainAccountNO:MainAccounts,2,FALSE)) -> Gifts in hand | C41: 400 | D41: apx balance on hand @ 03/31/2021 | E41: 4890
A42: 36
A43: 37 | B43: =IF(C43<1," ",VLOOKUP(C43,MainAccountNO:MainAccounts,2,FALSE)) -> Royalties/Fees | C43: 530 | D43: Conference registration (Warrior Leadership Summit) | E43: 565
A44: 38 | B44: =IF(C44<1," ",VLOOKUP(C44,MainAccountNO:MainAccounts,2,FALSE)) -> Motel/Hotel | C44: 546 | D44: Accomodations | E44: 2400
A45: 39 | B45: =IF(C45<1," ",VLOOKUP(C45,MainAccountNO:MainAccounts,2,FALSE)) -> General Supply & Service | C45: 545 | D45: $10 x 15 T-shirts | E45: 150
A46: 40 | B46: =IF(C46<1," ",VLOOKUP(C46,MainAccountNO:MainAccounts,2,FALSE)) -> Auto Reimbursement | C46: 563 | D46: vehicle rental | E46: 2500
A47: 41 | B47: =IF(C47<1," ",VLOOKUP(C47,MainAccountNO:MainAccounts,2,FALSE)) -> Gas & Oil Auto | C47: 549 | D47: gas | E47: 1500
A48: 42 | B48: =IF(C48<1," ",VLOOKUP(C48,MainAccountNO:MainAccounts,2,FALSE)) -> 
A49: 43 | B49: =IF(C49<1," ",VLOOKUP(C49,MainAccountNO:MainAccounts,2,FALSE)) ->  | D49: AW Network Training (957)
A50: 44 | B50: =IF(C50<1," ",VLOOKUP(C50,MainAccountNO:MainAccounts,2,FALSE)) -> Food for Outreach/Meetings | C50: 515 | D50: Food | E50: 250
A51: 45 | B51: =IF(C51<1," ",VLOOKUP(C51,MainAccountNO:MainAccounts,2,FALSE)) -> Special Projects | C51: 580 | D51: facility rental | E51: 250
A52: 46 | B52: =IF(C52<1," ",VLOOKUP(C52,MainAccountNO:MainAccounts,2,FALSE)) -> General Supply & Service | C52: 545 | D52: Supplies | E52: 100 | H52: =IF(G52<=$G$1,"","OUT") -> 
A53: 47 | B53: =IF(C53<1," ",VLOOKUP(C53,MainAccountNO:MainAccounts,2,FALSE)) -> 
A54: 48 | B54: =IF(C54<1," ",VLOOKUP(C54,MainAccountNO:MainAccounts,2,FALSE)) -> 
A55: 49 | B55: =IF(C55<1," ",VLOOKUP(C55,MainAccountNO:MainAccounts,2,FALSE)) -> 
A56: 50 | B56: =IF(C56<1," ",VLOOKUP(C56,MainAccountNO:MainAccounts,2,FALSE)) -> 
A57: 51 | B57: =IF(C57<1," ",VLOOKUP(C57,MainAccountNO:MainAccounts,2,FALSE)) -> 
A58: 52 | B58: =IF(C58<1," ",VLOOKUP(C58,MainAccountNO:MainAccounts,2,FALSE)) ->  | H58: =IF(G58<=$G$1,"","OUT") -> 
A59: 53 | B59: =IF(C59<1," ",VLOOKUP(C59,MainAccountNO:MainAccounts,2,FALSE)) -> 
A60: 54 | B60: =IF(C60<1," ",VLOOKUP(C60,MainAccountNO:MainAccounts,2,FALSE)) -> 
A61: 55 | B61: =IF(C61<1," ",VLOOKUP(C61,MainAccountNO:MainAccounts,2,FALSE)) -> 
A62: 56 | B62: =IF(C62<1," ",VLOOKUP(C62,MainAccountNO:MainAccounts,2,FALSE)) -> 
A63: 57 | B63: =IF(C63<1," ",VLOOKUP(C63,MainAccountNO:MainAccounts,2,FALSE)) -> 
A64: 58 | B64: =IF(C64<1," ",VLOOKUP(C64,MainAccountNO:MainAccounts,2,FALSE)) -> 
A65: 59 | B65: =IF(C65<1," ",VLOOKUP(C65,MainAccountNO:MainAccounts,2,FALSE)) -> 
A66: 60 | B66: =IF(C66<1," ",VLOOKUP(C66,MainAccountNO:MainAccounts,2,FALSE)) -> 
A67: 61 | B67: =IF(C67<1," ",VLOOKUP(C67,MainAccountNO:MainAccounts,2,FALSE)) -> 

Sheet S6
B1: Native Bible Centre | C1: 10 | D1: Choose Rank Number --------> | G1: 10
D2: Total Income | E2: =SUM(IF(S_6FieldRank<=S_6Choice,IF(S_6AccNO<=LastIncome,S_6Amount,0),0)) -> 134547.5
D3: Total Expense | E3: =SUM(IF(S_6FieldRank<=S_6Choice,IF(S_6AccNO>LastIncome,S_6Amount,0),0)) -> 129027.5
D4: Difference | E4: =E2-E3 -> 5520
A5: Line | B5: Account Description | C5: Acc_NO | D5: Field Detail | E5: Amount
A7: 1 | B7: =IF(C7<1," ",VLOOKUP(C7,MainAccountNO:MainAccounts,2,FALSE)) -> Gifts in hand | C7: 400 | D7: apx balance on hand @ 03/31/2021 | E7: 9250 | H7: =IF(G7<=$G$1,"","OUT") -> 
A8: 2 | B8: =IF(C8<1," ",VLOOKUP(C8,MainAccountNO:MainAccounts,2,FALSE)) -> Project Income - CND Ind | C8: 440 | D8: Canadian donations | E8: 600 | H8: =IF(G8<=$G$1,"","OUT") -> 
A9: 3 | B9: =IF(C9<1," ",VLOOKUP(C9,MainAccountNO:MainAccounts,2,FALSE)) -> US Gifts | C9: 430 | D9: US donations | E9: 200
A10: 4 | B10: =IF(C10<1," ",VLOOKUP(C10,MainAccountNO:MainAccounts,2,FALSE)) -> Tuition Income | C10: 445 | D10: student tuition fees | E10: 50
A11: 5 | B11: =IF(C11<1," ",VLOOKUP(C11,MainAccountNO:MainAccounts,2,FALSE)) -> Operations Assessment | C11: 484 | D11: operations assessment | E11: -80
A12: 6 | B12: =IF(C12<1," ",VLOOKUP(C12,MainAccountNO:MainAccounts,2,FALSE)) -> Sales | C12: 460 | D12: course sales | E12: 800
A13: 7 | B13: =IF(C13<1," ",VLOOKUP(C13,MainAccountNO:MainAccounts,2,FALSE)) -> Gas & Oil Auto | C13: 549 | D13: supervision/staff visits (2 visits) | E13: 300
A14: 8 | B14: =IF(C14<1," ",VLOOKUP(C14,MainAccountNO:MainAccounts,2,FALSE)) -> Motel/Hotel | C14: 546 | D14: supervision/staff visits (2 visits) | E14: 220
A15: 9 | B15: =IF(C15<1," ",VLOOKUP(C15,MainAccountNO:MainAccounts,2,FALSE)) -> Staff Training | C15: 537 | D15: staff training (3 @ $15) | E15: 45
A16: 10
A17: 11 | D17: NBC Operation (010)
A18: 12 | B18: =IF(C18<1," ",VLOOKUP(C18,MainAccountNO:MainAccounts,2,FALSE)) -> Equip. Maint. | C18: 527 | D18: copier costs | E18: 900
A19: 13 | B19: =IF(C19<1," ",VLOOKUP(C19,MainAccountNO:MainAccounts,2,FALSE)) -> Royalties/Fees | C19: 530 | D19: domain renewal | E19: 40
A20: 14 | B20: =IF(C20<1," ",VLOOKUP(C20,MainAccountNO:MainAccounts,2,FALSE)) -> Office Supply | C20: 532 | D20: paper, binding materials, etc. | E20: 1000
A21: 15 | B21: =IF(C21<1," ",VLOOKUP(C21,MainAccountNO:MainAccounts,2,FALSE)) -> Postage & Parcels | C21: 533 | D21: Mailing books to students | E21: 250
A22: 16 | B22: =IF(C22<1," ",VLOOKUP(C22,MainAccountNO:MainAccounts,2,FALSE)) -> Seminars & Registration | C22: 538 | D22: representation & fundraising | E22: 200
A23: 17 | B23: =IF(C23<1," ",VLOOKUP(C23,MainAccountNO:MainAccounts,2,FALSE)) -> General Supply & Service | C23: 545 | D23: texts, commentaries | E23: 600
A24: 18 | B24: =IF(C24<1," ",VLOOKUP(C24,MainAccountNO:MainAccounts,2,FALSE)) -> Motel/Hotel | C24: 546 | D24: representation & fundraising travel (8 nights @ $125) | E24: 1000
A25: 19 | B25: =IF(C25<1," ",VLOOKUP(C25,MainAccountNO:MainAccounts,2,FALSE)) -> Telephone | C25: 547 | D25: telephone | E25: 25
A26: 20 | B26: =IF(C26<1," ",VLOOKUP(C26,MainAccountNO:MainAccounts,2,FALSE)) -> Gas & Oil Auto | C26: 549 | D26: representation & fundraising (apx 6000 km) | E26: 720
A27: 21 | B27: =IF(C27<1," ",VLOOKUP(C27,MainAccountNO:MainAccounts,2,FALSE)) -> 
A28: 22 | B28: =IF(C28<1," ",VLOOKUP(C28,MainAccountNO:MainAccounts,2,FALSE)) ->  | D28: NBC Staffing
A29: 23 | B29: =IF(C29<1," ",VLOOKUP(C29,MainAccountNO:MainAccounts,2,FALSE)) -> US Gifts | C29: 430 | D29: Houston US Support | E29: 87700
A30: 24 | B30: =IF(C30<1," ",VLOOKUP(C30,MainAccountNO:MainAccounts,2,FALSE)) -> Canadian Gifts-Staff | C30: 410 | D30: Houston CDN Support | E30: 16175 | F30: =0.1*(E29+E30) -> 10387.5
A31: 25 | B31: =IF(C31<1," ",VLOOKUP(C31,MainAccountNO:MainAccounts,2,FALSE)) -> Ministry Expense | C31: 587 | D31: Houston MER | E31: 6000
A32: 26 | B32: =IF(C32<1," ",VLOOKUP(C32,MainAccountNO:MainAccounts,2,FALSE)) -> Salary Expense | C32: 591 | D32: Houston Salary | E32: =0.9*(E29+E30)-E31 -> 87487.5
A33: 27 | B33: =IF(C33<1," ",VLOOKUP(C33,MainAccountNO:MainAccounts,2,FALSE)) -> US Gifts | C33: 430 | D33: Dabrowski US Support | E33: 4150
A34: 28 | B34: =IF(C34<1," ",VLOOKUP(C34,MainAccountNO:MainAccounts,2,FALSE)) -> Canadian Gifts-Staff | C34: 410 | D34: Dabrowski CDN Support | E34: 29450 | F34: =0.1*(E33+E34) -> 3360
A35: 29 | B35: =IF(C35<1," ",VLOOKUP(C35,MainAccountNO:MainAccounts,2,FALSE)) -> Ministry Expense | C35: 587 | D35: Dabrowski MER | E35: 0
A36: 30 | B36: =IF(C36<1," ",VLOOKUP(C36,MainAccountNO:MainAccounts,2,FALSE)) -> Salary Expense | C36: 591 | D36: Dabrowski Salary | E36: =0.9*(E33+E34)-E35 -> 30240
A37: 31 | B37: =IF(C37<1," ",VLOOKUP(C37,MainAccountNO:MainAccounts,2,FALSE)) -> Operations Assessment | C37: 484 | D37: operations assessment | E37: =-0.1*(E29+E30+E33+E34) -> -13747.5
A38: 32 | B38: =IF(C38<1," ",VLOOKUP(C38,MainAccountNO:MainAccounts,2,FALSE)) -> 
A39: 33 | B39: =IF(C39<1," ",VLOOKUP(C39,MainAccountNO:MainAccounts,2,FALSE)) -> 
A40: 34 | B40: =IF(C40<1," ",VLOOKUP(C40,MainAccountNO:MainAccounts,2,FALSE)) -> 
A41: 35 | B41: =IF(C41<1," ",VLOOKUP(C41,MainAccountNO:MainAccounts,2,FALSE)) -> 
A42: 36 | B42: =IF(C42<1," ",VLOOKUP(C42,MainAccountNO:MainAccounts,2,FALSE)) -> 
A43: 37 | B43: =IF(C43<1," ",VLOOKUP(C43,MainAccountNO:MainAccounts,2,FALSE)) -> 
A44: 38 | B44: =IF(C44<1," ",VLOOKUP(C44,MainAccountNO:MainAccounts,2,FALSE)) -> 
A45: 39 | B45: =IF(C45<1," ",VLOOKUP(C45,MainAccountNO:MainAccounts,2,FALSE)) -> 
A46: 40 | B46: =IF(C46<1," ",VLOOKUP(C46,MainAccountNO:MainAccounts,2,FALSE)) -> 
A47: 41 | B47: =IF(C47<1," ",VLOOKUP(C47,MainAccountNO:MainAccounts,2,FALSE)) -> 
A48: 42 | B48: =IF(C48<1," ",VLOOKUP(C48,MainAccountNO:MainAccounts,2,FALSE)) -> 
A49: 43 | B49: =IF(C49<1," ",VLOOKUP(C49,MainAccountNO:MainAccounts,2,FALSE)) -> 
A50: 44 | B50: =IF(C50<1," ",VLOOKUP(C50,MainAccountNO:MainAccounts,2,FALSE)) -> 
A51: 45 | B51: =IF(C51<1," ",VLOOKUP(C51,MainAccountNO:MainAccounts,2,FALSE)) -> 
A52: 46 | B52: =IF(C52<1," ",VLOOKUP(C52,MainAccountNO:MainAccounts,2,FALSE)) -> 
A53: 47 | B53: =IF(C53<1," ",VLOOKUP(C53,MainAccountNO:MainAccounts,2,FALSE)) -> 
A54: 48 | B54: =IF(C54<1," ",VLOOKUP(C54,MainAccountNO:MainAccounts,2,FALSE)) -> 
A55: 49 | B55: =IF(C55<1," ",VLOOKUP(C55,MainAccountNO:MainAccounts,2,FALSE)) -> 
A56: 50 | B56: =IF(C56<1," ",VLOOKUP(C56,MainAccountNO:MainAccounts,2,FALSE)) -> 
A57: 51 | B57: =IF(C57<1," ",VLOOKUP(C57,MainAccountNO:MainAccounts,2,FALSE)) -> 

Sheet S7
A1: Collaborative Ministries | C1: 60 | D1: Choose Rank Number --------> | G1: 10
D2: Total Income | E2: =SUM(IF(S_7FieldRank<=S_7Choice,IF(S_7AccNO<=LastIncome,S_7Amount,0),0)) -> 115449
D3: Total Expense | E3: =SUM(IF(S_7FieldRank<=S_7Choice,IF(S_7AccNO>LastIncome,S_7Amount,0),0)) -> 118709
D4: Difference | E4: =E2-E3 -> -3260
A5: Line | B5: Account Description | C5: Acc_NO | D5: Field Detail | E5: Amount
A7: 1 | B7: =IF(C7<1," ",VLOOKUP(C7,MainAccountNO:MainAccounts,2,FALSE)) ->  | D7: Mike Matthews - Consultation Agreement | H7: =IF(G7<=$G$1,"","OUT") -> 
A8: 2 | B8: =IF(C8<1," ",VLOOKUP(C8,MainAccountNO:MainAccounts,2,FALSE)) -> Project Income - CND Ind | C8: 440 | D8: Matthew's support agreement (no assessment) | E8: 12500
A9: 3 | B9: =IF(C9<1," ",VLOOKUP(C9,MainAccountNO:MainAccounts,2,FALSE)) -> Speaker Honorarium | C9: 559 | D9: Matthew's support agreement (no assessment) | E9: 12500
A10: 4
A11: 5 | D11: Opportunity Development (942)
A12: 6 | B12: =IF(C12<1," ",VLOOKUP(C12,MainAccountNO:MainAccounts,2,FALSE)) -> Special Projects | C12: 580 | D12: new ministry research & development | E12: 500
A13: 7 | B13: =IF(C13<1," ",VLOOKUP(C13,MainAccountNO:MainAccounts,2,FALSE)) -> 
A14: 8 | B14: =IF(C14<1," ",VLOOKUP(C14,MainAccountNO:MainAccounts,2,FALSE)) ->  | D14: Native Ministry Networking (951)
A15: 9 | B15: =IF(C15<1," ",VLOOKUP(C15,MainAccountNO:MainAccounts,2,FALSE)) -> Motel/Hotel | C15: 546 | D15: Registrations - 2 x $160 | E15: 320
A16: 10 | B16: =IF(C16<1," ",VLOOKUP(C16,MainAccountNO:MainAccounts,2,FALSE)) -> Gas & Oil Auto | C16: 549 | D16: 2600 km (Houston, BC) | E16: 260 | H16: =IF(G16<=$G$1,"","OUT") -> 
A17: 11 | B17: =IF(C17<1," ",VLOOKUP(C17,MainAccountNO:MainAccounts,2,FALSE)) -> 
A18: 12 | B18: =IF(C18<1," ",VLOOKUP(C18,MainAccountNO:MainAccounts,2,FALSE)) ->  | D18: ANA Training & Consulting (953)
A19: 13 | B19: =IF(C19<1," ",VLOOKUP(C19,MainAccountNO:MainAccounts,2,FALSE)) -> Motel/Hotel | C19: 546 | D19: 2 nights | E19: 250
A20: 14 | B20: =IF(C20<1," ",VLOOKUP(C20,MainAccountNO:MainAccounts,2,FALSE)) -> Gas & Oil Auto | C20: 549 | D20: gas - Mike Matthews 2 trips | E20: 330
A21: 15
A22: 16 | B22: =IF(C22<1," ",VLOOKUP(C22,MainAccountNO:MainAccounts,2,FALSE)) ->  | D22: Centre for Intercultural Training (CIT)
A23: 17 | B23: =IF(C23<1," ",VLOOKUP(C23,MainAccountNO:MainAccounts,2,FALSE)) -> Commercial Travel | C23: 551 | D23: IMC leadership - travel to CIT | E23: 600
A24: 18 | B24: =IF(C24<1," ",VLOOKUP(C24,MainAccountNO:MainAccounts,2,FALSE)) -> Auto Reimbursement | C24: 563 | D24: vehicle rental | E24: 300
A25: 19 | B25: =IF(C25<1," ",VLOOKUP(C25,MainAccountNO:MainAccounts,2,FALSE)) -> Royalties/Fees | C25: 530 | D25: annual member fee | E25: 500
A26: 20 | B26: =IF(C26<1," ",VLOOKUP(C26,MainAccountNO:MainAccounts,2,FALSE)) -> Gas & Oil Auto | C26: 549 | D26: gas for rental vehicle | E26: 75
A27: 21 | B27: Motel/Hotel | C27: 546 | D27: 1 night | E27: 125
A28: 22 | B28: =IF(C28<1," ",VLOOKUP(C28,MainAccountNO:MainAccounts,2,FALSE)) -> 
A29: 23 | B29: =IF(C29<1," ",VLOOKUP(C29,MainAccountNO:MainAccounts,2,FALSE)) ->  | D29: Joint Ministries Agreement (dept 90)
A30: 24 | B30: =IF(C30<1," ",VLOOKUP(C30,MainAccountNO:MainAccounts,2,FALSE)) -> Canadian Gifts-Staff | C30: 410 | D30: gifts for IMI personnel | E30: 102949
A31: 25 | B31: =IF(C31<1," ",VLOOKUP(C31,MainAccountNO:MainAccounts,2,FALSE)) -> Gifts to Affiliated Org. | C31: 517 | D31: to IMI for joint ministries | E31: 102949
A32: 26 | B32: =IF(C32<1," ",VLOOKUP(C32,MainAccountNO:MainAccounts,2,FALSE)) -> 
A33: 27 | B33: =IF(C33<1," ",VLOOKUP(C33,MainAccountNO:MainAccounts,2,FALSE)) -> 
A34: 28 | B34: =IF(C34<1," ",VLOOKUP(C34,MainAccountNO:MainAccounts,2,FALSE)) -> 
A35: 29 | B35: =IF(C35<1," ",VLOOKUP(C35,MainAccountNO:MainAccounts,2,FALSE)) -> 
A36: 30 | B36: =IF(C36<1," ",VLOOKUP(C36,MainAccountNO:MainAccounts,2,FALSE)) -> 
A37: 31 | B37: =IF(C37<1," ",VLOOKUP(C37,MainAccountNO:MainAccounts,2,FALSE)) -> 
A38: 32 | B38: =IF(C38<1," ",VLOOKUP(C38,MainAccountNO:MainAccounts,2,FALSE)) -> 
A39: 33 | B39: =IF(C39<1," ",VLOOKUP(C39,MainAccountNO:MainAccounts,2,FALSE)) -> 
A40: 34 | B40: =IF(C40<1," ",VLOOKUP(C40,MainAccountNO:MainAccounts,2,FALSE)) -> 
A41: 35 | B41: =IF(C41<1," ",VLOOKUP(C41,MainAccountNO:MainAccounts,2,FALSE)) -> 
A42: 36 | B42: =IF(C42<1," ",VLOOKUP(C42,MainAccountNO:MainAccounts,2,FALSE)) -> 
A43: 37 | B43: =IF(C43<1," ",VLOOKUP(C43,MainAccountNO:MainAccounts,2,FALSE)) -> 
A44: 38 | B44: =IF(C44<1," ",VLOOKUP(C44,MainAccountNO:MainAccounts,2,FALSE)) -> 
A45: 39 | B45: =IF(C45<1," ",VLOOKUP(C45,MainAccountNO:MainAccounts,2,FALSE)) ->  | H45: =IF(G45<=$G$1,"","OUT") -> 
A46: 40 | B46: =IF(C46<1," ",VLOOKUP(C46,MainAccountNO:MainAccounts,2,FALSE)) -> 
A47: 41 | B47: =IF(C47<1," ",VLOOKUP(C47,MainAccountNO:MainAccounts,2,FALSE)) -> 
A48: 42 | B48: =IF(C48<1," ",VLOOKUP(C48,MainAccountNO:MainAccounts,2,FALSE)) -> 
A49: 43 | B49: =IF(C49<1," ",VLOOKUP(C49,MainAccountNO:MainAccounts,2,FALSE)) -> 
A50: 44 | B50: =IF(C50<1," ",VLOOKUP(C50,MainAccountNO:MainAccounts,2,FALSE)) -> 
A51: 45 | B51: =IF(C51<1," ",VLOOKUP(C51,MainAccountNO:MainAccounts,2,FALSE)) -> 
A52: 46 | B52: =IF(C52<1," ",VLOOKUP(C52,MainAccountNO:MainAccounts,2,FALSE)) -> 
A53: 47 | B53: =IF(C53<1," ",VLOOKUP(C53,MainAccountNO:MainAccounts,2,FALSE)) -> 
A54: 48 | B54: =IF(C54<1," ",VLOOKUP(C54,MainAccountNO:MainAccounts,2,FALSE)) -> 
A55: 49 | B55: =IF(C55<1," ",VLOOKUP(C55,MainAccountNO:MainAccounts,2,FALSE)) -> 
A56: 50 | B56: =IF(C56<1," ",VLOOKUP(C56,MainAccountNO:MainAccounts,2,FALSE)) -> 
A57: 51 | B57: =IF(C57<1," ",VLOOKUP(C57,MainAccountNO:MainAccounts,2,FALSE)) -> 
A58: 52 | B58: =IF(C58<1," ",VLOOKUP(C58,MainAccountNO:MainAccounts,2,FALSE)) -> 
A59: 53 | B59: =IF(C59<1," ",VLOOKUP(C59,MainAccountNO:MainAccounts,2,FALSE)) -> 
A60: 54 | B60: =IF(C60<1," ",VLOOKUP(C60,MainAccountNO:MainAccounts,2,FALSE)) -> 
A61: 55 | B61: =IF(C61<1," ",VLOOKUP(C61,MainAccountNO:MainAccounts,2,FALSE)) -> 
A62: 56 | B62: =IF(C62<1," ",VLOOKUP(C62,MainAccountNO:MainAccounts,2,FALSE)) -> 
A63: 57 | B63: =IF(C63<1," ",VLOOKUP(C63,MainAccountNO:MainAccounts,2,FALSE)) -> 
A64: 58 | B64: =IF(C64<1," ",VLOOKUP(C64,MainAccountNO:MainAccounts,2,FALSE)) -> 
A65: 59 | B65: =IF(C65<1," ",VLOOKUP(C65,MainAccountNO:MainAccounts,2,FALSE)) -> 
A66: 60 | B66: =IF(C66<1," ",VLOOKUP(C66,MainAccountNO:MainAccounts,2,FALSE)) -> 
A67: 61 | B67: =IF(C67<1," ",VLOOKUP(C67,MainAccountNO:MainAccounts,2,FALSE)) -> 
A68: 62 | B68: =IF(C68<1," ",VLOOKUP(C68,MainAccountNO:MainAccounts,2,FALSE)) -> 
A69: 63 | B69: =IF(C69<1," ",VLOOKUP(C69,MainAccountNO:MainAccounts,2,FALSE)) -> 
A70: 64 | B70: =IF(C70<1," ",VLOOKUP(C70,MainAccountNO:MainAccounts,2,FALSE)) -> 
A71: 65 | B71: =IF(C71<1," ",VLOOKUP(C71,MainAccountNO:MainAccounts,2,FALSE)) -> 
A72: 66 | B72: =IF(C72<1," ",VLOOKUP(C72,MainAccountNO:MainAccounts,2,FALSE)) -> 
A73: 67 | B73: =IF(C73<1," ",VLOOKUP(C73,MainAccountNO:MainAccounts,2,FALSE)) -> 
A74: 68 | B74: =IF(C74<1," ",VLOOKUP(C74,MainAccountNO:MainAccounts,2,FALSE)) -> 
A75: 69 | B75: =IF(C75<1," ",VLOOKUP(C75,MainAccountNO:MainAccounts,2,FALSE)) -> 
A76: 70 | B76: =IF(C76<1," ",VLOOKUP(C76,MainAccountNO:MainAccounts,2,FALSE)) -> 
A77: 71 | B77: =IF(C77<1," ",VLOOKUP(C77,MainAccountNO:MainAccounts,2,FALSE)) -> 
A78: 72 | B78: =IF(C78<1," ",VLOOKUP(C78,MainAccountNO:MainAccounts,2,FALSE)) -> 
A79: 73 | B79: =IF(C79<1," ",VLOOKUP(C79,MainAccountNO:MainAccounts,2,FALSE)) -> 
A80: 74

Sheet S8
B1: Member Care | C1: 30 | D1: Choose Rank Number --------> | G1: 10
D2: Total Income | E2: =SUM(IF(S_8FieldRank<=S_8Choice,IF(S_8AccNO<=LastIncome,S_8Amount,0),0)) -> 43090
D3: Total Expense | E3: =SUM(IF(S_8FieldRank<=S_8Choice,IF(S_8AccNO>LastIncome,S_8Amount,0),0)) -> 113000
D4: Difference | E4: =E2-E3 -> -69910
A5: Line | B5: Account Description | C5: Acc_NO | D5: Field Detail | E5: Amount | G5: Rank | H5: Out
B6: =IF(C6<1," ",VLOOKUP(C6,MainAccountNO:MainAccounts,2,FALSE)) ->  | H6: =IF(G6<=$G$1,"","OUT") -> 
A7: 1 | B7: =IF(C7<1," ",VLOOKUP(C7,MainAccountNO:MainAccounts,2,FALSE)) -> Project Income - CND Ind | C7: 440 | D7: Individual donors to CARES | E7: 3800
A8: 2 | B8: =IF(C8<1," ",VLOOKUP(C8,MainAccountNO:MainAccounts,2,FALSE)) -> Operations Assessment | C8: 484 | D8: operations assessment | E8: 380
A9: 3 | B9: =IF(C9<1," ",VLOOKUP(C9,MainAccountNO:MainAccounts,2,FALSE)) -> Member Care | C9: 542 | D9: cards, flowers, etc - bereavement & birthdays | E9: 800 | H9: =IF(G9<=$G$1,"","OUT") -> 
A10: 4 | B10: =IF(C10<1," ",VLOOKUP(C10,MainAccountNO:MainAccounts,2,FALSE)) -> Member Care | C10: 542 | D10: member care as needed | E10: 600
A11: 5 | B11: =IF(C11<1," ",VLOOKUP(C11,MainAccountNO:MainAccounts,2,FALSE)) -> Member Care | C11: 542 | D11: FD random acts of kindness | E11: 300
A12: 6 | B12: =IF(C12<1," ",VLOOKUP(C12,MainAccountNO:MainAccounts,2,FALSE)) -> Member Care | C12: 542 | D12: ED random acts of kindness | E12: 300
A13: 7 | B13: =IF(C13<1," ",VLOOKUP(C13,MainAccountNO:MainAccounts,2,FALSE)) -> Motel/Hotel | C13: 546 | D13: 2 nights lodging | E13: 240
A14: 8 | B14: =IF(C14<1," ",VLOOKUP(C14,MainAccountNO:MainAccounts,2,FALSE)) -> Gas & Oil Auto | C14: 549 | D14: gas reimbursement (apx. 1500 km) | E14: 150
A15: 9 | B15: =IF(C15<1," ",VLOOKUP(C15,MainAccountNO:MainAccounts,2,FALSE)) -> Member Care | C15: 542 | D15: Coaching expenses at ED & FD joint decision | E15: 1000
A16: 10 | B16: =IF(C16<1," ",VLOOKUP(C16,MainAccountNO:MainAccounts,2,FALSE)) -> Member Care | C16: 542 | D16: Twichell - transfer to IMI | E16: 3000
A17: 11 | B17: =IF(C17<1," ",VLOOKUP(C17,MainAccountNO:MainAccounts,2,FALSE)) -> Gifts in hand | C17: 400 | D17: Memorial Fund (apx balance on hand @ 03/31/2021) | E17: 1200
A18: 12 | B18: =IF(C18<1," ",VLOOKUP(C18,MainAccountNO:MainAccounts,2,FALSE)) -> Special Projects | C18: 580 | D18: Memorial Fund expenses | E18: 1200
A19: 13 | B19: =IF(C19<1," ",VLOOKUP(C19,MainAccountNO:MainAccounts,2,FALSE)) -> Gifts in hand | C19: 400 | D19: Staff Assistance Fund (apx balance on hand @ 03/31/2021) | E19: 9000
A20: 14 | B20: =IF(C20<1," ",VLOOKUP(C20,MainAccountNO:MainAccounts,2,FALSE)) -> Special Projects | C20: 580 | D20: Staff Assistance Fund expenses | E20: 9000
A21: 15
A22: 16 | B22: =IF(C22<1," ",VLOOKUP(C22,MainAccountNO:MainAccounts,2,FALSE)) ->  | D22: Annual Conference (979)
A23: 17 | B23: =IF(C23<1," ",VLOOKUP(C23,MainAccountNO:MainAccounts,2,FALSE)) -> Project Income - CND Ind | C23: 440 | D23: Conference offering | E23: 1500
A24: 18 | B24: =IF(C24<1," ",VLOOKUP(C24,MainAccountNO:MainAccounts,2,FALSE)) -> Operations Assessment | C24: 484 | D24: operations assessment | E24: -150
A25: 19 | B25: =IF(C25<1," ",VLOOKUP(C25,MainAccountNO:MainAccounts,2,FALSE)) -> Missionary Conference | C25: 557 | D25: fee payments for conference | E25: =-4500-2000 -> -6500
A26: 20 | B26: =IF(C26<1," ",VLOOKUP(C26,MainAccountNO:MainAccounts,2,FALSE)) -> Missionary Conference | C26: 557 | D26: conference speaker travel | E26: 750
A27: 21 | B27: =IF(C27<1," ",VLOOKUP(C27,MainAccountNO:MainAccounts,2,FALSE)) -> Missionary Conference | C27: 557 | D27: conference travel | E27: 14000
A28: 22 | B28: =IF(C28<1," ",VLOOKUP(C28,MainAccountNO:MainAccounts,2,FALSE)) -> Missionary Conference | C28: 557 | D28: conference facility fees - staff/speaker/board/child care/other | E28: 49100
A29: 23 | B29: =IF(C29<1," ",VLOOKUP(C29,MainAccountNO:MainAccounts,2,FALSE)) -> Missionary Conference | C29: 557 | D29: speaker honorarium | E29: 1500
A30: 24 | B30: =IF(C30<1," ",VLOOKUP(C30,MainAccountNO:MainAccounts,2,FALSE)) -> Missionary Conference | C30: 557 | D30: child & youth care expenses & honorarium | E30: 3300
A31: 25 | B31: =IF(C31<1," ",VLOOKUP(C31,MainAccountNO:MainAccounts,2,FALSE)) -> Missionary Conference | C31: 557 | D31: other conference expenses | E31: 0
A32: 26 | B32: =IF(C32<1," ",VLOOKUP(C32,MainAccountNO:MainAccounts,2,FALSE)) -> 
A33: 27 | B33: =IF(C33<1," ",VLOOKUP(C33,MainAccountNO:MainAccounts,2,FALSE)) ->  | D33: Regional Retreats
A34: 28 | B34: =IF(C34<1," ",VLOOKUP(C34,MainAccountNO:MainAccounts,2,FALSE)) -> Special Projects | C34: 580 | D34: Retreats - 3 regions - $500/retreat | E34: 1500
A35: 29
A36: 30 | B36: =IF(C36<1," ",VLOOKUP(C36,MainAccountNO:MainAccounts,2,FALSE)) ->  | D36: Advanced Ministry Training (962)
A37: 31 | B37: =IF(C37<1," ",VLOOKUP(C37,MainAccountNO:MainAccounts,2,FALSE)) -> Commercial Travel | C37: 551 | D37: travel for leadership development | E37: 500
A38: 32 | B38: =IF(C38<1," ",VLOOKUP(C38,MainAccountNO:MainAccounts,2,FALSE)) -> Staff Training | C38: 537 | D38: Leadership Development | E38: 750
A39: 33 | B39: =IF(C39<1," ",VLOOKUP(C39,MainAccountNO:MainAccounts,2,FALSE)) -> Staff Training | C39: 537 | D39: General missionary training | E39: 1200
A40: 34 | B40: =IF(C40<1," ",VLOOKUP(C40,MainAccountNO:MainAccounts,2,FALSE)) -> Staff Training | C40: 537 | D40: staff training scholarships (1 course/unit, max $500) | E40: 2000
A41: 35 | B41: =IF(C41<1," ",VLOOKUP(C41,MainAccountNO:MainAccounts,2,FALSE)) -> Commercial Travel | C41: 551 | D41: Worldview Training (George Walker) | E41: 500
A42: 36 | B42: =IF(C42<1," ",VLOOKUP(C42,MainAccountNO:MainAccounts,2,FALSE)) -> Gas & Oil Auto | C42: 549 | D42: Gas - Worldview Training (George Walker) | E42: 150
A43: 37 | B43: =IF(C43<1," ",VLOOKUP(C43,MainAccountNO:MainAccounts,2,FALSE)) -> Food for Outreach/Meetings | C43: 515 | D43: Food for meetings - Worldview Training (George Walker) | E43: 300
A44: 38 | B44: =IF(C44<1," ",VLOOKUP(C44,MainAccountNO:MainAccounts,2,FALSE)) -> 
A45: 39 | B45: =IF(C45<1," ",VLOOKUP(C45,MainAccountNO:MainAccounts,2,FALSE)) ->  | D45: Member Care Staffing
A46: 40 | B46: =IF(C46<1," ",VLOOKUP(C46,MainAccountNO:MainAccounts,2,FALSE)) -> Canadian Gifts-Staff | C46: 410 | D46: Gonzales CDN Support | E46: 10600
A47: 41 | B47: =IF(C47<1," ",VLOOKUP(C47,MainAccountNO:MainAccounts,2,FALSE)) -> US Gifts | C47: 430 | D47: Gonzales US Support | E47: 19800 | F47: =0.1*(E46+E47) -> 3040
A48: 42 | B48: =IF(C48<1," ",VLOOKUP(C48,MainAccountNO:MainAccounts,2,FALSE)) -> Ministry Expense | C48: 587 | D48: Gonzales MER | E48: 0
A49: 43 | B49: =IF(C49<1," ",VLOOKUP(C49,MainAccountNO:MainAccounts,2,FALSE)) -> Salary Expense | C49: 591 | D49: Gonzales Salary | E49: =0.9*(E46+E47)-E48 -> 27360
A50: 48 | B50: =IF(C50<1," ",VLOOKUP(C50,MainAccountNO:MainAccounts,2,FALSE)) -> Operations Assessment | C50: 484 | D50: operations assessment | E50: =-0.1*(E46+E47) -> -3040
A51: 49 | B51: =IF(C51<1," ",VLOOKUP(C51,MainAccountNO:MainAccounts,2,FALSE)) -> 
A52: 50 | B52: =IF(C52<1," ",VLOOKUP(C52,MainAccountNO:MainAccounts,2,FALSE)) -> 
A53: 51 | B53: =IF(C53<1," ",VLOOKUP(C53,MainAccountNO:MainAccounts,2,FALSE)) -> 
A54: 52 | B54: =IF(C54<1," ",VLOOKUP(C54,MainAccountNO:MainAccounts,2,FALSE)) -> 
A55: 53 | B55: =IF(C55<1," ",VLOOKUP(C55,MainAccountNO:MainAccounts,2,FALSE)) -> 
A56: 54 | B56: =IF(C56<1," ",VLOOKUP(C56,MainAccountNO:MainAccounts,2,FALSE)) -> 
A57: 55 | B57: =IF(C57<1," ",VLOOKUP(C57,MainAccountNO:MainAccounts,2,FALSE)) -> 
A58: 56 | B58: =IF(C58<1," ",VLOOKUP(C58,MainAccountNO:MainAccounts,2,FALSE)) -> 
A59: 57 | B59: =IF(C59<1," ",VLOOKUP(C59,MainAccountNO:MainAccounts,2,FALSE)) -> 
A60: 58 | B60: =IF(C60<1," ",VLOOKUP(C60,MainAccountNO:MainAccounts,2,FALSE)) -> 
A61: 59 | B61: =IF(C61<1," ",VLOOKUP(C61,MainAccountNO:MainAccounts,2,FALSE)) -> 
A62: 60 | B62: =IF(C62<1," ",VLOOKUP(C62,MainAccountNO:MainAccounts,2,FALSE)) -> 
A63: 61 | B63: =IF(C63<1," ",VLOOKUP(C63,MainAccountNO:MainAccounts,2,FALSE)) ->  | H63: =IF(G63<=$G$1,"","OUT") -> 
A64: 62 | B64: =IF(C64<1," ",VLOOKUP(C64,MainAccountNO:MainAccounts,2,FALSE)) -> 
A65: 63 | B65: =IF(C65<1," ",VLOOKUP(C65,MainAccountNO:MainAccounts,2,FALSE)) -> 
A66: 64 | B66: =IF(C66<1," ",VLOOKUP(C66,MainAccountNO:MainAccounts,2,FALSE)) -> 
A67: 65 | B67: =IF(C67<1," ",VLOOKUP(C67,MainAccountNO:MainAccounts,2,FALSE)) -> 
A68: 66 | B68: =IF(C68<1," ",VLOOKUP(C68,MainAccountNO:MainAccounts,2,FALSE)) -> 
A69: 67 | B69: =IF(C69<1," ",VLOOKUP(C69,MainAccountNO:MainAccounts,2,FALSE)) -> 
A70: 68 | B70: =IF(C70<1," ",VLOOKUP(C70,MainAccountNO:MainAccounts,2,FALSE)) -> 
A71: 69 | B71: =IF(C71<1," ",VLOOKUP(C71,MainAccountNO:MainAccounts,2,FALSE)) ->  | H71: =IF(G71<=$G$1,"","OUT") -> 
A72: 70 | B72: =IF(C72<1," ",VLOOKUP(C72,MainAccountNO:MainAccounts,2,FALSE)) -> 
A73: 71 | B73: =IF(C73<1," ",VLOOKUP(C73,MainAccountNO:MainAccounts,2,FALSE)) -> 
A74: 72 | B74: =IF(C74<1," ",VLOOKUP(C74,MainAccountNO:MainAccounts,2,FALSE)) -> 
A75: 73 | B75: =IF(C75<1," ",VLOOKUP(C75,MainAccountNO:MainAccounts,2,FALSE)) -> 
A76: 74 | B76: =IF(C76<1," ",VLOOKUP(C76,MainAccountNO:MainAccounts,2,FALSE)) -> 
A77: 75 | B77: =IF(C77<1," ",VLOOKUP(C77,MainAccountNO:MainAccounts,2,FALSE)) -> 
A78: 76 | B78: =IF(C78<1," ",VLOOKUP(C78,MainAccountNO:MainAccounts,2,FALSE)) -> 
A79: 77 | B79: =IF(C79<1," ",VLOOKUP(C79,MainAccountNO:MainAccounts,2,FALSE)) -> 
A80: 78 | B80: =IF(C80<1," ",VLOOKUP(C80,MainAccountNO:MainAccounts,2,FALSE)) -> 
A81: 79 | B81: =IF(C81<1," ",VLOOKUP(C81,MainAccountNO:MainAccounts,2,FALSE)) -> 
A82: 80 | B82: =IF(C82<1," ",VLOOKUP(C82,MainAccountNO:MainAccounts,2,FALSE)) -> 
A83: 81 | B83: =IF(C83<1," ",VLOOKUP(C83,MainAccountNO:MainAccounts,2,FALSE)) -> 
A84: 82 | B84: =IF(C84<1," ",VLOOKUP(C84,MainAccountNO:MainAccounts,2,FALSE)) ->  | H84: =IF(G84<=$G$1,"","OUT") -> 
A85: 83 | B85: =IF(C85<1," ",VLOOKUP(C85,MainAccountNO:MainAccounts,2,FALSE)) -> 
A86: 84 | B86: =IF(C86<1," ",VLOOKUP(C86,MainAccountNO:MainAccounts,2,FALSE)) -> 
A87: 85 | B87: =IF(C87<1," ",VLOOKUP(C87,MainAccountNO:MainAccounts,2,FALSE)) -> 
A88: 86 | B88: =IF(C88<1," ",VLOOKUP(C88,MainAccountNO:MainAccounts,2,FALSE)) -> 
A89: 87 | B89: =IF(C89<1," ",VLOOKUP(C89,MainAccountNO:MainAccounts,2,FALSE)) -> 
A90: 88 | B90: =IF(C90<1," ",VLOOKUP(C90,MainAccountNO:MainAccounts,2,FALSE)) -> 
A91: 89 | B91: =IF(C91<1," ",VLOOKUP(C91,MainAccountNO:MainAccounts,2,FALSE)) -> 

Sheet S9
B1: Admin & General | C1: 70 | D1: Choose Rank Number --------> | G1: 10
D2: Total Income | E2: =SUM(IF(S_9FieldRank<=S_9Choice,IF(S_9AccNO<=LastIncome,S_9Amount,0),0)) -> 444858
D3: Total Expense | E3: =SUM(IF(S_9FieldRank<=S_9Choice,IF(S_9AccNO>LastIncome,S_9Amount,0),0)) -> 481497
D4: Difference | E4: =E2-E3 -> -36639
A5: Line | B5: Account Description | C5: Acc_NO | D5: Field Detail | E5: Amount
A7: 1 | B7: =IF(C7<1," ",VLOOKUP(C7,MainAccountNO:MainAccounts,2,FALSE)) -> Project Income - CND Ind | C7: 440 | D7: CDN gifts | E7: 3500 | H7: =IF(G7<=$G$1,"","OUT") -> 
A8: 2 | B8: =IF(C8<1," ",VLOOKUP(C8,MainAccountNO:MainAccounts,2,FALSE)) -> Project Income - CDN Churches | C8: 441 | D8: CDN gifts - churches | E8: 200
A9: 3 | B9: =IF(C9<1," ",VLOOKUP(C9,MainAccountNO:MainAccounts,2,FALSE)) -> Project Income - US | C9: 442 | D9: grants from US office | E9: 500
A10: 4 | B10: =IF(C10<1," ",VLOOKUP(C10,MainAccountNO:MainAccounts,2,FALSE)) -> Interest Income | C10: 450 | D10: gain on investments | E10: 0
A11: 5 | B11: =IF(C11<1," ",VLOOKUP(C11,MainAccountNO:MainAccounts,2,FALSE)) -> Other income | C11: 455 | D11: gasoline tax refund | E11: 950
A12: 6 | B12: =IF(C12<1," ",VLOOKUP(C12,MainAccountNO:MainAccounts,2,FALSE)) -> Other income | C12: 455 | D12: GST refund | E12: 6000
A13: 7 | B13: =IF(C13<1," ",VLOOKUP(C13,MainAccountNO:MainAccounts,2,FALSE)) -> Project Income - CND Ind | C13: 440 | D13: Siberia travel for exposure | E13: 10000
A14: 8 | B14: =IF(C14<1," ",VLOOKUP(C14,MainAccountNO:MainAccounts,2,FALSE)) -> Commercial Travel | C14: 551 | D14: Siberia exposure trips | E14: 10000
A15: 9 | B15: =IF(C15<1," ",VLOOKUP(C15,MainAccountNO:MainAccounts,2,FALSE)) -> Operations Assessment | C15: 484 | D15: assessment transfer | E15: 199398
A16: 10
A17: 11 | B17: =IF(C17<1," ",VLOOKUP(C17,MainAccountNO:MainAccounts,2,FALSE)) -> Small Equip. Purchase | C17: 511 | D17: technology hardware | E17: 1200
A18: 12 | B18: =IF(C18<1," ",VLOOKUP(C18,MainAccountNO:MainAccounts,2,FALSE)) -> Small Equip. Purchase | C18: 511 | D18: software licenses - Sage, CMS, Office 365 (admin) | E18: 2215
A19: 13 | B19: =IF(C19<1," ",VLOOKUP(C19,MainAccountNO:MainAccounts,2,FALSE)) -> Food for Outreach/Meetings | C19: 515 | D19: water, coffee, food supplies for office | E19: 300
A20: 14 | B20: =IF(C20<1," ",VLOOKUP(C20,MainAccountNO:MainAccounts,2,FALSE)) -> Bldg, Equip & Liab. Ins. | C20: 519 | D20: board & staff liability, officer facilities (package) | E20: 5583
A21: 15 | B21: =IF(C21<1," ",VLOOKUP(C21,MainAccountNO:MainAccounts,2,FALSE)) -> Audit & Legal Fees | C21: 521 | D21: audit @ $12K, legal consults $1K | E21: 13500
A22: 16 | B22: =IF(C22<1," ",VLOOKUP(C22,MainAccountNO:MainAccounts,2,FALSE)) -> Bldg. Maint. | C22: 525 | D22: office cleaning (1020) & maintenance (250) | E22: 1400
A23: 17 | B23: =IF(C23<1," ",VLOOKUP(C23,MainAccountNO:MainAccounts,2,FALSE)) -> Bldg. Maint. | C23: 525 | D23: yard maintenance (mowing, snow removal) | E23: 1400
A24: 18 | B24: =IF(C24<1," ",VLOOKUP(C24,MainAccountNO:MainAccounts,2,FALSE)) -> Equip. Maint. | C24: 527 | D24: copier contract | E24: 3000
A25: 19 | B25: =IF(C25<1," ",VLOOKUP(C25,MainAccountNO:MainAccounts,2,FALSE)) -> Equip. Maint. | C25: 527 | D25: technology maintenance/repairs | E25: 500
A26: 20 | B26: =IF(C26<1," ",VLOOKUP(C26,MainAccountNO:MainAccounts,2,FALSE)) -> Equip. Maint. | C26: 527 | D26: yard equipment repair | E26: 500
A27: 21 | B27: =IF(C27<1," ",VLOOKUP(C27,MainAccountNO:MainAccounts,2,FALSE)) -> Banking Charges | C27: 529 | D27: bank charges | E27: 700
A28: 22 | B28: Royalties/Fees | C28: 530 | D28: background checks for members | E28: 150
A29: 23 | B29: =IF(C29<1," ",VLOOKUP(C29,MainAccountNO:MainAccounts,2,FALSE)) -> Royalties/Fees | C29: 530 | D29: CCCC dues - Certified Membership, Steer Membership | E29: 1600
A30: 24 | B30: =IF(C30<1," ",VLOOKUP(C30,MainAccountNO:MainAccounts,2,FALSE)) -> Royalties/Fees | C30: 530 | D30: annual government summary, registry | E30: 150
A31: 25 | B31: =IF(C31<1," ",VLOOKUP(C31,MainAccountNO:MainAccounts,2,FALSE)) -> Royalties/Fees | C31: 530 | D31: CCLI License | E31: 145
A32: 26 | B32: =IF(C32<1," ",VLOOKUP(C32,MainAccountNO:MainAccounts,2,FALSE)) -> Office Supply | C32: 532 | D32: paper supplies, envelopes, etc. | E32: 1200
A33: 27 | B33: =IF(C33<1," ",VLOOKUP(C33,MainAccountNO:MainAccounts,2,FALSE)) -> Office Supply | C33: 532 | D33: general supplies | E33: 400
A34: 28 | B34: =IF(C34<1," ",VLOOKUP(C34,MainAccountNO:MainAccounts,2,FALSE)) -> Postage & Parcels | C34: 533 | D34: receipts & staff mailings | E34: 3500
A35: 29 | B35: =IF(C35<1," ",VLOOKUP(C35,MainAccountNO:MainAccounts,2,FALSE)) -> Staff Training | C35: 537 | D35: staff training (4 @ $15) | E35: 60
A36: 30 | B36: =IF(C36<1," ",VLOOKUP(C36,MainAccountNO:MainAccounts,2,FALSE)) -> Staff Training | C36: 537 | D36: Winning Kids membership/abuse prevention training | E36: 355
A37: 31 | B37: =IF(C37<1," ",VLOOKUP(C37,MainAccountNO:MainAccounts,2,FALSE)) -> Seminars & Registration | C37: 538 | D37: bookkeeping/admin seminars | E37: 400
A38: 32 | B38: =IF(C38<1," ",VLOOKUP(C38,MainAccountNO:MainAccounts,2,FALSE)) -> Rent Expense | C38: 543 | D38: 12 @ 500 - lease | E38: 6000
A39: 33 | B39: =IF(C39<1," ",VLOOKUP(C39,MainAccountNO:MainAccounts,2,FALSE)) -> Rent Expense | C39: 543 | D39: utilities | E39: 2600
A40: 34 | B40: =IF(C40<1," ",VLOOKUP(C40,MainAccountNO:MainAccounts,2,FALSE)) -> Telephone | C40: 547 | D40: telephone/Internet | E40: 1600
A41: 35 | B41: =IF(C41<1," ",VLOOKUP(C41,MainAccountNO:MainAccounts,2,FALSE)) -> Telephone | C41: 547 | D41: MyFax - internet - 1 year | E41: 150
A42: 36 | B42: =IF(C42<1," ",VLOOKUP(C42,MainAccountNO:MainAccounts,2,FALSE)) -> Employment Insurance | C42: 586 | D42: employer portion of employment insurance | E42: 34000
A43: 37 | B43: =IF(C43<1," ",VLOOKUP(C43,MainAccountNO:MainAccounts,2,FALSE)) -> Executive Salaries | C43: 592 | D43: Administrative Assistant salary | E43: 35880
A44: 38 | B44: =IF(C44<1," ",VLOOKUP(C44,MainAccountNO:MainAccounts,2,FALSE)) -> Canada Pension Plan | C44: 585 | D44: Administrative Assistant employer CPP | E44: 1765
A45: 39 | B45: =IF(C45<1," ",VLOOKUP(C45,MainAccountNO:MainAccounts,2,FALSE)) -> Employment Insurance | C45: 586 | D45: Administrative Assistant employer EI | E45: 794
A46: 40 | B46: =IF(C46<1," ",VLOOKUP(C46,MainAccountNO:MainAccounts,2,FALSE)) -> Auto Reimbursement | C46: 563 | D46: Administrative Assistant mileage reimbursement | E46: 200
A47: 41 | B47: =IF(C47<1," ",VLOOKUP(C47,MainAccountNO:MainAccounts,2,FALSE)) -> 
A48: 42 | B48: =IF(C48<1," ",VLOOKUP(C48,MainAccountNO:MainAccounts,2,FALSE)) ->  | D48: Office Renovations (974)
A49: 43 | B49: =IF(C49<1," ",VLOOKUP(C49,MainAccountNO:MainAccounts,2,FALSE)) -> Special Projects | C49: 580 | D49: renovations | E49: 200
A50: 44 | B50: =IF(C50<1," ",VLOOKUP(C50,MainAccountNO:MainAccounts,2,FALSE)) -> Special Projects | C50: 580 | D50: yard enhancement | E50: 150
A51: 45 | B51: =IF(C51<1," ",VLOOKUP(C51,MainAccountNO:MainAccounts,2,FALSE)) -> 
A52: 46 | B52: =IF(C52<1," ",VLOOKUP(C52,MainAccountNO:MainAccounts,2,FALSE)) ->  | D52: CLT (978)
A53: 47 | B53: =IF(C53<1," ",VLOOKUP(C53,MainAccountNO:MainAccounts,2,FALSE)) -> Food for Outreach/Meetings | C53: 515 | D53: CLT - food - Face to face Meetings x2 | E53: 750
A54: 48 | B54: =IF(C54<1," ",VLOOKUP(C54,MainAccountNO:MainAccounts,2,FALSE)) -> Staff Training | C54: 537 | D54: CLT - leadership development | E54: 300
A55: 49 | B55: =IF(C55<1," ",VLOOKUP(C55,MainAccountNO:MainAccounts,2,FALSE)) -> Motel/Hotel | C55: 546 | D55: CLT - lodging | E55: 600
A56: 50 | B56: =IF(C56<1," ",VLOOKUP(C56,MainAccountNO:MainAccounts,2,FALSE)) -> Gas & Oil Auto | C56: 549 | D56: CLT - gas | E56: 500
A57: 51 | B57: =IF(C57<1," ",VLOOKUP(C57,MainAccountNO:MainAccounts,2,FALSE)) -> Commercial Travel | C57: 551 | D57: CLT - travel | E57: 1500
A58: 52 | B58: =IF(C58<1," ",VLOOKUP(C58,MainAccountNO:MainAccounts,2,FALSE)) -> Motel/Hotel | C58: 546 | D58: CLT - facility costs | E58: 100
A59: 53
A60: 54 | B60: =IF(C60<1," ",VLOOKUP(C60,MainAccountNO:MainAccounts,2,FALSE)) ->  | D60: FLT
A61: 55 | B61: =IF(C61<1," ",VLOOKUP(C61,MainAccountNO:MainAccounts,2,FALSE)) -> Food for Outreach/Meetings | C61: 515 | D61: FLT - food | E61: 250
A62: 56 | B62: =IF(C62<1," ",VLOOKUP(C62,MainAccountNO:MainAccounts,2,FALSE)) -> Gas & Oil Auto | C62: 549 | D62: FLT - car travel - 2600 km x $10/100km | E62: 260
A63: 57 | B63: =IF(C63<1," ",VLOOKUP(C63,MainAccountNO:MainAccounts,2,FALSE)) -> Motel/Hotel | C63: 546 | D63: FLT - car travel | E63: 250
A64: 58
A65: 59 | D65: Field Director (975)
A66: 60 | B66: =IF(C66<1," ",VLOOKUP(C66,MainAccountNO:MainAccounts,2,FALSE)) -> Commercial Travel | C66: 551 | D66: FD airfare to US - Board meeting | E66: 350
A67: 61
A68: 62 | B68: =IF(C68<1," ",VLOOKUP(C68,MainAccountNO:MainAccounts,2,FALSE)) ->  | D68: Executive Director (980)
A69: 63 | B69: =IF(C69<1," ",VLOOKUP(C69,MainAccountNO:MainAccounts,2,FALSE)) -> Equip. Maint. | C69: 527 | D69: ED technology needs | E69: 300
A70: 64 | B70: =IF(C70<1," ",VLOOKUP(C70,MainAccountNO:MainAccounts,2,FALSE)) -> Gas & Oil Auto | C70: 549 | D70: ED travel | E70: 150
A71: 65 | B71: =IF(C71<1," ",VLOOKUP(C71,MainAccountNO:MainAccounts,2,FALSE)) -> Telephone | C71: 547 | D71: ED phone | E71: 1400
A72: 66 | B72: Meal & Entertainment | C72: 553 | D72: ED meals while traveling | E72: 500
A73: 67 | B73: =IF(C73<1," ",VLOOKUP(C73,MainAccountNO:MainAccounts,2,FALSE)) -> Commercial Travel | C73: 551 | D73: ED commercial travel | E73: 2000
A74: 68 | B74: =IF(C74<1," ",VLOOKUP(C74,MainAccountNO:MainAccounts,2,FALSE)) -> Motel/Hotel | C74: 546 | D74: ED hotels | E74: 1600
A75: 69 | B75: =IF(C75<1," ",VLOOKUP(C75,MainAccountNO:MainAccounts,2,FALSE)) -> Auto Reimbursement | C75: 563 | D75: ED car rental | E75: 400
A76: 70 | B76: =IF(C76<1," ",VLOOKUP(C76,MainAccountNO:MainAccounts,2,FALSE)) -> Ministry Expense | C76: 587 | D76: ED ministry expenses inc. mileage reimbursement | E76: 7000
A77: 71 | B77: =IF(C77<1," ",VLOOKUP(C77,MainAccountNO:MainAccounts,2,FALSE)) -> Staff Training | C77: 537 | D77: ED training resources | E77: 900
A78: 72 | B78: =IF(C78<1," ",VLOOKUP(C78,MainAccountNO:MainAccounts,2,FALSE)) -> Office Supply | C78: 532 | D78: ED general supplies | E78: 200
A79: 73 | B79: =IF(C79<1," ",VLOOKUP(C79,MainAccountNO:MainAccounts,2,FALSE)) -> Seminars & Registration | C79: 538 | D79: ED Missio Nexus | E79: 350
A80: 74 | B80: =IF(C80<1," ",VLOOKUP(C80,MainAccountNO:MainAccounts,2,FALSE)) -> 
A81: 75 | B81: =IF(C81<1," ",VLOOKUP(C81,MainAccountNO:MainAccounts,2,FALSE)) ->  | D81: Board of Directors (977) | H81: =IF(G81<=$G$1,"","OUT") -> 
A82: 76 | B82: =IF(C82<1," ",VLOOKUP(C82,MainAccountNO:MainAccounts,2,FALSE)) -> Food for Outreach/Meetings | C82: 515 | D82: food for board meetings | E82: 800
A83: 77 | B83: =IF(C83<1," ",VLOOKUP(C83,MainAccountNO:MainAccounts,2,FALSE)) -> Staff Training | C83: 537 | D83: training materials for board | E83: 350
A84: 78 | B84: =IF(C84<1," ",VLOOKUP(C84,MainAccountNO:MainAccounts,2,FALSE)) -> Motel/Hotel | C84: 546 | D84: board lodging (Aug & Feb) | E84: 4800
A85: 79 | B85: =IF(C85<1," ",VLOOKUP(C85,MainAccountNO:MainAccounts,2,FALSE)) -> Gas & Oil Auto | C85: 549 | D85: board gas reimbursement | E85: 400
A86: 80 | B86: =IF(C86<1," ",VLOOKUP(C86,MainAccountNO:MainAccounts,2,FALSE)) -> Commercial Travel | C86: 551 | D86: airfare | E86: 1500
A87: 81 | B87: =IF(C87<1," ",VLOOKUP(C87,MainAccountNO:MainAccounts,2,FALSE)) -> General Supply & Service | C87: 545 | D87: supplies/resources | E87: 100
A88: 82 | B88: =IF(C88<1," ",VLOOKUP(C88,MainAccountNO:MainAccounts,2,FALSE)) -> 
A89: 83 | B89: =IF(C89<1," ",VLOOKUP(C89,MainAccountNO:MainAccounts,2,FALSE)) ->  | D89: Admin Staffing
A90: 84 | B90: =IF(C90<1," ",VLOOKUP(C90,MainAccountNO:MainAccounts,2,FALSE)) -> Canadian Gifts-Staff | C90: 410 | D90: G Hamilton CDN Support | E90: 41000
A91: 85 | B91: =IF(C91<1," ",VLOOKUP(C91,MainAccountNO:MainAccounts,2,FALSE)) -> US Gifts | C91: 430 | D91: G Hamilton US Support | E91: 45250 | F91: =0.1*(E90+E91) -> 8625
A92: 86 | B92: =IF(C92<1," ",VLOOKUP(C92,MainAccountNO:MainAccounts,2,FALSE)) -> Executive Salaries | C92: 592 | D92: G Hamilton Executive Salary (12 @ $1500) | E92: 18000
A93: 87 | B93: Ministry Expense | C93: 587 | D93: G Hamilton MER | E93: 16000
A94: 88 | B94: Salary Expense | C94: 591 | D94: G Hamilton Salary | E94: =0.9*(E90+E91)-E93 -> 61625
A95: 89 | B95: =IF(C95<1," ",VLOOKUP(C95,MainAccountNO:MainAccounts,2,FALSE)) -> Canadian Gifts-Staff | C95: 410 | D95: Mayerle CDN Support | E95: 50225
A96: 90 | B96: =IF(C96<1," ",VLOOKUP(C96,MainAccountNO:MainAccounts,2,FALSE)) -> US Gifts | C96: 430 | D96: Mayerle US Support | E96: 30925 | F96: =0.1*(E95+E96) -> 8115 | FF96: =(E95+E96)*0.1 -> 8115
A97: 91 | B97: =IF(C97<1," ",VLOOKUP(C97,MainAccountNO:MainAccounts,2,FALSE)) -> Executive Salaries | C97: 592 | D97: Mayerle Executive Salary (12 @ $1000) | E97: 12000
A98: 92 | B98: =IF(C98<1," ",VLOOKUP(C98,MainAccountNO:MainAccounts,2,FALSE)) -> Ministry Expense | C98: 587 | D98: Mayerle MER | E98: 28450
A99: 93 | B99: =IF(C99<1," ",VLOOKUP(C99,MainAccountNO:MainAccounts,2,FALSE)) -> Salary Expense | C99: 591 | D99: Mayerle Salary | E99: =0.9*(E95+E96)-E98 -> 44585
A100: 94 | B100: =IF(C100<1," ",VLOOKUP(C100,MainAccountNO:MainAccounts,2,FALSE)) -> US Gifts | C100: 430 | D100: Smith US Support | E100: 39650
A101: 95 | B101: =IF(C101<1," ",VLOOKUP(C101,MainAccountNO:MainAccounts,2,FALSE)) -> Canadian Gifts-Staff | C101: 410 | D101: Smith CDN Support | E101: 34000
A102: 96 | B102: =IF(C102<1," ",VLOOKUP(C102,MainAccountNO:MainAccounts,2,FALSE)) -> Gifts to Affiliated Org. | C102: 517 | D102: Smith Salary - Covered by Donations | E102: =E100+E101 -> 73650
A103: 97 | B103: =IF(C103<1," ",VLOOKUP(C103,MainAccountNO:MainAccounts,2,FALSE)) -> Gifts to Affiliated Org. | C103: 517 | D103: Smith Salary - Covered by Subsidy (12 @ $5013) | E103: 60156
A104: 98 | B104: =IF(C104<1," ",VLOOKUP(C104,MainAccountNO:MainAccounts,2,FALSE)) -> Gifts to Affiliated Org. | C104: 517 | D104: Payroll Taxes - Covered by Subsidy (12 @ $652) | E104: 7824
A105: 99 | B105: =IF(C105<1," ",VLOOKUP(C105,MainAccountNO:MainAccounts,2,FALSE)) -> Operations Assessment | C105: 484 | D105: operations assessments | E105: =-0.1*(E90+E91+E95+E96) -> -16740
A106: 100
A107: 101 | B107: =IF(C107<1," ",VLOOKUP(C107,MainAccountNO:MainAccounts,2,FALSE)) -> 
A108: 102 | B108: =IF(C108<1," ",VLOOKUP(C108,MainAccountNO:MainAccounts,2,FALSE)) -> 
A109: 103
A110: 104
A111: 105
A112: 106

Sheet S10
B1: Mobilization | C1: 80 | D1: Choose Rank Number --------> | G1: 4
D2: Total Income | E2: =SUM(IF(S_10FieldRank<=S_10Choice,IF(S_10AccNO<=LastIncome,S_10Amount,0),0)) -> 109146
D3: Total Expense | E3: =SUM(IF(S_10FieldRank<=S_10Choice,IF(S_10AccNO>LastIncome,S_10Amount,0),0)) -> 127860
D4: Difference | E4: =E2-E3 -> -18714
A5: Line | B5: Account Description | C5: Acc_NO | D5: Field Detail | E5: Amount
A7: 1 | D7: Canada Field Mobilization
A8: 2 | B8: =IF(C8<1," ",VLOOKUP(C8,MainAccountNO:MainAccounts,2,FALSE)) -> Gifts to Affiliated Org. | C8: 517 | D8: scholarships Prairie, Millar, Steinbach, PRBI | E8: 2000 | H8: =IF(G8<=$G$1,"","OUT") -> 
A9: 3 | B9: =IF(C9<1," ",VLOOKUP(C9,MainAccountNO:MainAccounts,2,FALSE)) -> Postage & Parcels | C9: 533 | D9: shipping displays | E9: 75
A10: 4 | B10: =IF(C10<1," ",VLOOKUP(C10,MainAccountNO:MainAccounts,2,FALSE)) -> Royalties/Fees | C10: 530 | D10: repping fee | E10: 50
A11: 5 | B11: =IF(C11<1," ",VLOOKUP(C11,MainAccountNO:MainAccounts,2,FALSE)) -> Food for Outreach/Meetings | C11: 515 | D11: Food re interviews/orientation | E11: 200
A12: 6 | B12: =IF(C12<1," ",VLOOKUP(C12,MainAccountNO:MainAccounts,2,FALSE)) -> Gas & Oil Auto | C12: 549 | D12: gas re ongoing connection with Cnd candidates/appointees | E12: 150
A13: 7 | B13: =IF(C13<1," ",VLOOKUP(C13,MainAccountNO:MainAccounts,2,FALSE)) -> Audit & Legal Fees | C13: 521 | D13: legal consultation re. immigration | E13: 600
A14: 8 | B14: =IF(C14<1," ",VLOOKUP(C14,MainAccountNO:MainAccounts,2,FALSE)) -> Staff Training | C14: 537 | D14: staff training (2 @ $15) | E14: 30
A15: 9
A16: 10 | D16: US Mobilization
A17: 11 | B17: =IF(C17<1," ",VLOOKUP(C17,MainAccountNO:MainAccounts,2,FALSE)) -> Gifts to Affiliated Org. | C17: 517 | D17: US mobilization parity payment | E17: 6800
A18: 12
A19: 13 | B19: =IF(C19<1," ",VLOOKUP(C19,MainAccountNO:MainAccounts,2,FALSE)) ->  | D19: Canada Field Recruitment
A20: 14 | B20: =IF(C20<1," ",VLOOKUP(C20,MainAccountNO:MainAccounts,2,FALSE)) -> Motel/Hotel | C20: 546 | D20: colleges - Millar, BC - Jim 6 nights | E20: 750
A21: 15 | B21: =IF(C21<1," ",VLOOKUP(C21,MainAccountNO:MainAccounts,2,FALSE)) -> Gas & Oil Auto | C21: 549 | D21: travel to colleges - Millar SK 3x, $390, Millar BC 3x, $390, PRBI 3x, $440, SBC 2x partial $300, TWU - Dan check out $50 | E21: 1590
A22: 16 | B22: =IF(C22<1," ",VLOOKUP(C22,MainAccountNO:MainAccounts,2,FALSE)) -> Meal & Entertainment | C22: 553 | D22: colleges, other recruitment | E22: 300
A23: 17
A24: 18 | D24: Missio Nexus
A25: 19 | B25: =IF(C25<1," ",VLOOKUP(C25,MainAccountNO:MainAccounts,2,FALSE)) -> Royalties/Fees | C25: 530 | D25: Dues split 50/50 with IMI | E25: 675
A26: 20 | B26: =IF(C26<1," ",VLOOKUP(C26,MainAccountNO:MainAccounts,2,FALSE)) -> 
A27: 21 | B27: =IF(C27<1," ",VLOOKUP(C27,MainAccountNO:MainAccounts,2,FALSE)) ->  | D27: EnGage! Scholarships
A28: 22 | B28: =IF(C28<1," ",VLOOKUP(C28,MainAccountNO:MainAccounts,2,FALSE)) -> Special Projects | C28: 580 | D28: scholarship for EnGage! Alaska or Russia | E28: 500
A29: 23
A30: 24 | B30: =IF(C30<1," ",VLOOKUP(C30,MainAccountNO:MainAccounts,2,FALSE)) ->  | D30: Mobilization Follow-up
A31: 25 | B31: =IF(C31<1," ",VLOOKUP(C31,MainAccountNO:MainAccounts,2,FALSE)) -> Special Projects | C31: 580 | D31: Mobilization Follow-up | E31: 600
A32: 26
A33: 27 | D33: Mobilization Director Training
A34: 28 | B34: =IF(C34<1," ",VLOOKUP(C34,MainAccountNO:MainAccounts,2,FALSE)) -> Commercial Travel | C34: 551 | D34: Mobilization director - orientation & training - CIT | E34: 650
A35: 30 | B35: =IF(C35<1," ",VLOOKUP(C35,MainAccountNO:MainAccounts,2,FALSE)) -> Motel/Hotel | C35: 546 | D35: Mobilization director - orientation & training - CIT | E35: 300
A36: 31
A37: 34 | B37: =IF(C37<1," ",VLOOKUP(C37,MainAccountNO:MainAccounts,2,FALSE)) ->  | D37: Gatekeeper
A38: 35 | B38: =IF(C38<1," ",VLOOKUP(C38,MainAccountNO:MainAccounts,2,FALSE)) -> Commercial Travel | C38: 551 | D38: Gatekeeper to field | E38: 600
A39: 36 | B39: =IF(C39<1," ",VLOOKUP(C39,MainAccountNO:MainAccounts,2,FALSE)) -> Gas & Oil Auto | C39: 549 | D39: Gatekeeper travel on field | E39: 250
A40: 37 | B40: =IF(C40<1," ",VLOOKUP(C40,MainAccountNO:MainAccounts,2,FALSE)) -> Meal & Entertainment | C40: 553 | D40: Gatekeeper meals while travelling | E40: 120
A41: 38 | B41: =IF(C41<1," ",VLOOKUP(C41,MainAccountNO:MainAccounts,2,FALSE)) -> 
A42: 39 | B42: =IF(C42<1," ",VLOOKUP(C42,MainAccountNO:MainAccounts,2,FALSE)) ->  | D42: Internship (925)
A43: 40 | B43: =IF(C43<1," ",VLOOKUP(C43,MainAccountNO:MainAccounts,2,FALSE)) -> Project Income - CND Ind | C43: 440 | D43: CAN individuals | E43: 1000
A44: 41 | B44: =IF(C44<1," ",VLOOKUP(C44,MainAccountNO:MainAccounts,2,FALSE)) -> Project Income - CDN Churches | C44: 441 | D44: CAN churches | E44: 1000
A45: 42 | B45: =IF(C45<1," ",VLOOKUP(C45,MainAccountNO:MainAccounts,2,FALSE)) -> Operations Assessment | C45: 484 | D45: assessment on donations | E45: -200
A46: 43 | B46: =IF(C46<1," ",VLOOKUP(C46,MainAccountNO:MainAccounts,2,FALSE)) -> Motel/Hotel | C46: 546 | D46: 1 - 8 months living expenses @ $400/m | E46: 3200
A47: 44 | B47: =IF(C47<1," ",VLOOKUP(C47,MainAccountNO:MainAccounts,2,FALSE)) -> Gas & Oil Auto | C47: 549 | D47: supervision visits - gas - apx 1500 km | E47: 180
A48: 45 | B48: =IF(C48<1," ",VLOOKUP(C48,MainAccountNO:MainAccounts,2,FALSE)) -> Gas & Oil Auto | C48: 549 | D48: 1 training session or retreat - gas | E48: 180
A49: 46 | B49: =IF(C49<1," ",VLOOKUP(C49,MainAccountNO:MainAccounts,2,FALSE)) -> Staff Training | C49: 537 | D49: training expenses (i.e. resources) | E49: 100
A50: 47 | B50: =IF(C50<1," ",VLOOKUP(C50,MainAccountNO:MainAccounts,2,FALSE)) -> Meal & Entertainment | C50: 553 | D50: 6 meals training session ($15/meal) | E50: 90
A51: 48 | B51: =IF(C51<1," ",VLOOKUP(C51,MainAccountNO:MainAccounts,2,FALSE)) -> 
A52: 49 | B52: =IF(C52<1," ",VLOOKUP(C52,MainAccountNO:MainAccounts,2,FALSE)) -> 
A53: 50 | B53: =IF(C53<1," ",VLOOKUP(C53,MainAccountNO:MainAccounts,2,FALSE)) ->  | D53: Denominational Partnership (EMMC)
A54: 51 | B54: =IF(C54<1," ",VLOOKUP(C54,MainAccountNO:MainAccounts,2,FALSE)) -> Project Income - CDN Churches | C54: 441 | D54: Honorarium for workshops | E54: 1776
A55: 52 | B55: =IF(C55<1," ",VLOOKUP(C55,MainAccountNO:MainAccounts,2,FALSE)) -> Commercial Travel | C55: 551 | D55: 3 round trips to churches | E55: 1560
A56: 53 | B56: =IF(C56<1," ",VLOOKUP(C56,MainAccountNO:MainAccounts,2,FALSE)) -> Gas & Oil Auto | C56: 549 | D56: travel to churches | E56: 240
A57: 54 | B57: =IF(C57<1," ",VLOOKUP(C57,MainAccountNO:MainAccounts,2,FALSE)) -> Auto Reimbursement | C57: 563 | D57: car rental for travel to churches | E57: 500
A58: 55
A59: 56
A60: 57 | B60: =IF(C60<1," ",VLOOKUP(C60,MainAccountNO:MainAccounts,2,FALSE)) ->  | D60: Mobilization Staffing
A61: 58 | B61: =IF(C61<1," ",VLOOKUP(C61,MainAccountNO:MainAccounts,2,FALSE)) -> US Gifts | C61: 430 | D61: Chinn US Support | E61: 109000 | H61: =IF(G61<=$G$1,"","OUT") -> 
A62: 59 | B62: =IF(C62<1," ",VLOOKUP(C62,MainAccountNO:MainAccounts,2,FALSE)) -> Canadian Gifts-Staff | C62: 410 | D62: Chinn CDN Support | E62: 8300 | F62: =0.1*(E61+E62) -> 11730 | H62: =IF(G62<=$G$1,"","OUT") -> 
A63: 60 | B63: =IF(C63<1," ",VLOOKUP(C63,MainAccountNO:MainAccounts,2,FALSE)) -> Ministry Expense | C63: 587 | D63: Chinn MER | E63: 12000 | H63: =IF(G63<=$G$1,"","OUT") -> 
A64: 61 | B64: =IF(C64<1," ",VLOOKUP(C64,MainAccountNO:MainAccounts,2,FALSE)) -> Salary Expense | C64: 591 | D64: Chinn Salary | E64: =0.9*(E61+E62)-E63 -> 93570 | H64: =IF(G64<=$G$1,"","OUT") -> 
A65: 62 | B65: =IF(C65<1," ",VLOOKUP(C65,MainAccountNO:MainAccounts,2,FALSE)) -> Operations Assessment | C65: 484 | D65: operations assessment | E65: =-0.1*(E61+E62) -> -11730
A66: 63 | B66: =IF(C66<1," ",VLOOKUP(C66,MainAccountNO:MainAccounts,2,FALSE)) -> 
A67: 64 | B67: =IF(C67<1," ",VLOOKUP(C67,MainAccountNO:MainAccounts,2,FALSE)) -> 
A68: 65 | B68: =IF(C68<1," ",VLOOKUP(C68,MainAccountNO:MainAccounts,2,FALSE)) -> 
A69: 66 | B69: =IF(C69<1," ",VLOOKUP(C69,MainAccountNO:MainAccounts,2,FALSE)) -> 
A70: 67 | B70: =IF(C70<1," ",VLOOKUP(C70,MainAccountNO:MainAccounts,2,FALSE)) -> 
A71: 68 | B71: =IF(C71<1," ",VLOOKUP(C71,MainAccountNO:MainAccounts,2,FALSE)) -> 
A72: 69 | B72: =IF(C72<1," ",VLOOKUP(C72,MainAccountNO:MainAccounts,2,FALSE)) -> 
A73: 70 | B73: =IF(C73<1," ",VLOOKUP(C73,MainAccountNO:MainAccounts,2,FALSE)) -> 
A74: 71 | B74: =IF(C74<1," ",VLOOKUP(C74,MainAccountNO:MainAccounts,2,FALSE)) -> 
A75: 72 | B75: =IF(C75<1," ",VLOOKUP(C75,MainAccountNO:MainAccounts,2,FALSE)) -> 
A76: 73 | B76: =IF(C76<1," ",VLOOKUP(C76,MainAccountNO:MainAccounts,2,FALSE)) -> 
A77: 74 | B77: =IF(C77<1," ",VLOOKUP(C77,MainAccountNO:MainAccounts,2,FALSE)) -> 
A78: 75 | B78: =IF(C78<1," ",VLOOKUP(C78,MainAccountNO:MainAccounts,2,FALSE)) -> 
A79: 76 | B79: =IF(C79<1," ",VLOOKUP(C79,MainAccountNO:MainAccounts,2,FALSE)) -> 
A80: 77 | B80: =IF(C80<1," ",VLOOKUP(C80,MainAccountNO:MainAccounts,2,FALSE)) -> 
A81: 78 | B81: =IF(C81<1," ",VLOOKUP(C81,MainAccountNO:MainAccounts,2,FALSE)) -> 
A82: 79 | B82: =IF(C82<1," ",VLOOKUP(C82,MainAccountNO:MainAccounts,2,FALSE)) -> 
A83: 80 | B83: =IF(C83<1," ",VLOOKUP(C83,MainAccountNO:MainAccounts,2,FALSE)) -> 
A84: 81 | B84: =IF(C84<1," ",VLOOKUP(C84,MainAccountNO:MainAccounts,2,FALSE)) -> 
A85: 82 | B85: =IF(C85<1," ",VLOOKUP(C85,MainAccountNO:MainAccounts,2,FALSE)) -> 
A86: 83 | B86: =IF(C86<1," ",VLOOKUP(C86,MainAccountNO:MainAccounts,2,FALSE)) -> 

Sheet S11
B1: Midway Ministries | C1: 51 | D1: Choose Rank Number --------> | G1: 10
D2: Total Income | E2: =SUM(IF(S_11FieldRank<=S_11Choice,IF(S_11AccNO<=LastIncome,S_11Amount,0),0)) -> 262555
D3: Total Expense | E3: =SUM(IF(S_11FieldRank<=S_11Choice,IF(S_11AccNO>LastIncome,S_11Amount,0),0)) -> 165338.4
D4: Difference | E4: =E2-E3 -> 97216.6
A5: Line | B5: Account Description | C5: Acc_NO | D5: Field Detail | E5: Amount
H6: =IF(G6<=$G$1,"","OUT") -> 
A7: 1 | B7: =IF(C7<1," ",VLOOKUP(C7,MainAccountNO:MainAccounts,2,FALSE)) -> Project Income - CND Ind | C7: 440 | D7: CDN gifts | E7: 800
A8: 2 | B8: =IF(C8<1," ",VLOOKUP(C8,MainAccountNO:MainAccounts,2,FALSE)) -> Project Income - CDN Churches | C8: 441 | D8: CDN gifts for projects | E8: 3000
A9: 3 | B9: =IF(C9<1," ",VLOOKUP(C9,MainAccountNO:MainAccounts,2,FALSE)) -> Other income | C9: 455 | D9: rent from Deerwood house | E9: 7200
A10: 4 | B10: =IF(C10<1," ",VLOOKUP(C10,MainAccountNO:MainAccounts,2,FALSE)) -> Operations Assessment | C10: 484 | D10: Operations assessment | E10: -380
A11: 5 | B11: =IF(C11<1," ",VLOOKUP(C11,MainAccountNO:MainAccounts,2,FALSE)) -> Other income | C11: 455 | D11: reg/fees collected | E11: 1600
A12: 6 | B12: =IF(C12<1," ",VLOOKUP(C12,MainAccountNO:MainAccounts,2,FALSE)) -> Special Projects | C12: 580 | D12: NYC reg/van use/meals | E12: 1000
A13: 7 | B13: =IF(C13<1," ",VLOOKUP(C13,MainAccountNO:MainAccounts,2,FALSE)) -> Special Projects | C13: 580 | D13: SALT Youth Retreat | E13: 1000
A14: 8 | B14: =IF(C14<1," ",VLOOKUP(C14,MainAccountNO:MainAccounts,2,FALSE)) -> Special Projects | C14: 580 | D14: Split Lake Youth Conference | E14: 1000
A15: 9
A16: 10 | D16: Regional Office
A17: 11 | B17: =IF(C17<1," ",VLOOKUP(C17,MainAccountNO:MainAccounts,2,FALSE)) -> Small Equip. Purchase | C17: 511 | D17: misc. office equipment | E17: 100
A18: 12 | B18: =IF(C18<1," ",VLOOKUP(C18,MainAccountNO:MainAccounts,2,FALSE)) -> Food for Outreach/Meetings | C18: 515 | D18: team meetings | E18: 250
A19: 13 | B19: =IF(C19<1," ",VLOOKUP(C19,MainAccountNO:MainAccounts,2,FALSE)) -> Bldg. Maint. | C19: 525 | D19: maintenance of house and office space | E19: 1000
A20: 14 | B20: =IF(C20<1," ",VLOOKUP(C20,MainAccountNO:MainAccounts,2,FALSE)) -> Equip. Maint. | C20: 527 | D20: repairs | E20: 250
A21: 15 | B21: =IF(C21<1," ",VLOOKUP(C21,MainAccountNO:MainAccounts,2,FALSE)) -> Office Supply | C21: 532 | D21: office supplies | E21: 50
A22: 16 | B22: =IF(C22<1," ",VLOOKUP(C22,MainAccountNO:MainAccounts,2,FALSE)) -> Postage & Parcels | C22: 533 | D22: postage | E22: 50
A23: 17 | B23: =IF(C23<1," ",VLOOKUP(C23,MainAccountNO:MainAccounts,2,FALSE)) -> Rent Expense | C23: 543 | D23: Deerwood house utilities, 70% of utilities | E23: 2520
A24: 18 | B24: =IF(C24<1," ",VLOOKUP(C24,MainAccountNO:MainAccounts,2,FALSE)) -> Rent Expense | C24: 543 | D24: Deerwood house property taxes | E24: 3800
A25: 19 | B25: =IF(C25<1," ",VLOOKUP(C25,MainAccountNO:MainAccounts,2,FALSE)) -> Rent Expense | C25: 543 | D25: $600/m rent from Sergers | E25: -7200
A26: 20 | B26: =IF(C26<1," ",VLOOKUP(C26,MainAccountNO:MainAccounts,2,FALSE)) -> Telephone | C26: 547 | D26: internet | E26: 900
A27: 21 | B27: =IF(C27<1," ",VLOOKUP(C27,MainAccountNO:MainAccounts,2,FALSE)) -> 
A28: 22 | B28: =IF(C28<1," ",VLOOKUP(C28,MainAccountNO:MainAccounts,2,FALSE)) ->  | D28: Midway Bible Camp (946)
A29: 23 | B29: =IF(C29<1," ",VLOOKUP(C29,MainAccountNO:MainAccounts,2,FALSE)) -> Gifts in hand | C29: 400 | D29: apx balance on hand @ 03/31/2021 | E29: 85500
A30: 24 | B30: =IF(C30<1," ",VLOOKUP(C30,MainAccountNO:MainAccounts,2,FALSE)) -> Project Income - CND Ind | C30: 440 | D30: CDN gifts | E30: 30000
A31: 25 | B31: =IF(C31<1," ",VLOOKUP(C31,MainAccountNO:MainAccounts,2,FALSE)) -> Project Income - CDN Churches | C31: 441 | D31: CDN gifts | E31: 18000
A32: 26 | B32: =IF(C32<1," ",VLOOKUP(C32,MainAccountNO:MainAccounts,2,FALSE)) -> Other income | C32: 455 | D32: camp registrations | E32: 32000
A33: 27 | B33: =IF(C33<1," ",VLOOKUP(C33,MainAccountNO:MainAccounts,2,FALSE)) -> Other income | C33: 455 | D33: tuck shop | E33: 0
A34: 28 | B34: =IF(C34<1," ",VLOOKUP(C34,MainAccountNO:MainAccounts,2,FALSE)) -> Operations Assessment | C34: 484 | D34: Operations assessment | E34: =-0.1*(E30+E31) -> -4800
A35: 29 | B35: =IF(C35<1," ",VLOOKUP(C35,MainAccountNO:MainAccounts,2,FALSE)) -> Advertising | C35: 503 | D35: camp promotion | E35: 2500
A36: 30 | B36: =IF(C36<1," ",VLOOKUP(C36,MainAccountNO:MainAccounts,2,FALSE)) -> Small Equip. Purchase | C36: 511 | D36: sports & other camp equipment | E36: 1500
A37: 31 | B37: =IF(C37<1," ",VLOOKUP(C37,MainAccountNO:MainAccounts,2,FALSE)) -> Small Equip. Purchase | C37: 511 | D37: tools, generater | E37: 3200
A38: 32 | B38: =IF(C38<1," ",VLOOKUP(C38,MainAccountNO:MainAccounts,2,FALSE)) -> Food for Outreach/Meetings | C38: 515 | D38: food & kitchen supplies | E38: 21000
A39: 33 | B39: =IF(C39<1," ",VLOOKUP(C39,MainAccountNO:MainAccounts,2,FALSE)) -> Bldg, Equip & Liab. Ins. | C39: 519 | D39: insurance for vehicles | E39: 5200
A40: 34 | B40: =IF(C40<1," ",VLOOKUP(C40,MainAccountNO:MainAccounts,2,FALSE)) -> Bldg, Equip & Liab. Ins. | C40: 519 | D40: insurance for camp and facilities | E40: 9400
A41: 35 | B41: =IF(C41<1," ",VLOOKUP(C41,MainAccountNO:MainAccounts,2,FALSE)) -> Bldg. Maint. | C41: 525 | D41: camp yard & buildings maintenance | E41: 2500
A42: 36 | B42: =IF(C42<1," ",VLOOKUP(C42,MainAccountNO:MainAccounts,2,FALSE)) -> Equip. Maint. | C42: 527 | D42: equipment maintenance | E42: 2500
A43: 37 | B43: =IF(C43<1," ",VLOOKUP(C43,MainAccountNO:MainAccounts,2,FALSE)) -> Royalties/Fees | C43: 530 | D43: background checks | E43: 200
A44: 38 | B44: =IF(C44<1," ",VLOOKUP(C44,MainAccountNO:MainAccounts,2,FALSE)) -> Royalties/Fees | C44: 530 | D44: domain fee | E44: 40
A45: 39 | B45: =IF(C45<1," ",VLOOKUP(C45,MainAccountNO:MainAccounts,2,FALSE)) -> Office Supply | C45: 532 | D45: office supplies | E45: 1000
A46: 40 | B46: =IF(C46<1," ",VLOOKUP(C46,MainAccountNO:MainAccounts,2,FALSE)) -> Postage & Parcels | C46: 533 | D46: postage | E46: 1350
A47: 41 | B47: =IF(C47<1," ",VLOOKUP(C47,MainAccountNO:MainAccounts,2,FALSE)) -> Staff Training | C47: 537 | D47: staff education & training resources | E47: 1000
B48: =IF(C48<1," ",VLOOKUP(C48,MainAccountNO:MainAccounts,2,FALSE)) -> Rent Expense | C48: 543 | D48: 30% of house utilities | E48: 1080
A49: 42 | B49: =IF(C49<1," ",VLOOKUP(C49,MainAccountNO:MainAccounts,2,FALSE)) -> General Supply & Service | C49: 545 | D49: camp program supplies | E49: 2500
A50: 43 | B50: =IF(C50<1," ",VLOOKUP(C50,MainAccountNO:MainAccounts,2,FALSE)) -> Motel/Hotel | C50: 546 | D50: camp public relations & recruitment | E50: 250
A51: 44 | B51: =IF(C51<1," ",VLOOKUP(C51,MainAccountNO:MainAccounts,2,FALSE)) -> Telephone | C51: 547 | D51: cell phone, fax | E51: 2000
A52: 45 | B52: =IF(C52<1," ",VLOOKUP(C52,MainAccountNO:MainAccounts,2,FALSE)) -> Gas & Oil Auto | C52: 549 | D52: public relations, camp vehicles, generators | E52: 12000
A53: 46 | B53: =IF(C53<1," ",VLOOKUP(C53,MainAccountNO:MainAccounts,2,FALSE)) -> Auto Maintenance | C53: 550 | D53: camp vehicle registration & maintenance | E53: 5500
A54: 47 | B54: =IF(C54<1," ",VLOOKUP(C54,MainAccountNO:MainAccounts,2,FALSE)) -> Commercial Travel | C54: 551 | D54: camp public relations & recruitment | E54: 800
A55: 48 | B55: =IF(C55<1," ",VLOOKUP(C55,MainAccountNO:MainAccounts,2,FALSE)) -> Speaker Honorarium | C55: 559 | D55: speaker honorariums | E55: 700
A56: 49 | B56: =IF(C56<1," ",VLOOKUP(C56,MainAccountNO:MainAccounts,2,FALSE)) -> Auto Reimbursement | C56: 563 | D56: camp public relations & recruitment - car rental | E56: 300
A57: 50 | B57: =IF(C57<1," ",VLOOKUP(C57,MainAccountNO:MainAccounts,2,FALSE)) -> Salary Expense | C57: 591 | D57: salary for program director & admin director | E57: 10000
A58: 51 | B58: =IF(C58<1," ",VLOOKUP(C58,MainAccountNO:MainAccounts,2,FALSE)) -> Executive Salaries | C58: 592 | D58: Canada Summer Job student salary - 2 positions | E58: 12000
A59: 52 | B59: =IF(C59<1," ",VLOOKUP(C59,MainAccountNO:MainAccounts,2,FALSE)) -> Canada Pension Plan | C59: 585 | D59: Canada Summer Job student employer CPP | E59: 500
A60: 53 | B60: =IF(C60<1," ",VLOOKUP(C60,MainAccountNO:MainAccounts,2,FALSE)) -> Employment Insurance | C60: 586 | D60: Canada Summer Job student employer EI | E60: 300
A61: 54 | B61: =IF(C61<1," ",VLOOKUP(C61,MainAccountNO:MainAccounts,2,FALSE)) -> Other income | C61: 455 | D61: Grant for Canada Summer Job student | E61: 12000
A62: 55 | B62: =IF(C62<1," ",VLOOKUP(C62,MainAccountNO:MainAccounts,2,FALSE)) -> Special Projects | C62: 580 | D62: from fundraising | E62: -4075
A63: 56 | B63: =IF(C63<1," ",VLOOKUP(C63,MainAccountNO:MainAccounts,2,FALSE)) -> 
A64: 57 | B64: =IF(C64<1," ",VLOOKUP(C64,MainAccountNO:MainAccounts,2,FALSE)) ->  | D64: MBC Van Lease (945)
A65: 58 | B65: =IF(C65<1," ",VLOOKUP(C65,MainAccountNO:MainAccounts,2,FALSE)) -> Project Income - CDN Churches | C65: 441 | D65: CDN gifts | E65: 6000
A66: 59 | B66: =IF(C66<1," ",VLOOKUP(C66,MainAccountNO:MainAccounts,2,FALSE)) -> Operations Assessment | C66: 484 | D66: Operations assessment | E66: -600
A67: 60 | B67: =IF(C67<1," ",VLOOKUP(C67,MainAccountNO:MainAccounts,2,FALSE)) -> Special Projects | C67: 580 | D67: Lease Payments ($472.45/month) | E67: 5669.4
A68: 61 | B68: =IF(C68<1," ",VLOOKUP(C68,MainAccountNO:MainAccounts,2,FALSE)) -> 
A69: 62 | B69: =IF(C69<1," ",VLOOKUP(C69,MainAccountNO:MainAccounts,2,FALSE)) ->  | D69: Berge Lake Bible Camp (948)
A70: 63 | B70: =IF(C70<1," ",VLOOKUP(C70,MainAccountNO:MainAccounts,2,FALSE)) -> Gifts in hand | C70: 400 | D70: apx balance on hand @ 03/31/2021 | E70: 14500
A71: 64 | B71: =IF(C71<1," ",VLOOKUP(C71,MainAccountNO:MainAccounts,2,FALSE)) -> Project Income - CND Ind | C71: 440 | D71: CDN gifts | E71: 4000
A72: 65 | B72: =IF(C72<1," ",VLOOKUP(C72,MainAccountNO:MainAccounts,2,FALSE)) -> Project Income - CDN Churches | C72: 441 | D72: CDN gifts | E72: 0
A73: 66 | B73: =IF(C73<1," ",VLOOKUP(C73,MainAccountNO:MainAccounts,2,FALSE)) -> Other income | C73: 455 | D73: camp registrations | E73: 3000
A74: 67 | B74: =IF(C74<1," ",VLOOKUP(C74,MainAccountNO:MainAccounts,2,FALSE)) -> Operations Assessment | C74: 484 | D74: Operations assessment | E74: -400
A75: 68 | B75: =IF(C75<1," ",VLOOKUP(C75,MainAccountNO:MainAccounts,2,FALSE)) -> Food for Outreach/Meetings | C75: 515 | D75: Kitchen/grocery expense | E75: 2000 | H75: =IF(G75<=$G$1,"","OUT") -> 
A76: 69 | B76: =IF(C76<1," ",VLOOKUP(C76,MainAccountNO:MainAccounts,2,FALSE)) -> Bldg, Equip & Liab. Ins. | C76: 519 | D76: insurance for camp and facilities | E76: 250 | H76: =IF(G76<=$G$1,"","OUT") -> 
A77: 70 | B77: =IF(C77<1," ",VLOOKUP(C77,MainAccountNO:MainAccounts,2,FALSE)) -> General Supply & Service | C77: 545 | D77: camp program supplies | E77: 1200 | H77: =IF(G77<=$G$1,"","OUT") -> 
A78: 71 | B78: =IF(C78<1," ",VLOOKUP(C78,MainAccountNO:MainAccounts,2,FALSE)) -> Gas & Oil Auto | C78: 549 | D78: fuel | E78: 3300 | H78: =IF(G78<=$G$1,"","OUT") -> 
A79: 72 | B79: =IF(C79<1," ",VLOOKUP(C79,MainAccountNO:MainAccounts,2,FALSE)) -> Speaker Honorarium | C79: 559 | D79: speaker honorariums | E79: 250 | H79: =IF(G79<=$G$1,"","OUT") -> 
A80: 73 | B80: =IF(C80<1," ",VLOOKUP(C80,MainAccountNO:MainAccounts,2,FALSE)) -> Small Equip. Purchase | C80: 511 | D80: projector | E80: 500 | H80: =IF(G80<=$G$1,"","OUT") -> 
A81: 74 | B81: =IF(C81<1," ",VLOOKUP(C81,MainAccountNO:MainAccounts,2,FALSE)) -> Advertising | C81: 503 | D81: camp promotion - printing & pictures | E81: 140
A82: 75 | B82: =IF(C82<1," ",VLOOKUP(C82,MainAccountNO:MainAccounts,2,FALSE)) -> Postage & Parcels | C82: 533 | D82: For thank you cards | E82: 120
A83: 76 | B83: =IF(C83<1," ",VLOOKUP(C83,MainAccountNO:MainAccounts,2,FALSE)) -> General Supply & Service | C83: 545 | D83: camp program supplies, Bibles | E83: 400
A84: 77 | B84: =IF(C84<1," ",VLOOKUP(C84,MainAccountNO:MainAccounts,2,FALSE)) -> Gas & Oil Auto | C84: 549 | D84: Follow up outreach | E84: 200
A85: 78 | B85: =IF(C85<1," ",VLOOKUP(C85,MainAccountNO:MainAccounts,2,FALSE)) -> Motel/Hotel | C85: 546 | D85: Follow up outreach | E85: 200
A86: 79 | B86: =IF(C86<1," ",VLOOKUP(C86,MainAccountNO:MainAccounts,2,FALSE)) -> General Supply & Service | C86: 545 | D86: Follow up outreach | E86: 100
A87: 80
A88: 81 | B88: =IF(C88<1," ",VLOOKUP(C88,MainAccountNO:MainAccounts,2,FALSE)) ->  | D88: Midway Builders (947)
A89: 82 | B89: =IF(C89<1," ",VLOOKUP(C89,MainAccountNO:MainAccounts,2,FALSE)) -> Other income | C89: 455 | D89: revenue from projects | E89: 51135
A90: 83 | B90: =IF(C90<1," ",VLOOKUP(C90,MainAccountNO:MainAccounts,2,FALSE)) -> Special Projects | C90: 580 | D90: Deferred Revenue | E90: 7000
A91: 84 | B91: =IF(C91<1," ",VLOOKUP(C91,MainAccountNO:MainAccounts,2,FALSE)) -> Advertising | C91: 503 | D91: Facebook, Google, Flyers, etc | E91: 600
A92: 85 | B92: =IF(C92<1," ",VLOOKUP(C92,MainAccountNO:MainAccounts,2,FALSE)) -> Small Equip. Purchase | C92: 511 | D92: Mitre Saw, Hand tools & bits | E92: 2000
A93: 86 | B93: =IF(C93<1," ",VLOOKUP(C93,MainAccountNO:MainAccounts,2,FALSE)) -> Bldg, Equip & Liab. Ins. | C93: 519 | D93: Commercial Ins, Trailer ins | E93: 1275
A94: 87 | B94: =IF(C94<1," ",VLOOKUP(C94,MainAccountNO:MainAccounts,2,FALSE)) -> Equip. Maint. | C94: 527 | D94: Trailer | E94: 250
A95: 88 | B95: =IF(C95<1," ",VLOOKUP(C95,MainAccountNO:MainAccounts,2,FALSE)) -> Office Supply | C95: 532 | D95: Supplies, Christmas party, | E95: 200
A96: 89 | B96: =IF(C96<1," ",VLOOKUP(C96,MainAccountNO:MainAccounts,2,FALSE)) -> General Supply & Service | C96: 545 | D96: Materials for jobs | E96: 23010
A97: 90 | B97: =IF(C97<1," ",VLOOKUP(C97,MainAccountNO:MainAccounts,2,FALSE)) -> Gas & Oil Auto | C97: 549 | D97: work truck | E97: 1740
A98: 91 | B98: =IF(C98<1," ",VLOOKUP(C98,MainAccountNO:MainAccounts,2,FALSE)) -> Salary Expense | C98: 591 | D98: wages & workers compensation | E98: 13167
A99: 92 | B99: =IF(C99<1," ",VLOOKUP(C99,MainAccountNO:MainAccounts,2,FALSE)) -> Canada Pension Plan | C99: 585 | D99: Employer CPP | E99: 368
A100: 93 | B100: =IF(C100<1," ",VLOOKUP(C100,MainAccountNO:MainAccounts,2,FALSE)) -> Employment Insurance | C100: 586 | D100: Employer EI | E100: 342
A101: 94 | B101: =IF(C101<1," ",VLOOKUP(C101,MainAccountNO:MainAccounts,2,FALSE)) -> Salary Expense | C101: 591 | D101: vacation pay | E101: 592
A102: 95 | B102: =IF(C102<1," ",VLOOKUP(C102,MainAccountNO:MainAccounts,2,FALSE)) -> Bldg. Maint. | C102: 525 | D102: shop garage maintenance and improvements | E102: 500

Sheet S12
B1: Development | C1: 81 | D1: Choose Rank Number --------> | G1: 10
D2: Total Income | E2: =SUM(IF(S_12FieldRank<=S_12Choice,IF(S_12AccNO<=LastIncome,S_12Amount,0),0)) -> 12501
D3: Total Expense | E3: =SUM(IF(S_12FieldRank<=S_12Choice,IF(S_12AccNO>LastIncome,S_12Amount,0),0)) -> 28500
D4: Difference | E4: =E2-E3 -> -15999
A5: Line | B5: Account Description | C5: Acc_NO | D5: Field Detail | E5: Amount | F5: Month | G5: Rank | H5: Out
H6: =IF(G6<=$G$1,"","OUT") -> 
A7: 1 | D7: Mailings
A8: 2 | B8: =IF(C8<1," ",VLOOKUP(C8,MainAccountNO:MainAccounts,2,FALSE)) -> Project Income - CND Ind | C8: 440 | D8: CDN gifts | E8: 6600
A9: 3 | B9: =IF(C9<1," ",VLOOKUP(C9,MainAccountNO:MainAccounts,2,FALSE)) -> Project Income - CDN Churches | C9: 441 | D9: CDN giffs | E9: 2290
A10: 4 | B10: =IF(C10<1," ",VLOOKUP(C10,MainAccountNO:MainAccounts,2,FALSE)) -> Operations Assessment | C10: 484 | D10: assessment on donations | E10: -889
A11: 6 | B11: =IF(C11<1," ",VLOOKUP(C11,MainAccountNO:MainAccounts,2,FALSE)) -> Postage & Parcels | C11: 533 | D11: appeal letter postage (2 mailings) | E11: 8000
A12: 7 | B12: =IF(C12<1," ",VLOOKUP(C12,MainAccountNO:MainAccounts,2,FALSE)) -> Postage & Parcels | C12: 533 | D12: Quarterly InterActions (4 mailings) | E12: 16000
A13: 8
A14: 9 | B14: =IF(C14<1," ",VLOOKUP(C14,MainAccountNO:MainAccounts,2,FALSE)) ->  | D14: Fundraiser (Midway Bible Camp)
A15: 10 | B15: =IF(C15<1," ",VLOOKUP(C15,MainAccountNO:MainAccounts,2,FALSE)) -> Project Income - CND Ind | C15: 440 | D15: CDN gifts | E15: 5000
A16: 11 | B16: =IF(C16<1," ",VLOOKUP(C16,MainAccountNO:MainAccounts,2,FALSE)) -> Project Income - CDN Churches | C16: 441 | D16: CDN gifts | E16: 0
A17: 12 | B17: =IF(C17<1," ",VLOOKUP(C17,MainAccountNO:MainAccounts,2,FALSE)) -> Operations Assessment | C17: 484 | D17: assessment on donations | E17: -500
A18: 13 | B18: =IF(C18<1," ",VLOOKUP(C18,MainAccountNO:MainAccounts,2,FALSE)) -> Food for Outreach/Meetings | C18: 515 | D18: food for fundraisers | E18: 100
A19: 14 | B19: =IF(C19<1," ",VLOOKUP(C19,MainAccountNO:MainAccounts,2,FALSE)) -> Rent Expense | C19: 543 | D19: facility rental, custodial/audio tech fees | E19: 25
A20: 15 | B20: =IF(C20<1," ",VLOOKUP(C20,MainAccountNO:MainAccounts,2,FALSE)) -> Advertising | C20: 503 | D20: advertising | E20: 200
A21: 16 | B21: =IF(C21<1," ",VLOOKUP(C21,MainAccountNO:MainAccounts,2,FALSE)) -> General Supply & Service | C21: 545 | D21: items for auction | E21: 75
A22: 17 | B22: =IF(C22<1," ",VLOOKUP(C22,MainAccountNO:MainAccounts,2,FALSE)) -> General Supply & Service | C22: 545 | D22: decorations & supplies | E22: 25
A23: 18 | B23: =IF(C23<1," ",VLOOKUP(C23,MainAccountNO:MainAccounts,2,FALSE)) -> Special Projects | C23: 580 | D23: to Midway Bible Camp | E23: 4075
A24: 19 | B24: =IF(C24<1," ",VLOOKUP(C24,MainAccountNO:MainAccounts,2,FALSE)) -> 
A25: 20 | B25: =IF(C25<1," ",VLOOKUP(C25,MainAccountNO:MainAccounts,2,FALSE)) -> 
A26: 21
A27: 22
A28: 23
A29: 24
A30: 25
A31: 26 | H31: =IF(G31<=$G$1,"","OUT") -> 
A32: 27
A33: 28
A34: 29
A35: 30
A36: 31
A37: 32
A38: 33
A39: 34
A40: 35
A41: 36
A42: 37
A43: 38
A44: 39
A45: 40
A46: 41
A47: 42
A48: 43
A49: 44
A50: 45
A51: 46
A52: 47
A53: 48
A54: 49 | B54: =IF(C54<1," ",VLOOKUP(C54,MainAccountNO:MainAccounts,2,FALSE)) -> 
A55: 50 | B55: =IF(C55<1," ",VLOOKUP(C55,MainAccountNO:MainAccounts,2,FALSE)) -> 
A56: 51 | B56: =IF(C56<1," ",VLOOKUP(C56,MainAccountNO:MainAccounts,2,FALSE)) -> 
A57: 52 | B57: =IF(C57<1," ",VLOOKUP(C57,MainAccountNO:MainAccounts,2,FALSE)) -> 
A58: 53 | B58: =IF(C58<1," ",VLOOKUP(C58,MainAccountNO:MainAccounts,2,FALSE)) -> 
A59: 54 | B59: =IF(C59<1," ",VLOOKUP(C59,MainAccountNO:MainAccounts,2,FALSE)) -> 
A60: 55 | B60: =IF(C60<1," ",VLOOKUP(C60,MainAccountNO:MainAccounts,2,FALSE)) -> 
A61: 56 | B61: =IF(C61<1," ",VLOOKUP(C61,MainAccountNO:MainAccounts,2,FALSE)) -> 
A62: 57 | B62: =IF(C62<1," ",VLOOKUP(C62,MainAccountNO:MainAccounts,2,FALSE)) -> 
A63: 58

Sheet S13
B1: Urban Fire | C1: 52 | D1: Choose Rank Number --------> | G1: 10
D2: Total Income | E2: =SUM(IF(S_13FieldRank<=S_13Choice,IF(S_13AccNO<=LastIncome,S_13Amount,0),0)) -> 51205
D3: Total Expense | E3: =SUM(IF(S_13FieldRank<=S_13Choice,IF(S_13AccNO>LastIncome,S_13Amount,0),0)) -> 44500
D4: Difference | E4: =E2-E3 -> 6705
A5: Line | B5: Account Description | C5: Acc_NO | D5: Field Detail | E5: Amount | F5: Month | G5: Rank | H5: Out
D6: Community
A7: 1 | B7: =IF(C7<1," ",VLOOKUP(C7,MainAccountNO:MainAccounts,2,FALSE)) -> Gifts in hand | C7: 400 | D7: apx balance on hand @ 03/31/2021 | E7: 8500 | H7: =IF(G7<=$G$1,"","OUT") -> 
A8: 2 | B8: =IF(C8<1," ",VLOOKUP(C8,MainAccountNO:MainAccounts,2,FALSE)) -> Project Income - CND Ind | C8: 440 | D8: CAN individuals | E8: 13900
A9: 3 | B9: =IF(C9<1," ",VLOOKUP(C9,MainAccountNO:MainAccounts,2,FALSE)) -> Project Income - CDN Churches | C9: 441 | D9: CAN churches | E9: 6950
A10: 4 | B10: =IF(C10<1," ",VLOOKUP(C10,MainAccountNO:MainAccounts,2,FALSE)) -> Project Income - US | C10: 442 | D10: US gifts and grants | E10: 0
A11: 5 | B11: =IF(C11<1," ",VLOOKUP(C11,MainAccountNO:MainAccounts,2,FALSE)) -> Operations Assessment | C11: 484 | D11: operations assessement | E11: -2085
A12: 6 | B12: =IF(C12<1," ",VLOOKUP(C12,MainAccountNO:MainAccounts,2,FALSE)) -> 
A13: 7 | B13: =IF(C13<1," ",VLOOKUP(C13,MainAccountNO:MainAccounts,2,FALSE)) ->  | D13: Community Housing
A14: 8 | B14: =IF(C14<1," ",VLOOKUP(C14,MainAccountNO:MainAccounts,2,FALSE)) -> Other income | C14: 455 | D14: Fees for program | E14: 23220
A15: 9 | B15: =IF(C15<1," ",VLOOKUP(C15,MainAccountNO:MainAccounts,2,FALSE)) -> Other income | C15: 455 | D15: fees for program - damage deposit collected monthly | E15: 720
A16: 10 | B16: =IF(C16<1," ",VLOOKUP(C16,MainAccountNO:MainAccounts,2,FALSE)) -> Food for Outreach/Meetings | C16: 515 | D16: Community groceries & Supplies | E16: 5400
A17: 11 | B17: =IF(C17<1," ",VLOOKUP(C17,MainAccountNO:MainAccounts,2,FALSE)) -> Rent Expense | C17: 543 | D17: Damage Deposits | E17: 720
A18: 12 | B18: =IF(C18<1," ",VLOOKUP(C18,MainAccountNO:MainAccounts,2,FALSE)) -> Rent Expense | C18: 543 | D18: Rent | E18: 12960
A19: 13 | B19: =IF(C19<1," ",VLOOKUP(C19,MainAccountNO:MainAccounts,2,FALSE)) -> Rent Expense | C19: 543 | D19: Utilities | E19: 2520
A20: 14 | B20: =IF(C20<1," ",VLOOKUP(C20,MainAccountNO:MainAccounts,2,FALSE)) -> Telephone | C20: 547 | D20: Telephone/Internet | E20: 900
A21: 15 | B21: =IF(C21<1," ",VLOOKUP(C21,MainAccountNO:MainAccounts,2,FALSE)) -> Bldg. Maint. | C21: 525 | D21: Upgrades/Repairs | E21: 540
A22: 16
A23: 17 | D23: Urban Fire Program
A24: 18 | B24: =IF(C24<1," ",VLOOKUP(C24,MainAccountNO:MainAccounts,2,FALSE)) -> Special Projects | C24: 580 | D24: Subsidies and Vacancies | E24: 17160
A25: 19 | B25: =IF(C25<1," ",VLOOKUP(C25,MainAccountNO:MainAccounts,2,FALSE)) -> Royalties/Fees | C25: 530 | D25: Domain Fees - Web & Email Hosting | E25: 600
A26: 20 | B26: =IF(C26<1," ",VLOOKUP(C26,MainAccountNO:MainAccounts,2,FALSE)) -> Office Supply | C26: 532 | D26: Office Supplies | E26: 360
A27: 21 | B27: =IF(C27<1," ",VLOOKUP(C27,MainAccountNO:MainAccounts,2,FALSE)) -> Staff Training | C27: 537 | D27: Training for Staff | E27: 1000
A28: 22 | B28: =IF(C28<1," ",VLOOKUP(C28,MainAccountNO:MainAccounts,2,FALSE)) -> Special Projects | C28: 580 | D28: Events, Retreats, Workshops | E28: 1080
A29: 23
A30: 24 | D30: House Launches
A31: 26 | B31: =IF(C31<1," ",VLOOKUP(C31,MainAccountNO:MainAccounts,2,FALSE)) -> Special Projects | C31: 580 | D31: House Launch - Furniture and Appliances | E31: 1260
A32: 28 | B32: =IF(C32<1," ",VLOOKUP(C32,MainAccountNO:MainAccounts,2,FALSE)) -> 
A33: 29 | B33: =IF(C33<1," ",VLOOKUP(C33,MainAccountNO:MainAccounts,2,FALSE)) -> 
A34: 30 | B34: =IF(C34<1," ",VLOOKUP(C34,MainAccountNO:MainAccounts,2,FALSE)) -> 
A35: 31 | B35: =IF(C35<1," ",VLOOKUP(C35,MainAccountNO:MainAccounts,2,FALSE)) -> 
A36: 32 | B36: =IF(C36<1," ",VLOOKUP(C36,MainAccountNO:MainAccounts,2,FALSE)) -> 
A37: 33 | B37: =IF(C37<1," ",VLOOKUP(C37,MainAccountNO:MainAccounts,2,FALSE)) -> 
A38: 34 | B38: =IF(C38<1," ",VLOOKUP(C38,MainAccountNO:MainAccounts,2,FALSE)) -> 
A39: 35 | B39: =IF(C39<1," ",VLOOKUP(C39,MainAccountNO:MainAccounts,2,FALSE)) -> 
A40: 36 | B40: =IF(C40<1," ",VLOOKUP(C40,MainAccountNO:MainAccounts,2,FALSE)) -> 
A41: 37 | B41: =IF(C41<1," ",VLOOKUP(C41,MainAccountNO:MainAccounts,2,FALSE)) -> 
A42: 38 | B42: =IF(C42<1," ",VLOOKUP(C42,MainAccountNO:MainAccounts,2,FALSE)) -> 
A43: 39 | B43: =IF(C43<1," ",VLOOKUP(C43,MainAccountNO:MainAccounts,2,FALSE)) -> 
A44: 40 | B44: =IF(C44<1," ",VLOOKUP(C44,MainAccountNO:MainAccounts,2,FALSE)) -> 
A45: 41 | B45: =IF(C45<1," ",VLOOKUP(C45,MainAccountNO:MainAccounts,2,FALSE)) -> 
A46: 42 | B46: =IF(C46<1," ",VLOOKUP(C46,MainAccountNO:MainAccounts,2,FALSE)) -> 
A47: 43 | B47: =IF(C47<1," ",VLOOKUP(C47,MainAccountNO:MainAccounts,2,FALSE)) -> 
A48: 44 | B48: =IF(C48<1," ",VLOOKUP(C48,MainAccountNO:MainAccounts,2,FALSE)) -> 
A49: 45 | B49: =IF(C49<1," ",VLOOKUP(C49,MainAccountNO:MainAccounts,2,FALSE)) -> 
A50: 46 | B50: =IF(C50<1," ",VLOOKUP(C50,MainAccountNO:MainAccounts,2,FALSE)) -> 
A51: 47 | B51: =IF(C51<1," ",VLOOKUP(C51,MainAccountNO:MainAccounts,2,FALSE)) -> 

Sheet S14
B1: Restora | C1: 53 | D1: Choose Rank Number --------> | G1: 10
D2: Total Income | E2: =SUM(IF(S_14FieldRank<=S_14Choice,IF(S_14AccNO<=LastIncome,S_14Amount,0),0)) -> 187910
D3: Total Expense | E3: =SUM(IF(S_14FieldRank<=S_14Choice,IF(S_14AccNO>LastIncome,S_14Amount,0),0)) -> 172920
D4: Difference | E4: =E2-E3 -> 14990
A5: Line | B5: Account Description | C5: Acc_NO | D5: Field Detail | E5: Amount | F5: Month | G5: Rank | H5: Out
A7: 1 | B7: =IF(C7<1," ",VLOOKUP(C7,MainAccountNO:MainAccounts,2,FALSE)) -> Gifts in hand | C7: 400 | D7: apx balance on hand @ 03/31/2021 | E7: 10000 | H7: =IF(G7<=$G$1,"","OUT") -> 
A8: 2 | B8: =IF(C8<1," ",VLOOKUP(C8,MainAccountNO:MainAccounts,2,FALSE)) -> Sales | C8: 460 | D8: Sales Revenue | E8: 160400
A9: 3 | B9: =IF(C9<1," ",VLOOKUP(C9,MainAccountNO:MainAccounts,2,FALSE)) -> Project Income - CND Ind | C9: 440 | D9: CAN individuals | E9: 2500
A10: 4 | B10: =IF(C10<1," ",VLOOKUP(C10,MainAccountNO:MainAccounts,2,FALSE)) -> Project Income - CDN Churches | C10: 441 | D10: CAN churches | E10: 2500
A11: 5 | B11: =IF(C11<1," ",VLOOKUP(C11,MainAccountNO:MainAccounts,2,FALSE)) -> Project Income - US | C11: 442 | D11: US gifts and grants | E11: 10000
A12: 6 | B12: =IF(C12<1," ",VLOOKUP(C12,MainAccountNO:MainAccounts,2,FALSE)) -> Other income | C12: 455 | D12: GST Rebate | E12: 4010
A13: 7 | B13: =IF(C13<1," ",VLOOKUP(C13,MainAccountNO:MainAccounts,2,FALSE)) -> Operations Assessment | C13: 484 | D13: operations assessement | E13: -1500
A14: 8
A15: 9 | D15: Restora Fixed Expenses
A16: 10 | B16: =IF(C16<1," ",VLOOKUP(C16,MainAccountNO:MainAccounts,2,FALSE)) -> General Supply & Service | C16: 545 | D16: Transportation | E16: 7200
A17: 11 | B17: =IF(C17<1," ",VLOOKUP(C17,MainAccountNO:MainAccounts,2,FALSE)) -> General Supply & Service | C17: 545 | D17: Marketing & Advertising | E17: 3300
A18: 12 | B18: =IF(C18<1," ",VLOOKUP(C18,MainAccountNO:MainAccounts,2,FALSE)) -> General Supply & Service | C18: 545 | D18: Business Operations | E18: 6700
A19: 13 | B19: =IF(C19<1," ",VLOOKUP(C19,MainAccountNO:MainAccounts,2,FALSE)) -> General Supply & Service | C19: 545 | D19: Staff & HR | E19: 4500
A20: 14 | B20: =IF(C20<1," ",VLOOKUP(C20,MainAccountNO:MainAccounts,2,FALSE)) -> General Supply & Service | C20: 545 | D20: Finance | E20: 1050
A21: 15 | B21: =IF(C21<1," ",VLOOKUP(C21,MainAccountNO:MainAccounts,2,FALSE)) -> General Supply & Service | C21: 545 | D21: GST Payments | E21: 8020
A22: 16 | B22: =IF(C22<1," ",VLOOKUP(C22,MainAccountNO:MainAccounts,2,FALSE)) -> 
A23: 17 | B23: =IF(C23<1," ",VLOOKUP(C23,MainAccountNO:MainAccounts,2,FALSE)) ->  | D23: Restora Variable Expenses
A24: 18 | B24: =IF(C24<1," ",VLOOKUP(C24,MainAccountNO:MainAccounts,2,FALSE)) -> General Supply & Service | C24: 545 | D24: Materials & Supplies (Cost of Goods Sold) | E24: 31200
A25: 19 | B25: =IF(C25<1," ",VLOOKUP(C25,MainAccountNO:MainAccounts,2,FALSE)) -> Salary Expense | C25: 591 | D25: Wages (Hourly) | E25: 38400
A26: 20 | B26: =IF(C26<1," ",VLOOKUP(C26,MainAccountNO:MainAccounts,2,FALSE)) -> Salary Expense | C26: 591 | D26: Wages ( Salary) | E26: 35000
A27: 21 | B27: =IF(C27<1," ",VLOOKUP(C27,MainAccountNO:MainAccounts,2,FALSE)) -> Salary Expense | C27: 591 | D27: Payroll Costs (after wages) | E27: 7550
A28: 22 | B28: =IF(C28<1," ",VLOOKUP(C28,MainAccountNO:MainAccounts,2,FALSE)) -> Special Projects | C28: 580 | D28: Urban Fire Sustainability Fund | E28: 30000
A29: 23
A30: 24
A31: 25
A32: 26
A33: 27
A34: 28
A35: 29
A36: 30
A37: 31 | B37: =IF(C37<1," ",VLOOKUP(C37,MainAccountNO:MainAccounts,2,FALSE)) -> 
A38: 32
A39: 33
A40: 34
A41: 35
A42: 36
A43: 37
A44: 38
A45: 39
A46: 40
A47: 41
A48: 42
A49: 43 | B49: =IF(C49<1," ",VLOOKUP(C49,MainAccountNO:MainAccounts,2,FALSE)) -> 
A50: 44 | B50: =IF(C50<1," ",VLOOKUP(C50,MainAccountNO:MainAccounts,2,FALSE)) -> 
A51: 45 | B51: =IF(C51<1," ",VLOOKUP(C51,MainAccountNO:MainAccounts,2,FALSE)) -> 
A52: 46 | B52: =IF(C52<1," ",VLOOKUP(C52,MainAccountNO:MainAccounts,2,FALSE)) -> 
A53: 47 | B53: =IF(C53<1," ",VLOOKUP(C53,MainAccountNO:MainAccounts,2,FALSE)) -> 
A54: 48 | B54: =IF(C54<1," ",VLOOKUP(C54,MainAccountNO:MainAccounts,2,FALSE)) -> 
A55: 49 | B55: =IF(C55<1," ",VLOOKUP(C55,MainAccountNO:MainAccounts,2,FALSE)) -> 
A56: 50 | B56: =IF(C56<1," ",VLOOKUP(C56,MainAccountNO:MainAccounts,2,FALSE)) -> 
A57: 51 | B57: =IF(C57<1," ",VLOOKUP(C57,MainAccountNO:MainAccounts,2,FALSE)) -> 
A58: 52 | B58: =IF(C58<1," ",VLOOKUP(C58,MainAccountNO:MainAccounts,2,FALSE)) -> 
A59: 53 | B59: =IF(C59<1," ",VLOOKUP(C59,MainAccountNO:MainAccounts,2,FALSE)) -> 
A60: 54 | B60: =IF(C60<1," ",VLOOKUP(C60,MainAccountNO:MainAccounts,2,FALSE)) -> 
A61: 55 | B61: =IF(C61<1," ",VLOOKUP(C61,MainAccountNO:MainAccounts,2,FALSE)) -> 
A62: 56 | B62: =IF(C62<1," ",VLOOKUP(C62,MainAccountNO:MainAccounts,2,FALSE)) -> 
A63: 57 | B63: =IF(C63<1," ",VLOOKUP(C63,MainAccountNO:MainAccounts,2,FALSE)) -> 
A64: 58 | B64: =IF(C64<1," ",VLOOKUP(C64,MainAccountNO:MainAccounts,2,FALSE)) -> 
A65: 59 | B65: =IF(C65<1," ",VLOOKUP(C65,MainAccountNO:MainAccounts,2,FALSE)) -> 
A66: 60 | B66: =IF(C66<1," ",VLOOKUP(C66,MainAccountNO:MainAccounts,2,FALSE)) -> 
A67: 61 | B67: =IF(C67<1," ",VLOOKUP(C67,MainAccountNO:MainAccounts,2,FALSE)) -> 
A68: 62 | B68: =IF(C68<1," ",VLOOKUP(C68,MainAccountNO:MainAccounts,2,FALSE)) -> 
